Workbook

Sheet Lists (hidden)
A1: Dates: | C1: Hours: | E1: Borders: | G1: Version: | I1: Refprog borders:
A2: =A3+1 -> 2020-11-04 | C2: 1 | E2: AT-DE | G2: 4.2 | I2: APG-CZ
A3: =IF(G3="PR",DATE(2015,5,19),TODAY()) -> 2020-11-03 | C3: 2 | E3: AT-IT | I3: APG-HU
A4: =IF(OR(A3-1>DATE(2015,5,19),$G$3="PR"),A3-1,"") -> 2020-11-02 | C4: 3 | E4: AT-SI | G4: https://alegro-dryrun-utilitytool.jao.eu/ | I4: APG-SHB
A5: =IF(A4="","",IF(OR(A4-1>DATE(2015,5,19),$G$3="PR"),A4-1,"")) -> 2020-11-01 | C5: 4 | E5: BE-DE(DC) | I5: BE-NL
A6: =IF(A5="","",IF(OR(A5-1>DATE(2015,5,19),$G$3="PR"),A5-1,"")) -> 2020-10-31 | C6: 5 | E6: BE-FR | I6: BG-TR
A7: 2020-10-30 | C7: 6 | E7: BE-NL | I7: CH-APG
A8: 2020-10-29 | C8: 7 | E8: DE-AT | I8: CH-DE+
A9: 2020-10-28 | C9: 8 | E9: DE-BE(DC) | I9: CH-FR
A10: 2020-10-27 | C10: 9 | E10: DE-DK1 | I10: CH-IT
A11: 2020-10-26 | C11: 10 | E11: DE-FR | I11: CZ-SK
A12: 2020-10-25 | C12: 11 | E12: DE-NL | I12: DE+-APG
A13: 2020-10-24 | C13: 12 | E13: DK1-DE | I13: DE-CZ
A14: 2020-10-23 | C14: 13 | E14: ES-FR | I14: DE-NL
A15: 2020-10-22 | C15: 14 | E15: FR-BE | I15: DE-PL
A16: 2020-10-21 | C16: 15 | E16: FR-DE | I16: ES-MA
A17: 2020-10-20 | C17: 16 | E17: FR-ES | I17: ES-PT
A18: 2020-10-19 | C18: 17 | E18: FR-IT | I18: FR-BE
A19: 2020-10-18 | C19: 18 | E19: HR-SI | I19: FR-DE
A20: 2020-10-17 | C20: 19 | E20: IT-AT | I20: FR-ES
A21: 2020-10-16 | C21: 20 | E21: IT-FR | I21: FR-IT
A22: 2020-10-15 | C22: 21 | E22: IT-SI | I22: GR-AL
A23: 2020-10-14 | C23: 22 | E23: NL-BE | I23: GR-BG
A24: 2020-10-13 | C24: 23 | E24: NL-DE | I24: GR-IT
A25: 2020-10-12 | C25: 24 | E25: SI-AT | I25: GR-SMM
A26: 2020-10-11 | C26: 25 | E26: SI-HR | I26: GR-TR
A27: 2020-10-10 | E27: SI-IT | I27: IT-APG
A28: 2020-10-09 | I28: IT-SHB
A29: 2020-10-08 | I29: PL-CZ
A30: 2020-10-07 | I30: PL-SK
A31: 2020-10-06 | I31: RO-BG
A32: 2020-10-05 | I32: RO-HU
A33: 2020-10-04 | I33: SHB-HU
A34: 2020-10-03 | I34: SK-HU
A35: 2020-10-02 | I35: SMM-AL
A36: 2020-10-01 | I36: SMM-BG
A37: 2020-09-30 | I37: SMM-HU
A38: =IF(A37="","",IF(OR(A37-1>DATE(2015,5,19),$G$3="PR"),A37-1,"")) -> 2020-09-29 | I38: SMM-RO
A39: 2020-09-28 | I39: SMM-SHB
A40: 2020-09-27 | I40: WPS-HU
A41: 2020-09-26 | I41: WPS-RO
A42: 2020-09-25 | I42: WPS-SK
A43: 2020-09-24
A44: 2020-09-23
A45: 2020-09-22
A46: 2020-09-21
A47: 2020-09-20
A48: 2020-09-19
A49: 2020-09-18
A50: 2020-09-17
A51: 2020-09-16
A52: 2020-09-15
A53: 2020-09-14
A54: 2020-09-13
A55: 2020-09-12
A56: 2020-09-11
A57: 2020-09-10
A58: 2020-09-09
A59: 2020-09-08
A60: 2020-09-07
A61: 2020-09-06
A62: 2020-09-05
A63: 2020-09-04
A64: 2020-09-03
A65: 2020-09-02
A66: 2020-09-01
A67: 2020-08-31
A68: 2020-08-30
A69: =IF(A68="","",IF(OR(A68-1>DATE(2015,5,19),$G$3="PR"),A68-1,"")) -> 2020-08-29
A70: =IF(A69="","",IF(OR(A69-1>DATE(2015,5,19),$G$3="PR"),A69-1,"")) -> 2020-08-28
A71: 2020-08-27
A72: 2020-08-26
A73: 2020-08-25
A74: 2020-08-24
A75: 2020-08-23
A76: 2020-08-22
A77: 2020-08-21
A78: 2020-08-20
A79: 2020-08-19
A80: 2020-08-18
A81: 2020-08-17
A82: 2020-08-16
A83: 2020-08-15
A84: 2020-08-14
A85: 2020-08-13
A86: 2020-08-12
A87: 2020-08-11
A88: 2020-08-10
A89: 2020-08-09
A90: 2020-08-08
A91: 2020-08-07
A92: 2020-08-06
A93: 2020-08-05
A94: 2020-08-04
A95: 2020-08-03
A96: 2020-08-02
A97: 2020-08-01
A98: 2020-07-31
A99: 2020-07-30
A100: 2020-07-29
A101: 2020-07-28
A102: =IF(A101="","",IF(OR(A101-1>DATE(2015,5,19),$G$3="PR"),A101-1,"")) -> 2020-07-27
A103: 2020-07-26
A104: 2020-07-25
A105: 2020-07-24
A106: 2020-07-23
A107: 2020-07-22
A108: 2020-07-21
A109: 2020-07-20
A110: 2020-07-19
A111: 2020-07-18
A112: 2020-07-17
A113: 2020-07-16
A114: 2020-07-15
A115: 2020-07-14
A116: 2020-07-13
A117: 2020-07-12
A118: 2020-07-11
A119: 2020-07-10
A120: 2020-07-09
A121: 2020-07-08
A122: 2020-07-07
A123: 2020-07-06
A124: 2020-07-05
A125: 2020-07-04
A126: 2020-07-03
A127: 2020-07-02
A128: 2020-07-01
A129: 2020-06-30
A130: 2020-06-29
A131: 2020-06-28
A132: 2020-06-27
A133: =IF(A132="","",IF(OR(A132-1>DATE(2015,5,19),$G$3="PR"),A132-1,"")) -> 2020-06-26
A134: =IF(A133="","",IF(OR(A133-1>DATE(2015,5,19),$G$3="PR"),A133-1,"")) -> 2020-06-25
A135: 2020-06-24
A136: 2020-06-23
A137: 2020-06-22
A138: 2020-06-21
A139: 2020-06-20
A140: 2020-06-19
A141: 2020-06-18
A142: 2020-06-17
A143: 2020-06-16
A144: 2020-06-15
A145: 2020-06-14
A146: 2020-06-13
A147: 2020-06-12
A148: 2020-06-11
A149: 2020-06-10
A150: 2020-06-09
A151: 2020-06-08
A152: 2020-06-07
A153: 2020-06-06
A154: 2020-06-05
A155: 2020-06-04
A156: 2020-06-03
A157: 2020-06-02
A158: 2020-06-01
A159: 2020-05-31
A160: 2020-05-30
A161: 2020-05-29
A162: 2020-05-28
A163: 2020-05-27
A164: 2020-05-26
A165: 2020-05-25
A166: =IF(A165="","",IF(OR(A165-1>DATE(2015,5,19),$G$3="PR"),A165-1,"")) -> 2020-05-24
A167: 2020-05-23
A168: 2020-05-22
A169: 2020-05-21
A170: 2020-05-20
A171: 2020-05-19
A172: 2020-05-18
A173: 2020-05-17
A174: 2020-05-16
A175: 2020-05-15
A176: 2020-05-14
A177: 2020-05-13
A178: 2020-05-12
A179: 2020-05-11
A180: 2020-05-10
A181: 2020-05-09
A182: 2020-05-08
A183: 2020-05-07
A184: 2020-05-06
A185: 2020-05-05
A186: 2020-05-04
A187: 2020-05-03
A188: 2020-05-02
A189: 2020-05-01
A190: 2020-04-30
A191: 2020-04-29
A192: 2020-04-28
A193: 2020-04-27
A194: 2020-04-26
A195: 2020-04-25
A196: 2020-04-24
A197: =IF(A196="","",IF(OR(A196-1>DATE(2015,5,19),$G$3="PR"),A196-1,"")) -> 2020-04-23
A198: =IF(A197="","",IF(OR(A197-1>DATE(2015,5,19),$G$3="PR"),A197-1,"")) -> 2020-04-22
A199: 2020-04-21
A200: 2020-04-20
... 170 more rows

Sheet CWE Market view
D2: Utility Tool
B4: Reference time: | D4: 1) Check volume (interactive module) | I4: 2) Max volume (information module)
B6: date: | D6: Here you can check the simultaneous execution of trading volumes of the markets involved in the CWE Market Coupling | I6: Here you can find the maximal trade volumes (MWh/h) which can be physically transported between two Hubs under the condition that no other trade is executed between other Hubs.
B7: 2020-11-04
B8: hour:
B9: 1
B11: HUB TO HUB EXCHANGES | E11: Hub-to-Hub trade in MWh/h (please insert values) | F11: Test 1: hub to hub inside FB space | J11: direction --> | K11: direction <--
D12: DE=>AT | E12: 0 | F12: =IF(PTDFs!O6>0,"Constrained Transmission System","Trades feasible") -> Trades feasible | I12: DE=>AT | J12: =INDEX('Max exchanges (Maxbex)'!N2:N41,$B$9,1) -> 5068 | K12: =INDEX('Max exchanges (Maxbex)'!G2:G41,$B$9,1) -> 5008
D13: DE=>BE (DC) | E13: 0 | I13: DE=>BE | J13: =INDEX('Max exchanges (Maxbex)'!O2:O41,$B$9,1) -> 3519 | K13: =INDEX('Max exchanges (Maxbex)'!K2:K41,$B$9,1) -> 2904
D14: DE=>NL | E14: 0 | I14: DE=>NL | J14: =INDEX('Max exchanges (Maxbex)'!Q2:Q41,$B$9,1) -> 1982 | K14: =INDEX('Max exchanges (Maxbex)'!X2:X41,$B$9,1) -> 4305
D15: DE=>FR | E15: 0 | I15: DE=>FR | J15: =INDEX('Max exchanges (Maxbex)'!P2:P41,$B$9,1) -> 4946 | K15: =INDEX('Max exchanges (Maxbex)'!T2:T41,$B$9,1) -> 3939
D16: NL=>BE | E16: 0 | I16: NL=>BE | J16: =INDEX('Max exchanges (Maxbex)'!W2:W41,$B$9,1) -> 2393 | K16: =INDEX('Max exchanges (Maxbex)'!M2:M41,$B$9,1) -> 2781
D17: NL=>FR | E17: 0 | I17: NL=>FR | J17: =INDEX('Max exchanges (Maxbex)'!Y2:Y41,$B$9,1) -> 2589 | K17: =INDEX('Max exchanges (Maxbex)'!U2:U41,$B$9,1) -> 2669
D18: BE=>FR | E18: 0 | I18: BE=>FR | J18: =INDEX('Max exchanges (Maxbex)'!L2:L41,$B$9,1) -> 2022 | K18: =INDEX('Max exchanges (Maxbex)'!S2:S41,$B$9,1) -> 4333
B20: HUB POSITION | E20: Hub Positions trade in MWh/h (please insert values) | F20: Test 1: sum hub positions = 0 | G20: Test 2: hub positions inside FB space | J20: export | K20: import
D21: ALBE | E21: 0 | F21: =IF(AND(SUM(E21:E22)=0,SUM(E23:E27)=0),"OK","KO") -> OK | G21: =IF(PTDFs!Q6>0,"Constrained Transmission System","Trades feasible") -> Trades feasible | I21: ALBE | J21: =INDEX('Max net pos'!$M$2:$M$43,B9,1) -> 0 | K21: =INDEX('Max net pos'!$L$2:$L$43,B9,1) -> 0
D22: ALDE | E22: 0 | I22: ALDE | J22: =INDEX('Max net pos'!$O$2:$O$43,B9,1) -> 0 | K22: =INDEX('Max net pos'!$N$2:$N$43,B9,1) -> 0
D23: AT | E23: 0 | I23: AT | J23: =INDEX('Max net pos'!$Q$2:$Q$43,$B$9,1) -> 5234 | K23: =INDEX('Max net pos'!$P$2:$P$43,B9,1) -> -5508
D24: DE | E24: 0 | I24: DE | J24: =INDEX('Max net pos'!$U$2:$U$43,B9,1) -> 9121 | K24: =INDEX('Max net pos'!$T$2:$T$43,B9,1) -> -11538
D25: BE | E25: 0 | I25: BE | J25: =INDEX('Max net pos'!$S$2:$S$43,B9,1) -> 3288 | K25: =INDEX('Max net pos'!$R$2:$R$43,B9,1) -> -4679
D26: FR | E26: 0 | I26: FR | J26: =INDEX('Max net pos'!$W$2:$W$43,B9,1) -> 6782 | K26: =INDEX('Max net pos'!$V$2:$V$43,B9,1) -> -6180
D27: NL | E27: 0 | I27: NL | J27: =INDEX('Max net pos'!$Y$2:$Y$43,B9,1) -> 4831 | K27: =INDEX('Max net pos'!$X$2:$X$43,B9,1) -> -3495

Sheet CWE Market graphs
A2: Maximum bilateral exchanges | P2: Maximum / minimum net positions

Sheet CWE map
A2: data shown for hour: | E2: CWE max net positions and bilateral exchanges
A3: ='CWE Market view'!B9 -> 1
F6: NL | M6: DE
E8: ='CWE Market view'!J17 -> 2589 | F8: ← | H8: export | I8: ='CWE Market view'!J27 -> 4831 | K8: ← | L8: ='CWE Market view'!J14 -> 1982
E9: ='CWE Market view'!K17 -> 2669 | F9: → | H9: import | I9: ='CWE Market view'!K27 -> -3495 | L9: ='CWE Market view'!K14 -> 4305 | M9: →
I11: ↑
H12: ='CWE Market view'!J16 -> 2393 | I12: ='CWE Market view'!K16 -> 2781
F13: BE | H13: ↓
H15: export | I15: ='CWE Market view'!J25 -> 3288 | K15: ← | L15: ='CWE Market view'!J13 -> 3519 | O15: export | P15: ='CWE Market view'!J24 -> 9121
H16: import | I16: ='CWE Market view'!K25 -> -4679 | L16: ='CWE Market view'!K13 -> 2904 | M16: → | O16: import | P16: ='CWE Market view'!K24 -> -11538
I18: ↑
H19: ='CWE Market view'!J18 -> 2022 | I19: ='CWE Market view'!K18 -> 4333
F20: FR | H20: ↓
K22: ← | L22: ='CWE Market view'!J15 -> 4946
L23: ='CWE Market view'!K15 -> 3939 | M23: →
N25: =IF(SIGN(S24)=1,"^",IF(SIGN(S24)=0," "," ")) ->  | P25: ↑
E26: ='CWE Market view'!K17 -> 2669 | F26: ← | H26: export | I26: ='CWE Market view'!J26 -> 6782 | O26: =+'CWE Market view'!J12 -> 5068 | P26: ='CWE Market view'!K12 -> 5008
E27: ='CWE Market view'!J17 -> 2589 | F27: → | H27: import | I27: ='CWE Market view'!K26 -> -6180 | M27: AT | N27: =IF(SIGN(S24)=1," ",IF(SIGN(S24)=0," ","v")) ->  | O27: ↓
K29: =IF(SIGN(S23)=1,"<",IF(SIGN(S23)=0," "," ")) ->  | M29: =IF(SIGN(S23)=1," ",IF(SIGN(S23)=0," ",">")) ->  | O29: export | P29: ='CWE Market view'!J23 -> 5234
K30: =IF(SIGN(U23)=1,"<",IF(SIGN(U23)=0," "," ")) ->  | M30: =IF(SIGN(U23)=1," ",IF(SIGN(U23)=0," ",">")) ->  | O30: import | P30: ='CWE Market view'!K23 -> -5508

Sheet BorderDataOverview
A2: Date: | B2: 2020-11-04
A4: Border: | B4: BE-DE(DC) | D4: Choosing another Business Day on this sheet will also update the following sheets:
D5: ATCs, Allocated Capacities, Price spread, Congestion Income, LTN, Shadow Auction ATC and ID ATC
A6: Hour | B6: ATC (MW) | C6: BEC (MW) | D6: Price Spread (€/MWh) | E6: Congestion Income (€) | F6: LTN (MW) | G6: Shadow Auction ATC (MW) | H6: Intraday ATC (MW)
A7: =IF(AND($B$2<>"",SUM(ATCs!A6,'Allocated Capacities'!A6,'Price Spread'!A6,LTN!A6,'Intraday ATC'!A7,'Shadow Auction ATC'!A6,'Congestion Income'!A7)>0),Lists!C2,"") -> 1 | B7: =IF($A7<>"",HLOOKUP($B$4,ATCs!$B$5:$Y$36,$A7+1,FALSE),"") -> N/A | C7: =IF($A7<>"",HLOOKUP($B$4,'Allocated Capacities'!$B$5:$AC$42,$A7+1,FALSE),"") -> 0 | D7: =IF($A7<>"",HLOOKUP($B$4,'Price Spread'!$B$5:$AG$41,$A7+1,FALSE),"") -> 0 | E7: =IF($A7<>"",HLOOKUP($B$4,'Congestion Income'!$N$6:$AA$36,$A7+1,FALSE),"") ->  | F7: =IF($A7<>"",HLOOKUP($B$4,LTN!$B$5:$M$34,$A7+1,FALSE),"") -> 0 | G7: =IF($A7<>"",HLOOKUP($B$4,'Shadow Auction ATC'!$B$5:$M$36,$A7+1,FALSE),"") -> 0 | H7: =IF($A7<>"",HLOOKUP($B$4,'Intraday ATC'!$B$6:$Y$38,$A7+1,FALSE),"") -> 0
A8: =IF(AND($B$2<>"",SUM(ATCs!A7,'Allocated Capacities'!A7,'Price Spread'!A7,LTN!A7,'Intraday ATC'!A8,'Shadow Auction ATC'!A7,'Congestion Income'!A8)>0),Lists!C3,"") -> 2 | B8: =IF($A8<>"",HLOOKUP($B$4,ATCs!$B$5:$Y$36,$A8+1,FALSE),"") -> N/A | C8: =IF($A8<>"",HLOOKUP($B$4,'Allocated Capacities'!$B$5:$Y$42,$A8+1,FALSE),"") -> 0 | D8: =IF($A8<>"",HLOOKUP($B$4,'Price Spread'!$B$5:$Y$41,$A8+1,FALSE),"") -> 0 | E8: =IF($A8<>"",HLOOKUP($B$4,'Congestion Income'!$N$6:$Y$36,$A8+1,FALSE),"") ->  | F8: =IF($A8<>"",HLOOKUP($B$4,LTN!$B$5:$M$34,$A8+1,FALSE),"") -> 0 | G8: =IF($A8<>"",HLOOKUP($B$4,'Shadow Auction ATC'!$B$5:$M$36,$A8+1,FALSE),"") -> 0 | H8: =IF($A8<>"",HLOOKUP($B$4,'Intraday ATC'!$B$6:$Y$38,$A8+1,FALSE),"") -> 0
A9: =IF(AND($B$2<>"",SUM(ATCs!A8,'Allocated Capacities'!A8,'Price Spread'!A8,LTN!A8,'Intraday ATC'!A9,'Shadow Auction ATC'!A8,'Congestion Income'!A9)>0),Lists!C4,"") -> 3 | B9: =IF($A9<>"",HLOOKUP($B$4,ATCs!$B$5:$Y$36,$A9+1,FALSE),"") -> N/A | C9: =IF($A9<>"",HLOOKUP($B$4,'Allocated Capacities'!$B$5:$Y$42,$A9+1,FALSE),"") -> 0 | D9: =IF($A9<>"",HLOOKUP($B$4,'Price Spread'!$B$5:$Y$41,$A9+1,FALSE),"") -> 0 | E9: =IF($A9<>"",HLOOKUP($B$4,'Congestion Income'!$N$6:$Y$36,$A9+1,FALSE),"") ->  | F9: =IF($A9<>"",HLOOKUP($B$4,LTN!$B$5:$M$34,$A9+1,FALSE),"") -> 0 | G9: =IF($A9<>"",HLOOKUP($B$4,'Shadow Auction ATC'!$B$5:$M$36,$A9+1,FALSE),"") -> 0 | H9: =IF($A9<>"",HLOOKUP($B$4,'Intraday ATC'!$B$6:$Y$38,$A9+1,FALSE),"") -> 0
A10: =IF(AND($B$2<>"",SUM(ATCs!A9,'Allocated Capacities'!A9,'Price Spread'!A9,LTN!A9,'Intraday ATC'!A10,'Shadow Auction ATC'!A9,'Congestion Income'!A10)>0),Lists!C5,"") -> 4 | B10: =IF($A10<>"",HLOOKUP($B$4,ATCs!$B$5:$Y$36,$A10+1,FALSE),"") -> N/A | C10: =IF($A10<>"",HLOOKUP($B$4,'Allocated Capacities'!$B$5:$Y$42,$A10+1,FALSE),"") -> 0 | D10: =IF($A10<>"",HLOOKUP($B$4,'Price Spread'!$B$5:$Y$41,$A10+1,FALSE),"") -> 0 | E10: =IF($A10<>"",HLOOKUP($B$4,'Congestion Income'!$N$6:$Y$36,$A10+1,FALSE),"") ->  | F10: =IF($A10<>"",HLOOKUP($B$4,LTN!$B$5:$M$34,$A10+1,FALSE),"") -> 0 | G10: =IF($A10<>"",HLOOKUP($B$4,'Shadow Auction ATC'!$B$5:$M$36,$A10+1,FALSE),"") -> 0 | H10: =IF($A10<>"",HLOOKUP($B$4,'Intraday ATC'!$B$6:$Y$38,$A10+1,FALSE),"") -> 0
A11: =IF(AND($B$2<>"",SUM(ATCs!A10,'Allocated Capacities'!A10,'Price Spread'!A10,LTN!A10,'Intraday ATC'!A11,'Shadow Auction ATC'!A10,'Congestion Income'!A11)>0),Lists!C6,"") -> 5 | B11: =IF($A11<>"",HLOOKUP($B$4,ATCs!$B$5:$Y$36,$A11+1,FALSE),"") -> N/A | C11: =IF($A11<>"",HLOOKUP($B$4,'Allocated Capacities'!$B$5:$Y$42,$A11+1,FALSE),"") -> 0 | D11: =IF($A11<>"",HLOOKUP($B$4,'Price Spread'!$B$5:$Y$41,$A11+1,FALSE),"") -> 0 | E11: =IF($A11<>"",HLOOKUP($B$4,'Congestion Income'!$N$6:$Y$36,$A11+1,FALSE),"") ->  | F11: =IF($A11<>"",HLOOKUP($B$4,LTN!$B$5:$M$34,$A11+1,FALSE),"") -> 0 | G11: =IF($A11<>"",HLOOKUP($B$4,'Shadow Auction ATC'!$B$5:$M$36,$A11+1,FALSE),"") -> 0 | H11: =IF($A11<>"",HLOOKUP($B$4,'Intraday ATC'!$B$6:$Y$38,$A11+1,FALSE),"") -> 0
A12: =IF(AND($B$2<>"",SUM(ATCs!A11,'Allocated Capacities'!A11,'Price Spread'!A11,LTN!A11,'Intraday ATC'!A12,'Shadow Auction ATC'!A11,'Congestion Income'!A12)>0),Lists!C7,"") -> 6 | B12: =IF($A12<>"",HLOOKUP($B$4,ATCs!$B$5:$Y$36,$A12+1,FALSE),"") -> N/A | C12: =IF($A12<>"",HLOOKUP($B$4,'Allocated Capacities'!$B$5:$Y$42,$A12+1,FALSE),"") -> 0 | D12: =IF($A12<>"",HLOOKUP($B$4,'Price Spread'!$B$5:$Y$41,$A12+1,FALSE),"") -> 0 | E12: =IF($A12<>"",HLOOKUP($B$4,'Congestion Income'!$N$6:$Y$36,$A12+1,FALSE),"") ->  | F12: =IF($A12<>"",HLOOKUP($B$4,LTN!$B$5:$M$34,$A12+1,FALSE),"") -> 0 | G12: =IF($A12<>"",HLOOKUP($B$4,'Shadow Auction ATC'!$B$5:$M$36,$A12+1,FALSE),"") -> 0 | H12: =IF($A12<>"",HLOOKUP($B$4,'Intraday ATC'!$B$6:$Y$38,$A12+1,FALSE),"") -> 0
A13: =IF(AND($B$2<>"",SUM(ATCs!A12,'Allocated Capacities'!A12,'Price Spread'!A12,LTN!A12,'Intraday ATC'!A13,'Shadow Auction ATC'!A12,'Congestion Income'!A13)>0),Lists!C8,"") -> 7 | B13: =IF($A13<>"",HLOOKUP($B$4,ATCs!$B$5:$Y$36,$A13+1,FALSE),"") -> N/A | C13: =IF($A13<>"",HLOOKUP($B$4,'Allocated Capacities'!$B$5:$Y$42,$A13+1,FALSE),"") -> 0 | D13: =IF($A13<>"",HLOOKUP($B$4,'Price Spread'!$B$5:$Y$41,$A13+1,FALSE),"") -> 0 | E13: =IF($A13<>"",HLOOKUP($B$4,'Congestion Income'!$N$6:$Y$36,$A13+1,FALSE),"") ->  | F13: =IF($A13<>"",HLOOKUP($B$4,LTN!$B$5:$M$34,$A13+1,FALSE),"") -> 0 | G13: =IF($A13<>"",HLOOKUP($B$4,'Shadow Auction ATC'!$B$5:$M$36,$A13+1,FALSE),"") -> 0 | H13: =IF($A13<>"",HLOOKUP($B$4,'Intraday ATC'!$B$6:$Y$38,$A13+1,FALSE),"") -> 0
A14: =IF(AND($B$2<>"",SUM(ATCs!A13,'Allocated Capacities'!A13,'Price Spread'!A13,LTN!A13,'Intraday ATC'!A14,'Shadow Auction ATC'!A13,'Congestion Income'!A14)>0),Lists!C9,"") -> 8 | B14: =IF($A14<>"",HLOOKUP($B$4,ATCs!$B$5:$Y$36,$A14+1,FALSE),"") -> N/A | C14: =IF($A14<>"",HLOOKUP($B$4,'Allocated Capacities'!$B$5:$Y$42,$A14+1,FALSE),"") -> 0 | D14: =IF($A14<>"",HLOOKUP($B$4,'Price Spread'!$B$5:$Y$41,$A14+1,FALSE),"") -> 0 | E14: =IF($A14<>"",HLOOKUP($B$4,'Congestion Income'!$N$6:$Y$36,$A14+1,FALSE),"") ->  | F14: =IF($A14<>"",HLOOKUP($B$4,LTN!$B$5:$M$34,$A14+1,FALSE),"") -> 0 | G14: =IF($A14<>"",HLOOKUP($B$4,'Shadow Auction ATC'!$B$5:$M$36,$A14+1,FALSE),"") -> 0 | H14: =IF($A14<>"",HLOOKUP($B$4,'Intraday ATC'!$B$6:$Y$38,$A14+1,FALSE),"") -> 0
A15: =IF(AND($B$2<>"",SUM(ATCs!A14,'Allocated Capacities'!A14,'Price Spread'!A14,LTN!A14,'Intraday ATC'!A15,'Shadow Auction ATC'!A14,'Congestion Income'!A15)>0),Lists!C10,"") -> 9 | B15: =IF($A15<>"",HLOOKUP($B$4,ATCs!$B$5:$Y$36,$A15+1,FALSE),"") -> N/A | C15: =IF($A15<>"",HLOOKUP($B$4,'Allocated Capacities'!$B$5:$Y$42,$A15+1,FALSE),"") -> 0 | D15: =IF($A15<>"",HLOOKUP($B$4,'Price Spread'!$B$5:$Y$41,$A15+1,FALSE),"") -> 0 | E15: =IF($A15<>"",HLOOKUP($B$4,'Congestion Income'!$N$6:$Y$36,$A15+1,FALSE),"") ->  | F15: =IF($A15<>"",HLOOKUP($B$4,LTN!$B$5:$M$34,$A15+1,FALSE),"") -> 0 | G15: =IF($A15<>"",HLOOKUP($B$4,'Shadow Auction ATC'!$B$5:$M$36,$A15+1,FALSE),"") -> 0 | H15: =IF($A15<>"",HLOOKUP($B$4,'Intraday ATC'!$B$6:$Y$38,$A15+1,FALSE),"") -> 0
A16: =IF(AND($B$2<>"",SUM(ATCs!A15,'Allocated Capacities'!A15,'Price Spread'!A15,LTN!A15,'Intraday ATC'!A16,'Shadow Auction ATC'!A15,'Congestion Income'!A16)>0),Lists!C11,"") -> 10 | B16: =IF($A16<>"",HLOOKUP($B$4,ATCs!$B$5:$Y$36,$A16+1,FALSE),"") -> N/A | C16: =IF($A16<>"",HLOOKUP($B$4,'Allocated Capacities'!$B$5:$Y$42,$A16+1,FALSE),"") -> 0 | D16: =IF($A16<>"",HLOOKUP($B$4,'Price Spread'!$B$5:$Y$41,$A16+1,FALSE),"") -> 0 | E16: =IF($A16<>"",HLOOKUP($B$4,'Congestion Income'!$N$6:$Y$36,$A16+1,FALSE),"") ->  | F16: =IF($A16<>"",HLOOKUP($B$4,LTN!$B$5:$M$34,$A16+1,FALSE),"") -> 0 | G16: =IF($A16<>"",HLOOKUP($B$4,'Shadow Auction ATC'!$B$5:$M$36,$A16+1,FALSE),"") -> 0 | H16: =IF($A16<>"",HLOOKUP($B$4,'Intraday ATC'!$B$6:$Y$38,$A16+1,FALSE),"") -> 0
A17: =IF(AND($B$2<>"",SUM(ATCs!A16,'Allocated Capacities'!A16,'Price Spread'!A16,LTN!A16,'Intraday ATC'!A17,'Shadow Auction ATC'!A16,'Congestion Income'!A17)>0),Lists!C12,"") -> 11 | B17: =IF($A17<>"",HLOOKUP($B$4,ATCs!$B$5:$Y$36,$A17+1,FALSE),"") -> N/A | C17: =IF($A17<>"",HLOOKUP($B$4,'Allocated Capacities'!$B$5:$Y$42,$A17+1,FALSE),"") -> 0 | D17: =IF($A17<>"",HLOOKUP($B$4,'Price Spread'!$B$5:$Y$41,$A17+1,FALSE),"") -> 0 | E17: =IF($A17<>"",HLOOKUP($B$4,'Congestion Income'!$N$6:$Y$36,$A17+1,FALSE),"") ->  | F17: =IF($A17<>"",HLOOKUP($B$4,LTN!$B$5:$M$34,$A17+1,FALSE),"") -> 0 | G17: =IF($A17<>"",HLOOKUP($B$4,'Shadow Auction ATC'!$B$5:$M$36,$A17+1,FALSE),"") -> 0 | H17: =IF($A17<>"",HLOOKUP($B$4,'Intraday ATC'!$B$6:$Y$38,$A17+1,FALSE),"") -> 0
A18: =IF(AND($B$2<>"",SUM(ATCs!A17,'Allocated Capacities'!A17,'Price Spread'!A17,LTN!A17,'Intraday ATC'!A18,'Shadow Auction ATC'!A17,'Congestion Income'!A18)>0),Lists!C13,"") -> 12 | B18: =IF($A18<>"",HLOOKUP($B$4,ATCs!$B$5:$Y$36,$A18+1,FALSE),"") -> N/A | C18: =IF($A18<>"",HLOOKUP($B$4,'Allocated Capacities'!$B$5:$Y$42,$A18+1,FALSE),"") -> 0 | D18: =IF($A18<>"",HLOOKUP($B$4,'Price Spread'!$B$5:$Y$41,$A18+1,FALSE),"") -> 0 | E18: =IF($A18<>"",HLOOKUP($B$4,'Congestion Income'!$N$6:$Y$36,$A18+1,FALSE),"") ->  | F18: =IF($A18<>"",HLOOKUP($B$4,LTN!$B$5:$M$34,$A18+1,FALSE),"") -> 0 | G18: =IF($A18<>"",HLOOKUP($B$4,'Shadow Auction ATC'!$B$5:$M$36,$A18+1,FALSE),"") -> 0 | H18: =IF($A18<>"",HLOOKUP($B$4,'Intraday ATC'!$B$6:$Y$38,$A18+1,FALSE),"") -> 0
A19: =IF(AND($B$2<>"",SUM(ATCs!A18,'Allocated Capacities'!A18,'Price Spread'!A18,LTN!A18,'Intraday ATC'!A19,'Shadow Auction ATC'!A18,'Congestion Income'!A19)>0),Lists!C14,"") -> 13 | B19: =IF($A19<>"",HLOOKUP($B$4,ATCs!$B$5:$Y$36,$A19+1,FALSE),"") -> N/A | C19: =IF($A19<>"",HLOOKUP($B$4,'Allocated Capacities'!$B$5:$Y$42,$A19+1,FALSE),"") -> 0 | D19: =IF($A19<>"",HLOOKUP($B$4,'Price Spread'!$B$5:$Y$41,$A19+1,FALSE),"") -> 0 | E19: =IF($A19<>"",HLOOKUP($B$4,'Congestion Income'!$N$6:$Y$36,$A19+1,FALSE),"") ->  | F19: =IF($A19<>"",HLOOKUP($B$4,LTN!$B$5:$M$34,$A19+1,FALSE),"") -> 0 | G19: =IF($A19<>"",HLOOKUP($B$4,'Shadow Auction ATC'!$B$5:$M$36,$A19+1,FALSE),"") -> 0 | H19: =IF($A19<>"",HLOOKUP($B$4,'Intraday ATC'!$B$6:$Y$38,$A19+1,FALSE),"") -> 0
A20: =IF(AND($B$2<>"",SUM(ATCs!A19,'Allocated Capacities'!A19,'Price Spread'!A19,LTN!A19,'Intraday ATC'!A20,'Shadow Auction ATC'!A19,'Congestion Income'!A20)>0),Lists!C15,"") -> 14 | B20: =IF($A20<>"",HLOOKUP($B$4,ATCs!$B$5:$Y$36,$A20+1,FALSE),"") -> N/A | C20: =IF($A20<>"",HLOOKUP($B$4,'Allocated Capacities'!$B$5:$Y$42,$A20+1,FALSE),"") -> 0 | D20: =IF($A20<>"",HLOOKUP($B$4,'Price Spread'!$B$5:$Y$41,$A20+1,FALSE),"") -> 0 | E20: =IF($A20<>"",HLOOKUP($B$4,'Congestion Income'!$N$6:$Y$36,$A20+1,FALSE),"") ->  | F20: =IF($A20<>"",HLOOKUP($B$4,LTN!$B$5:$M$34,$A20+1,FALSE),"") -> 0 | G20: =IF($A20<>"",HLOOKUP($B$4,'Shadow Auction ATC'!$B$5:$M$36,$A20+1,FALSE),"") -> 0 | H20: =IF($A20<>"",HLOOKUP($B$4,'Intraday ATC'!$B$6:$Y$38,$A20+1,FALSE),"") -> 0
A21: =IF(AND($B$2<>"",SUM(ATCs!A20,'Allocated Capacities'!A20,'Price Spread'!A20,LTN!A20,'Intraday ATC'!A21,'Shadow Auction ATC'!A20,'Congestion Income'!A21)>0),Lists!C16,"") -> 15 | B21: =IF($A21<>"",HLOOKUP($B$4,ATCs!$B$5:$Y$36,$A21+1,FALSE),"") -> N/A | C21: =IF($A21<>"",HLOOKUP($B$4,'Allocated Capacities'!$B$5:$Y$42,$A21+1,FALSE),"") -> 0 | D21: =IF($A21<>"",HLOOKUP($B$4,'Price Spread'!$B$5:$Y$41,$A21+1,FALSE),"") -> 0 | E21: =IF($A21<>"",HLOOKUP($B$4,'Congestion Income'!$N$6:$Y$36,$A21+1,FALSE),"") ->  | F21: =IF($A21<>"",HLOOKUP($B$4,LTN!$B$5:$M$34,$A21+1,FALSE),"") -> 0 | G21: =IF($A21<>"",HLOOKUP($B$4,'Shadow Auction ATC'!$B$5:$M$36,$A21+1,FALSE),"") -> 0 | H21: =IF($A21<>"",HLOOKUP($B$4,'Intraday ATC'!$B$6:$Y$38,$A21+1,FALSE),"") -> 0
A22: =IF(AND($B$2<>"",SUM(ATCs!A21,'Allocated Capacities'!A21,'Price Spread'!A21,LTN!A21,'Intraday ATC'!A22,'Shadow Auction ATC'!A21,'Congestion Income'!A22)>0),Lists!C17,"") -> 16 | B22: =IF($A22<>"",HLOOKUP($B$4,ATCs!$B$5:$Y$36,$A22+1,FALSE),"") -> N/A | C22: =IF($A22<>"",HLOOKUP($B$4,'Allocated Capacities'!$B$5:$Y$42,$A22+1,FALSE),"") -> 0 | D22: =IF($A22<>"",HLOOKUP($B$4,'Price Spread'!$B$5:$Y$41,$A22+1,FALSE),"") -> 0 | E22: =IF($A22<>"",HLOOKUP($B$4,'Congestion Income'!$N$6:$Y$36,$A22+1,FALSE),"") ->  | F22: =IF($A22<>"",HLOOKUP($B$4,LTN!$B$5:$M$34,$A22+1,FALSE),"") -> 0 | G22: =IF($A22<>"",HLOOKUP($B$4,'Shadow Auction ATC'!$B$5:$M$36,$A22+1,FALSE),"") -> 0 | H22: =IF($A22<>"",HLOOKUP($B$4,'Intraday ATC'!$B$6:$Y$38,$A22+1,FALSE),"") -> 0
A23: =IF(AND($B$2<>"",SUM(ATCs!A22,'Allocated Capacities'!A22,'Price Spread'!A22,LTN!A22,'Intraday ATC'!A23,'Shadow Auction ATC'!A22,'Congestion Income'!A23)>0),Lists!C18,"") -> 17 | B23: =IF($A23<>"",HLOOKUP($B$4,ATCs!$B$5:$Y$36,$A23+1,FALSE),"") -> N/A | C23: =IF($A23<>"",HLOOKUP($B$4,'Allocated Capacities'!$B$5:$Y$42,$A23+1,FALSE),"") -> 0 | D23: =IF($A23<>"",HLOOKUP($B$4,'Price Spread'!$B$5:$Y$41,$A23+1,FALSE),"") -> 0 | E23: =IF($A23<>"",HLOOKUP($B$4,'Congestion Income'!$N$6:$Y$36,$A23+1,FALSE),"") ->  | F23: =IF($A23<>"",HLOOKUP($B$4,LTN!$B$5:$M$34,$A23+1,FALSE),"") -> 0 | G23: =IF($A23<>"",HLOOKUP($B$4,'Shadow Auction ATC'!$B$5:$M$36,$A23+1,FALSE),"") -> 0 | H23: =IF($A23<>"",HLOOKUP($B$4,'Intraday ATC'!$B$6:$Y$38,$A23+1,FALSE),"") -> 0
A24: =IF(AND($B$2<>"",SUM(ATCs!A23,'Allocated Capacities'!A23,'Price Spread'!A23,LTN!A23,'Intraday ATC'!A24,'Shadow Auction ATC'!A23,'Congestion Income'!A24)>0),Lists!C19,"") -> 18 | B24: =IF($A24<>"",HLOOKUP($B$4,ATCs!$B$5:$Y$36,$A24+1,FALSE),"") -> N/A | C24: =IF($A24<>"",HLOOKUP($B$4,'Allocated Capacities'!$B$5:$Y$42,$A24+1,FALSE),"") -> 0 | D24: =IF($A24<>"",HLOOKUP($B$4,'Price Spread'!$B$5:$Y$41,$A24+1,FALSE),"") -> 0 | E24: =IF($A24<>"",HLOOKUP($B$4,'Congestion Income'!$N$6:$Y$36,$A24+1,FALSE),"") ->  | F24: =IF($A24<>"",HLOOKUP($B$4,LTN!$B$5:$M$34,$A24+1,FALSE),"") -> 0 | G24: =IF($A24<>"",HLOOKUP($B$4,'Shadow Auction ATC'!$B$5:$M$36,$A24+1,FALSE),"") -> 0 | H24: =IF($A24<>"",HLOOKUP($B$4,'Intraday ATC'!$B$6:$Y$38,$A24+1,FALSE),"") -> 0
A25: =IF(AND($B$2<>"",SUM(ATCs!A24,'Allocated Capacities'!A24,'Price Spread'!A24,LTN!A24,'Intraday ATC'!A25,'Shadow Auction ATC'!A24,'Congestion Income'!A25)>0),Lists!C20,"") -> 19 | B25: =IF($A25<>"",HLOOKUP($B$4,ATCs!$B$5:$Y$36,$A25+1,FALSE),"") -> N/A | C25: =IF($A25<>"",HLOOKUP($B$4,'Allocated Capacities'!$B$5:$Y$42,$A25+1,FALSE),"") -> 0 | D25: =IF($A25<>"",HLOOKUP($B$4,'Price Spread'!$B$5:$Y$41,$A25+1,FALSE),"") -> 0 | E25: =IF($A25<>"",HLOOKUP($B$4,'Congestion Income'!$N$6:$Y$36,$A25+1,FALSE),"") ->  | F25: =IF($A25<>"",HLOOKUP($B$4,LTN!$B$5:$M$34,$A25+1,FALSE),"") -> 0 | G25: =IF($A25<>"",HLOOKUP($B$4,'Shadow Auction ATC'!$B$5:$M$36,$A25+1,FALSE),"") -> 0 | H25: =IF($A25<>"",HLOOKUP($B$4,'Intraday ATC'!$B$6:$Y$38,$A25+1,FALSE),"") -> 0
A26: =IF(AND($B$2<>"",SUM(ATCs!A25,'Allocated Capacities'!A25,'Price Spread'!A25,LTN!A25,'Intraday ATC'!A26,'Shadow Auction ATC'!A25,'Congestion Income'!A26)>0),Lists!C21,"") -> 20 | B26: =IF($A26<>"",HLOOKUP($B$4,ATCs!$B$5:$Y$36,$A26+1,FALSE),"") -> N/A | C26: =IF($A26<>"",HLOOKUP($B$4,'Allocated Capacities'!$B$5:$Y$42,$A26+1,FALSE),"") -> 0 | D26: =IF($A26<>"",HLOOKUP($B$4,'Price Spread'!$B$5:$Y$41,$A26+1,FALSE),"") -> 0 | E26: =IF($A26<>"",HLOOKUP($B$4,'Congestion Income'!$N$6:$Y$36,$A26+1,FALSE),"") ->  | F26: =IF($A26<>"",HLOOKUP($B$4,LTN!$B$5:$M$34,$A26+1,FALSE),"") -> 0 | G26: =IF($A26<>"",HLOOKUP($B$4,'Shadow Auction ATC'!$B$5:$M$36,$A26+1,FALSE),"") -> 0 | H26: =IF($A26<>"",HLOOKUP($B$4,'Intraday ATC'!$B$6:$Y$38,$A26+1,FALSE),"") -> 0
A27: =IF(AND($B$2<>"",SUM(ATCs!A26,'Allocated Capacities'!A26,'Price Spread'!A26,LTN!A26,'Intraday ATC'!A27,'Shadow Auction ATC'!A26,'Congestion Income'!A27)>0),Lists!C22,"") -> 21 | B27: =IF($A27<>"",HLOOKUP($B$4,ATCs!$B$5:$Y$36,$A27+1,FALSE),"") -> N/A | C27: =IF($A27<>"",HLOOKUP($B$4,'Allocated Capacities'!$B$5:$Y$42,$A27+1,FALSE),"") -> 0 | D27: =IF($A27<>"",HLOOKUP($B$4,'Price Spread'!$B$5:$Y$41,$A27+1,FALSE),"") -> 0 | E27: =IF($A27<>"",HLOOKUP($B$4,'Congestion Income'!$N$6:$Y$36,$A27+1,FALSE),"") ->  | F27: =IF($A27<>"",HLOOKUP($B$4,LTN!$B$5:$M$34,$A27+1,FALSE),"") -> 0 | G27: =IF($A27<>"",HLOOKUP($B$4,'Shadow Auction ATC'!$B$5:$M$36,$A27+1,FALSE),"") -> 0 | H27: =IF($A27<>"",HLOOKUP($B$4,'Intraday ATC'!$B$6:$Y$38,$A27+1,FALSE),"") -> 0
A28: =IF(AND($B$2<>"",SUM(ATCs!A27,'Allocated Capacities'!A27,'Price Spread'!A27,LTN!A27,'Intraday ATC'!A28,'Shadow Auction ATC'!A27,'Congestion Income'!A28)>0),Lists!C23,"") -> 22 | B28: =IF($A28<>"",HLOOKUP($B$4,ATCs!$B$5:$Y$36,$A28+1,FALSE),"") -> N/A | C28: =IF($A28<>"",HLOOKUP($B$4,'Allocated Capacities'!$B$5:$Y$42,$A28+1,FALSE),"") -> 0 | D28: =IF($A28<>"",HLOOKUP($B$4,'Price Spread'!$B$5:$Y$41,$A28+1,FALSE),"") -> 0 | E28: =IF($A28<>"",HLOOKUP($B$4,'Congestion Income'!$N$6:$Y$36,$A28+1,FALSE),"") ->  | F28: =IF($A28<>"",HLOOKUP($B$4,LTN!$B$5:$M$34,$A28+1,FALSE),"") -> 0 | G28: =IF($A28<>"",HLOOKUP($B$4,'Shadow Auction ATC'!$B$5:$M$36,$A28+1,FALSE),"") -> 0 | H28: =IF($A28<>"",HLOOKUP($B$4,'Intraday ATC'!$B$6:$Y$38,$A28+1,FALSE),"") -> 0
A29: =IF(AND($B$2<>"",SUM(ATCs!A28,'Allocated Capacities'!A28,'Price Spread'!A28,LTN!A28,'Intraday ATC'!A29,'Shadow Auction ATC'!A28,'Congestion Income'!A29)>0),Lists!C24,"") -> 23 | B29: =IF($A29<>"",HLOOKUP($B$4,ATCs!$B$5:$Y$36,$A29+1,FALSE),"") -> N/A | C29: =IF($A29<>"",HLOOKUP($B$4,'Allocated Capacities'!$B$5:$Y$42,$A29+1,FALSE),"") -> 0 | D29: =IF($A29<>"",HLOOKUP($B$4,'Price Spread'!$B$5:$Y$41,$A29+1,FALSE),"") -> 0 | E29: =IF($A29<>"",HLOOKUP($B$4,'Congestion Income'!$N$6:$Y$36,$A29+1,FALSE),"") ->  | F29: =IF($A29<>"",HLOOKUP($B$4,LTN!$B$5:$M$34,$A29+1,FALSE),"") -> 0 | G29: =IF($A29<>"",HLOOKUP($B$4,'Shadow Auction ATC'!$B$5:$M$36,$A29+1,FALSE),"") -> 0 | H29: =IF($A29<>"",HLOOKUP($B$4,'Intraday ATC'!$B$6:$Y$38,$A29+1,FALSE),"") -> 0
A30: =IF(AND($B$2<>"",SUM(ATCs!A29,'Allocated Capacities'!A29,'Price Spread'!A29,LTN!A29,'Intraday ATC'!A30,'Shadow Auction ATC'!A29,'Congestion Income'!A30)>0),Lists!C25,"") -> 24 | B30: =IF($A30<>"",HLOOKUP($B$4,ATCs!$B$5:$Y$36,$A30+1,FALSE),"") -> N/A | C30: =IF($A30<>"",HLOOKUP($B$4,'Allocated Capacities'!$B$5:$Y$42,$A30+1,FALSE),"") -> 0 | D30: =IF($A30<>"",HLOOKUP($B$4,'Price Spread'!$B$5:$Y$41,$A30+1,FALSE),"") -> 0 | E30: =IF($A30<>"",HLOOKUP($B$4,'Congestion Income'!$N$6:$Y$36,$A30+1,FALSE),"") ->  | F30: =IF($A30<>"",HLOOKUP($B$4,LTN!$B$5:$M$34,$A30+1,FALSE),"") -> 0 | G30: =IF($A30<>"",HLOOKUP($B$4,'Shadow Auction ATC'!$B$5:$M$36,$A30+1,FALSE),"") -> 0 | H30: =IF($A30<>"",HLOOKUP($B$4,'Intraday ATC'!$B$6:$Y$38,$A30+1,FALSE),"") -> 0
A31: =IF(AND($B$2<>"",SUM(ATCs!A30,'Allocated Capacities'!A30,'Price Spread'!A30,LTN!A30,'Intraday ATC'!A31,'Shadow Auction ATC'!A30,'Congestion Income'!A31)>0),Lists!C26,"") ->  | B31: =IF($A31<>"",HLOOKUP($B$4,ATCs!$B$5:$Y$36,$A31+1,FALSE),"") ->  | C31: =IF($A31<>"",HLOOKUP($B$4,'Allocated Capacities'!$B$5:$Y$42,$A31+1,FALSE),"") ->  | D31: =IF($A31<>"",HLOOKUP($B$4,'Price Spread'!$B$5:$Y$41,$A31+1,FALSE),"") ->  | E31: =IF($A31<>"",HLOOKUP($B$4,'Congestion Income'!$N$6:$Y$36,$A31+1,FALSE),"") ->  | F31: =IF($A31<>"",HLOOKUP($B$4,LTN!$B$5:$M$34,$A31+1,FALSE),"") ->  | G31: =IF($A31<>"",HLOOKUP($B$4,'Shadow Auction ATC'!$B$5:$M$36,$A31+1,FALSE),"") ->  | H31: =IF($A31<>"",HLOOKUP($B$4,'Intraday ATC'!$B$6:$Y$38,$A31+1,FALSE),"") -> 

Sheet Virgin domain initial comp.
A2: Date: | B2: 2020-11-04 | D2: The data for 2020-11-04 was not loaded automatically, please reselect the date in this sheet to load the data.
A4: FileId | B4: DeliveryDate | C4: Period | D4: Row | E4: OutageName | F4: EIC_Code | G4: CriticalBranchName | H4: EIC_Code | I4: Presolved | J4: RemainingAvailableMargin | K4: Fmax | L4: Fref | M4: FRM | N4: FAV | O4: AMR | P4: AMR_Exclusion | Q4: AMR_ExclusionJustification | R4: BiddingArea_Shortname | S4: Factor | T4: BiddingArea_Shortname | U4: Factor | V4: BiddingArea_Shortname | W4: Factor | X4: BiddingArea_Shortname | Y4: Factor | Z4: BiddingArea_Shortname | AA4: Factor | AB4: BiddingArea_Shortname | AC4: Factor | AD4: BiddingArea_Shortname | AE4: Factor

Sheet PTDFs_Early Publication
A2: Date: | B2: 2020-11-04 | D2: The data for 2020-11-04 has been retrieved successfully.
C4: ALBE-hub | D4: ALDE-hub | E4: AT-hub (MW) | F4: BE-hub (MW) | G4: DE-hub (MW) | H4: FR-hub (MW) | I4: NL-hub (MW) | J4: Sum
B5: Test Hub to Hub | C5: ='CWE Market view'!E13 -> 0 | D5: =-'CWE Market view'!E13 -> 0 | E5: =-'CWE Market view'!E12 -> 0 | F5: =-'CWE Market view'!E13-'CWE Market view'!E16+'CWE Market view'!E18 -> 0 | G5: ='CWE Market view'!E12+'CWE Market view'!E13+'CWE Market view'!E14+'CWE Market view'!E15 -> 0 | H5: =-'CWE Market view'!E15-'CWE Market view'!E17-'CWE Market view'!E18 -> 0 | I5: =-'CWE Market view'!E14+'CWE Market view'!E16+'CWE Market view'!E17 -> 0 | J5: =SUM(C5:I5) -> 0
B6: Test Hub Positions | C6: ='CWE Market view'!E21 -> 0 | D6: ='CWE Market view'!E22 -> 0 | E6: ='CWE Market view'!E23 -> 0 | F6: ='CWE Market view'!E25 -> 0 | G6: ='CWE Market view'!E24 -> 0 | H6: ='CWE Market view'!E26 -> 0 | I6: ='CWE Market view'!E27 -> 0 | J6: =SUM(C6:I6) -> 0
O8: Test Hub to Hub | P8: # of constraints violated | Q8: Test Hub positions
B9: ID | C9: Critical Branch name | D9: EIC code | E9: Critical Outage name | F9: EIC code | G9: ALBE-hub | H9: ALDE-hub | I9: AT-hub | J9: BE-hub | K9: DE-hub | L9: FR-hub | M9: NL-hub | N9: RAM (MW) | O9: =SUM(O10:O2000) -> 0 | Q9: =SUM(Q10:Q2000) -> 0
A10: hour 1 | B10: 1 | C10: [D2-NL] Diele - Meeden 380 Black [DIR] [NL]_LTA_corner#05_#17 | D10: 10T-DE-NL-00001V | E10: [D2-NL] Diele - Meeden 380 White | F10: 10T-DE-NL-00002T | G10: 0 | H10: 0 | I10: 0.52395 | J10: 0.4232 | K10: 0.57182 | L10: 0.4684 | M10: 0 | N10: 1292 | O10: =IF((G10*ALBE+H10*ALDE+I10*AT+J10*BE+K10*DE+L10*FR+M10*NL)>(N10),1,0) -> 0 | Q10: =IF((C$6*G10+D$6*H10+E$6*I10+F$6*J10+G$6*K10+H$6*L10+I$6*M10)>(N10),1,0) -> 0
B11: 2 | C11: [D2-NL] Diele - Meeden 380 Black [DIR] [NL]_LTA_corner#05_#1 | D11: 10T-DE-NL-00001V | E11: [D2-NL] Diele - Meeden 380 White | F11: 10T-DE-NL-00002T | G11: 0 | H11: 0 | I11: 0.56623 | J11: 0.33776 | K11: 0.60712 | L11: 0.44353 | M11: 0 | N11: 1406 | O11: =IF((G11*ALBE+H11*ALDE+I11*AT+J11*BE+K11*DE+L11*FR+M11*NL)>(N11),1,0) -> 0 | Q11: =IF((C$6*G11+D$6*H11+E$6*I11+F$6*J11+G$6*K11+H$6*L11+I$6*M11)>(N11),1,0) -> 0
B12: 3 | C12: [D2-NL] Diele - Meeden 380 Black [DIR] [D2]_LTA_corner#01_#6 | D12: 10T-DE-NL-00001V | E12: [D2-NL] Diele - Meeden 380 White | F12: 10T-DE-NL-00002T | G12: 0 | H12: 0 | I12: -0.88542 | J12: 0.19077 | K12: 0.37848 | L12: 0.19077 | M12: 0 | N12: 6808 | O12: =IF((G12*ALBE+H12*ALDE+I12*AT+J12*BE+K12*DE+L12*FR+M12*NL)>(N12),1,0) -> 0 | Q12: =IF((C$6*G12+D$6*H12+E$6*I12+F$6*J12+G$6*K12+H$6*L12+I$6*M12)>(N12),1,0) -> 0
B13: 4 | C13: [D2-NL] Diele - Meeden 380 Black [DIR] [D2]_LTA_corner#05_#1 | D13: 10T-DE-NL-00001V | E13: [D2-NL] Diele - Meeden 380 White | F13: 10T-DE-NL-00002T | G13: 0 | H13: 0 | I13: 0.54274 | J13: 0.36807 | K13: 0.60961 | L13: 0.44535 | M13: 0 | N13: 1505 | O13: =IF((G13*ALBE+H13*ALDE+I13*AT+J13*BE+K13*DE+L13*FR+M13*NL)>(N13),1,0) -> 0 | Q13: =IF((C$6*G13+D$6*H13+E$6*I13+F$6*J13+G$6*K13+H$6*L13+I$6*M13)>(N13),1,0) -> 0
B14: 5 | C14: [BE-FR] Achene - Lonny 380.19 [DIR] [BE]_LTA_corner#02_#4 | D14: 10T-BE-FR-000015 | E14: [BE-BE] Avelgem - Horta 380.102 | F14: 22T20161020---1E | G14: 0 | H14: 0 | I14: -0.41008 | J14: 0.47097 | K14: -0.29021 | L14: -0.72512 | M14: 0 | N14: 2419 | O14: =IF((G14*ALBE+H14*ALDE+I14*AT+J14*BE+K14*DE+L14*FR+M14*NL)>(N14),1,0) -> 0 | Q14: =IF((C$6*G14+D$6*H14+E$6*I14+F$6*J14+G$6*K14+H$6*L14+I$6*M14)>(N14),1,0) -> 0
B15: 6 | C15: [D4-AT] Buers - Westtirol 421 weiss [OPP] [D4]_LTA_corner#17_#3 | D15: 10T-AT-DE-000061 | E15: [AT-AT] Westtirol Transformer WTRHU41 | F15: 14T-38220-WT041O | G15: 0 | H15: 0 | I15: 0.99675 | J15: 0.00561 | K15: 0.08023 | L15: -0.00404 | M15: 0 | N15: 4597 | O15: =IF((G15*ALBE+H15*ALDE+I15*AT+J15*BE+K15*DE+L15*FR+M15*NL)>(N15),1,0) -> 0 | Q15: =IF((C$6*G15+D$6*H15+E$6*I15+F$6*J15+G$6*K15+H$6*L15+I$6*M15)>(N15),1,0) -> 0
B16: 7 | C16: [D2-NL] Diele - Meeden 380 Black [DIR] [NL]_LTA_corner#01_#7 | D16: 10T-DE-NL-00001V | E16: [D2-NL] Diele - Meeden 380 White | F16: 10T-DE-NL-00002T | G16: 0 | H16: 0 | I16: 0.52202 | J16: 0.41739 | K16: 0.61569 | L16: 0.41739 | M16: 0 | N16: 1575 | O16: =IF((G16*ALBE+H16*ALDE+I16*AT+J16*BE+K16*DE+L16*FR+M16*NL)>(N16),1,0) -> 0 | Q16: =IF((C$6*G16+D$6*H16+E$6*I16+F$6*J16+G$6*K16+H$6*L16+I$6*M16)>(N16),1,0) -> 0
B17: 8 | C17: [AT-AT] Westtirol Transformer WTRHU41 [OPP]_LTA_corner#17_#1 | D17: 14T-38220-WT041O | E17: BASECASE | F17: N/A | G17: 0 | H17: 0 | I17: 0.9941 | J17: 0 | K17: 0.07834 | L17: -0.07508 | M17: 0 | N17: 4696 | O17: =IF((G17*ALBE+H17*ALDE+I17*AT+J17*BE+K17*DE+L17*FR+M17*NL)>(N17),1,0) -> 0 | Q17: =IF((C$6*G17+D$6*H17+E$6*I17+F$6*J17+G$6*K17+H$6*L17+I$6*M17)>(N17),1,0) -> 0
B18: 9 | C18: [D4-AT] Buers - Westtirol 421 weiss [OPP] [D4]_LTA_corner#17_#9 | D18: 10T-AT-DE-000061 | E18: [AT-AT] Westtirol Transformer WTRHU41 | F18: 14T-38220-WT041O | G18: 0 | H18: 0 | I18: 0.99624 | J18: 0 | K18: 0.08608 | L18: -0.01009 | M18: 0 | N18: 4581 | O18: =IF((G18*ALBE+H18*ALDE+I18*AT+J18*BE+K18*DE+L18*FR+M18*NL)>(N18),1,0) -> 0 | Q18: =IF((C$6*G18+D$6*H18+E$6*I18+F$6*J18+G$6*K18+H$6*L18+I$6*M18)>(N18),1,0) -> 0
B19: 10 | C19: [BE-BE] PST_ZANDV_2 [N - S]_LTA_corner#13_#10 | D19: 22T20161020---56 | E19: [NL-BE] Rilland - Zandvliet 380 White/30 | F19: 10T-BE-NL-00004C | G19: 0 | H19: 0 | I19: -0.2913 | J19: -0.83229 | K19: -0.24903 | L19: -0.40052 | M19: 0 | N19: 2056 | O19: =IF((G19*ALBE+H19*ALDE+I19*AT+J19*BE+K19*DE+L19*FR+M19*NL)>(N19),1,0) -> 0 | Q19: =IF((C$6*G19+D$6*H19+E$6*I19+F$6*J19+G$6*K19+H$6*L19+I$6*M19)>(N19),1,0) -> 0
B20: 11 | C20: [AT-AT] Westtirol Transformer WTRHU41 [OPP]_LTA_corner#20_#9 | D20: 14T-38220-WT041O | E20: BASECASE | F20: N/A | G20: 0 | H20: 0 | I20: 0.99557 | J20: -0.02524 | K20: 0.05054 | L20: -0.07519 | M20: 0 | N20: 4783 | O20: =IF((G20*ALBE+H20*ALDE+I20*AT+J20*BE+K20*DE+L20*FR+M20*NL)>(N20),1,0) -> 0 | Q20: =IF((C$6*G20+D$6*H20+E$6*I20+F$6*J20+G$6*K20+H$6*L20+I$6*M20)>(N20),1,0) -> 0
B21: 12 | C21: [D2-NL] Diele - Meeden 380 Black [DIR] [D2]_LTA_corner#21_#4 | D21: 10T-DE-NL-00001V | E21: [D2-NL] Diele - Meeden 380 White | F21: 10T-DE-NL-00002T | G21: 0 | H21: 0 | I21: 0.82693 | J21: 0.22978 | K21: 0.40074 | L21: 0.32062 | M21: 0 | N21: 2864 | O21: =IF((G21*ALBE+H21*ALDE+I21*AT+J21*BE+K21*DE+L21*FR+M21*NL)>(N21),1,0) -> 0 | Q21: =IF((C$6*G21+D$6*H21+E$6*I21+F$6*J21+G$6*K21+H$6*L21+I$6*M21)>(N21),1,0) -> 0
B22: 13 | C22: [D2-NL] Diele - Meeden 380 Black [DIR] [D2]_LTA_corner#01_#3 | D22: 10T-DE-NL-00001V | E22: [D2-NL] Diele - Meeden 380 White | F22: 10T-DE-NL-00002T | G22: 0 | H22: 0 | I22: -0.79381 | J22: 0.26462 | K22: 0.4794 | L22: 0.26462 | M22: 0 | N22: 7034 | O22: =IF((G22*ALBE+H22*ALDE+I22*AT+J22*BE+K22*DE+L22*FR+M22*NL)>(N22),1,0) -> 0 | Q22: =IF((C$6*G22+D$6*H22+E$6*I22+F$6*J22+G$6*K22+H$6*L22+I$6*M22)>(N22),1,0) -> 0
B23: 14 | C23: [D4-AT] Buers - Westtirol 421 weiss [OPP] [D4]_LTA_corner#17_#21 | D23: 10T-AT-DE-000061 | E23: [AT-AT] Westtirol Transformer WTRHU41 | F23: 14T-38220-WT041O | G23: 0 | H23: 0 | I23: 0.99741 | J23: 0.005 | K23: 0.07015 | L23: -0.01494 | M23: 0 | N23: 4644 | O23: =IF((G23*ALBE+H23*ALDE+I23*AT+J23*BE+K23*DE+L23*FR+M23*NL)>(N23),1,0) -> 0 | Q23: =IF((C$6*G23+D$6*H23+E$6*I23+F$6*J23+G$6*K23+H$6*L23+I$6*M23)>(N23),1,0) -> 0
B24: 15 | C24: [AT-AT] Westtirol Transformer WTRHU41 [OPP]_LTA_corner#20_#16 | D24: 14T-38220-WT041O | E24: BASECASE | F24: N/A | G24: 0 | H24: 0 | I24: 0.98642 | J24: -0.0745 | K24: 0.12603 | L24: -0.0745 | M24: 0 | N24: 4539 | O24: =IF((G24*ALBE+H24*ALDE+I24*AT+J24*BE+K24*DE+L24*FR+M24*NL)>(N24),1,0) -> 0 | Q24: =IF((C$6*G24+D$6*H24+E$6*I24+F$6*J24+G$6*K24+H$6*L24+I$6*M24)>(N24),1,0) -> 0
B25: 16 | C25: [AT-AT] Westtirol Transformer WTRHU41 [OPP]_LTA_corner#20_#5 | D25: 14T-38220-WT041O | E25: BASECASE | F25: N/A | G25: 0 | H25: 0 | I25: 0.99269 | J25: -0.0213 | K25: 0.11687 | L25: -0.0213 | M25: 0 | N25: 4501 | O25: =IF((G25*ALBE+H25*ALDE+I25*AT+J25*BE+K25*DE+L25*FR+M25*NL)>(N25),1,0) -> 0 | Q25: =IF((C$6*G25+D$6*H25+E$6*I25+F$6*J25+G$6*K25+H$6*L25+I$6*M25)>(N25),1,0) -> 0
B26: 17 | C26: [D2-NL] Diele - Meeden 380 Black [DIR] [NL]_LTA_corner#05_#25 | D26: 10T-DE-NL-00001V | E26: [D2-NL] Diele - Meeden 380 White | F26: 10T-DE-NL-00002T | G26: 0 | H26: 0 | I26: 0.57093 | J26: 0.26132 | K26: 0.6209 | L26: 0.46929 | M26: 0 | N26: 1579 | O26: =IF((G26*ALBE+H26*ALDE+I26*AT+J26*BE+K26*DE+L26*FR+M26*NL)>(N26),1,0) -> 0 | Q26: =IF((C$6*G26+D$6*H26+E$6*I26+F$6*J26+G$6*K26+H$6*L26+I$6*M26)>(N26),1,0) -> 0
B27: 18 | C27: [AT-AT] Westtirol Transformer WTRHU41 [OPP]_LTA_corner#20_#6 | D27: 14T-38220-WT041O | E27: BASECASE | F27: N/A | G27: 0 | H27: 0 | I27: 0.99349 | J27: -0.02519 | K27: 0.1082 | L27: -0.02519 | M27: 0 | N27: 4535 | O27: =IF((G27*ALBE+H27*ALDE+I27*AT+J27*BE+K27*DE+L27*FR+M27*NL)>(N27),1,0) -> 0 | Q27: =IF((C$6*G27+D$6*H27+E$6*I27+F$6*J27+G$6*K27+H$6*L27+I$6*M27)>(N27),1,0) -> 0
B28: 19 | C28: [D2-NL] Diele - Meeden 380 Black [DIR] [NL]_LTA_corner#05_#28 | D28: 10T-DE-NL-00001V | E28: [D2-NL] Diele - Meeden 380 White | F28: 10T-DE-NL-00002T | G28: 0 | H28: 0 | I28: 0.51822 | J28: 0.44066 | K28: 0.56761 | L28: 0.46378 | M28: 0 | N28: 1268 | O28: =IF((G28*ALBE+H28*ALDE+I28*AT+J28*BE+K28*DE+L28*FR+M28*NL)>(N28),1,0) -> 0 | Q28: =IF((C$6*G28+D$6*H28+E$6*I28+F$6*J28+G$6*K28+H$6*L28+I$6*M28)>(N28),1,0) -> 0
B29: 20 | C29: ALDE_import | D29: N/A | E29: BASECASE | F29: N/A | G29: 0 | H29: -1 | I29: 0 | J29: 0 | K29: 0 | L29: 0 | M29: 0 | N29: 0 | O29: =IF((G29*ALBE+H29*ALDE+I29*AT+J29*BE+K29*DE+L29*FR+M29*NL)>(N29),1,0) -> 0 | Q29: =IF((C$6*G29+D$6*H29+E$6*I29+F$6*J29+G$6*K29+H$6*L29+I$6*M29)>(N29),1,0) -> 0
B30: 21 | C30: [D4-AT] Buers - Westtirol 421 weiss [OPP] [D4]_LTA_corner#17_#23 | D30: 10T-AT-DE-000061 | E30: [AT-AT] Westtirol Transformer WTRHU41 | F30: 14T-38220-WT041O | G30: 0 | H30: 0 | I30: 0.99725 | J30: 0 | K30: 0.06998 | L30: -0.02455 | M30: 0 | N30: 4653 | O30: =IF((G30*ALBE+H30*ALDE+I30*AT+J30*BE+K30*DE+L30*FR+M30*NL)>(N30),1,0) -> 0 | Q30: =IF((C$6*G30+D$6*H30+E$6*I30+F$6*J30+G$6*K30+H$6*L30+I$6*M30)>(N30),1,0) -> 0
B31: 22 | C31: [BE-BE] PST_ZANDV_2 [N - S]_LTA_corner#13_#4 | D31: 22T20161020---56 | E31: [NL-BE] Rilland - Zandvliet 380 White/30 | F31: 10T-BE-NL-00004C | G31: 0 | H31: 0 | I31: -0.3989 | J31: -0.60903 | K31: -0.31953 | L31: -0.60652 | M31: 0 | N31: 1570 | O31: =IF((G31*ALBE+H31*ALDE+I31*AT+J31*BE+K31*DE+L31*FR+M31*NL)>(N31),1,0) -> 0 | Q31: =IF((C$6*G31+D$6*H31+E$6*I31+F$6*J31+G$6*K31+H$6*L31+I$6*M31)>(N31),1,0) -> 0
B32: 23 | C32: [D4-AT] Buers - Westtirol 421 weiss [OPP] [D4]_LTA_corner#20_#15 | D32: 10T-AT-DE-000061 | E32: [AT-AT] Westtirol Transformer WTRHU41 | F32: 14T-38220-WT041O | G32: 0 | H32: 0 | I32: 0.94538 | J32: -0.09112 | K32: 0.00221 | L32: -0.31297 | M32: 0 | N32: 5064 | O32: =IF((G32*ALBE+H32*ALDE+I32*AT+J32*BE+K32*DE+L32*FR+M32*NL)>(N32),1,0) -> 0 | Q32: =IF((C$6*G32+D$6*H32+E$6*I32+F$6*J32+G$6*K32+H$6*L32+I$6*M32)>(N32),1,0) -> 0
B33: 24 | C33: [AT-AT] Westtirol Transformer WTRHU41 [OPP]_LTA_corner#20_#7 | D33: 14T-38220-WT041O | E33: BASECASE | F33: N/A | G33: 0 | H33: 0 | I33: 0.99356 | J33: -0.02058 | K33: 0.10953 | L33: -0.02058 | M33: 0 | N33: 4524 | O33: =IF((G33*ALBE+H33*ALDE+I33*AT+J33*BE+K33*DE+L33*FR+M33*NL)>(N33),1,0) -> 0 | Q33: =IF((C$6*G33+D$6*H33+E$6*I33+F$6*J33+G$6*K33+H$6*L33+I$6*M33)>(N33),1,0) -> 0
B34: 25 | C34: [D2-D7] Y - Meppen (- Doerpen/West - Niederlangen) Emsland O weiss EOWS [DIR] [D2] | D34: 11T-D2-D7-00001H | E34: [D2-D7] Doerpen/West - Hanekenfaehr Emsland W blau EWBL | F34: 11T-D2-D7-00002F | G34: 0.01071 | H34: -0.01148 | I34: -0.00327 | J34: 0.01296 | K34: -0.01347 | L34: 0.00018 | M34: 0.07967 | N34: 401 | O34: =IF((G34*ALBE+H34*ALDE+I34*AT+J34*BE+K34*DE+L34*FR+M34*NL)>(N34),1,0) -> 0 | Q34: =IF((C$6*G34+D$6*H34+E$6*I34+F$6*J34+G$6*K34+H$6*L34+I$6*M34)>(N34),1,0) -> 0
B35: 26 | C35: [BE-BE] PST_ZANDV_2 [N - S]_LTA_corner#13_#6 | D35: 22T20161020---56 | E35: [NL-BE] Rilland - Zandvliet 380 White/30 | F35: 10T-BE-NL-00004C | G35: 0 | H35: 0 | I35: -0.36589 | J35: -0.73598 | K35: -0.28189 | L35: -0.49497 | M35: 0 | N35: 1967 | O35: =IF((G35*ALBE+H35*ALDE+I35*AT+J35*BE+K35*DE+L35*FR+M35*NL)>(N35),1,0) -> 0 | Q35: =IF((C$6*G35+D$6*H35+E$6*I35+F$6*J35+G$6*K35+H$6*L35+I$6*M35)>(N35),1,0) -> 0
B36: 27 | C36: [D2-NL] Diele - Meeden 380 Black [DIR] [D2]_LTA_corner#05_#5 | D36: 10T-DE-NL-00001V | E36: [D2-NL] Diele - Meeden 380 White | F36: 10T-DE-NL-00002T | G36: 0 | H36: 0 | I36: 0.59046 | J36: 0.33662 | K36: 0.59046 | L36: 0.4352 | M36: 0 | N36: 1170 | O36: =IF((G36*ALBE+H36*ALDE+I36*AT+J36*BE+K36*DE+L36*FR+M36*NL)>(N36),1,0) -> 0 | Q36: =IF((C$6*G36+D$6*H36+E$6*I36+F$6*J36+G$6*K36+H$6*L36+I$6*M36)>(N36),1,0) -> 0
B37: 28 | C37: [BE-BE] PST_ZANDV_2 [N - S]_LTA_corner#13_#3 | D37: 22T20161020---56 | E37: [NL-BE] Rilland - Zandvliet 380 White/30 | F37: 10T-BE-NL-00004C | G37: 0 | H37: 0 | I37: -0.29097 | J37: -0.81353 | K37: -0.23327 | L37: -0.4462 | M37: 0 | N37: 2047 | O37: =IF((G37*ALBE+H37*ALDE+I37*AT+J37*BE+K37*DE+L37*FR+M37*NL)>(N37),1,0) -> 0 | Q37: =IF((C$6*G37+D$6*H37+E$6*I37+F$6*J37+G$6*K37+H$6*L37+I$6*M37)>(N37),1,0) -> 0
B38: 29 | C38: [D4-AT] Buers - Westtirol 421 weiss [OPP] [D4]_LTA_corner#20_#41 | D38: 10T-AT-DE-000061 | E38: [AT-AT] Westtirol Transformer WTRHU41 | F38: 14T-38220-WT041O | G38: 0 | H38: 0 | I38: 0.94523 | J38: -0.09166 | K38: 0.00158 | L38: -0.31325 | M38: 0 | N38: 5066 | O38: =IF((G38*ALBE+H38*ALDE+I38*AT+J38*BE+K38*DE+L38*FR+M38*NL)>(N38),1,0) -> 0 | Q38: =IF((C$6*G38+D$6*H38+E$6*I38+F$6*J38+G$6*K38+H$6*L38+I$6*M38)>(N38),1,0) -> 0
B39: 30 | C39: [AT-AT] Westtirol Transformer WTRHU41 [OPP]_LTA_corner#20_#12 | D39: 14T-38220-WT041O | E39: BASECASE | F39: N/A | G39: 0 | H39: 0 | I39: 0.98226 | J39: -0.0249 | K39: 0.17043 | L39: -0.07418 | M39: 0 | N39: 4389 | O39: =IF((G39*ALBE+H39*ALDE+I39*AT+J39*BE+K39*DE+L39*FR+M39*NL)>(N39),1,0) -> 0 | Q39: =IF((C$6*G39+D$6*H39+E$6*I39+F$6*J39+G$6*K39+H$6*L39+I$6*M39)>(N39),1,0) -> 0
B40: 31 | C40: [AT-AT] Westtirol Transformer WTRHU41 [OPP]_LTA_corner#20_#20 | D40: 14T-38220-WT041O | E40: BASECASE | F40: N/A | G40: 0 | H40: 0 | I40: 0.98677 | J40: -0.08042 | K40: 0.11551 | L40: -0.08042 | M40: 0 | N40: 4580 | O40: =IF((G40*ALBE+H40*ALDE+I40*AT+J40*BE+K40*DE+L40*FR+M40*NL)>(N40),1,0) -> 0 | Q40: =IF((C$6*G40+D$6*H40+E$6*I40+F$6*J40+G$6*K40+H$6*L40+I$6*M40)>(N40),1,0) -> 0
B41: 32 | C41: [AT-AT] Westtirol Transformer WTRHU41 [OPP]_LTA_corner#17_#4 | D41: 14T-38220-WT041O | E41: BASECASE | F41: N/A | G41: 0 | H41: 0 | I41: 0.98696 | J41: 0 | K41: 0.1162 | L41: -0.11142 | M41: 0 | N41: 4616 | O41: =IF((G41*ALBE+H41*ALDE+I41*AT+J41*BE+K41*DE+L41*FR+M41*NL)>(N41),1,0) -> 0 | Q41: =IF((C$6*G41+D$6*H41+E$6*I41+F$6*J41+G$6*K41+H$6*L41+I$6*M41)>(N41),1,0) -> 0
B42: 33 | C42: [D2-NL] Diele - Meeden 380 Black [DIR] [NL]_LTA_corner#05_#30 | D42: 10T-DE-NL-00001V | E42: [D2-NL] Diele - Meeden 380 White | F42: 10T-DE-NL-00002T | G42: 0 | H42: 0 | I42: 0.57675 | J42: 0.18826 | K42: 0.65458 | L42: 0.45103 | M42: 0 | N42: 1850 | O42: =IF((G42*ALBE+H42*ALDE+I42*AT+J42*BE+K42*DE+L42*FR+M42*NL)>(N42),1,0) -> 0 | Q42: =IF((C$6*G42+D$6*H42+E$6*I42+F$6*J42+G$6*K42+H$6*L42+I$6*M42)>(N42),1,0) -> 0
B43: 34 | C43: [D2-NL] Diele - Meeden 380 Black [DIR] [NL]_LTA_corner#05_#32 | D43: 10T-DE-NL-00001V | E43: [D2-NL] Diele - Meeden 380 White | F43: 10T-DE-NL-00002T | G43: 0 | H43: 0 | I43: 0.57454 | J43: 0.25122 | K43: 0.62437 | L43: 0.4658 | M43: 0 | N43: 1594 | O43: =IF((G43*ALBE+H43*ALDE+I43*AT+J43*BE+K43*DE+L43*FR+M43*NL)>(N43),1,0) -> 0 | Q43: =IF((C$6*G43+D$6*H43+E$6*I43+F$6*J43+G$6*K43+H$6*L43+I$6*M43)>(N43),1,0) -> 0
B44: 35 | C44: [D2-NL] Diele - Meeden 380 Black [DIR] [NL]_LTA_corner#05_#5 | D44: 10T-DE-NL-00001V | E44: [D2-NL] Diele - Meeden 380 White | F44: 10T-DE-NL-00002T | G44: 0 | H44: 0 | I44: 0.52239 | J44: 0.34942 | K44: 0.62808 | L44: 0.45884 | M44: 0 | N44: 1760 | O44: =IF((G44*ALBE+H44*ALDE+I44*AT+J44*BE+K44*DE+L44*FR+M44*NL)>(N44),1,0) -> 0 | Q44: =IF((C$6*G44+D$6*H44+E$6*I44+F$6*J44+G$6*K44+H$6*L44+I$6*M44)>(N44),1,0) -> 0
B45: 36 | C45: [D4-AT] Buers - Westtirol 421 weiss [OPP] [D4]_LTA_corner#17_#11 | D45: 10T-AT-DE-000061 | E45: [AT-AT] Westtirol Transformer WTRHU41 | F45: 14T-38220-WT041O | G45: 0 | H45: 0 | I45: 0.9866 | J45: 0 | K45: 0.12144 | L45: -0.10894 | M45: 0 | N45: 4596 | O45: =IF((G45*ALBE+H45*ALDE+I45*AT+J45*BE+K45*DE+L45*FR+M45*NL)>(N45),1,0) -> 0 | Q45: =IF((C$6*G45+D$6*H45+E$6*I45+F$6*J45+G$6*K45+H$6*L45+I$6*M45)>(N45),1,0) -> 0
B46: 37 | C46: [BE-BE] PST_VANYK_2 [S - N] | D46: 22T-BE-PST--002U | E46: [NL-BE] Maasbracht - Van Eyck 380 Black/27 | F46: 10T-BE-NL-00002G | G46: 0.48592 | H46: -0.04908 | I46: 0.01233 | J46: 0.27166 | K46: -0.01656 | L46: 0.09555 | M46: -0.02971 | N46: 1006 | O46: =IF((G46*ALBE+H46*ALDE+I46*AT+J46*BE+K46*DE+L46*FR+M46*NL)>(N46),1,0) -> 0 | Q46: =IF((C$6*G46+D$6*H46+E$6*I46+F$6*J46+G$6*K46+H$6*L46+I$6*M46)>(N46),1,0) -> 0
B47: 38 | C47: [D4-AT] Buers - Westtirol 421 weiss [OPP] [D4]_LTA_corner#17_#29 | D47: 10T-AT-DE-000061 | E47: [AT-AT] Westtirol Transformer WTRHU41 | F47: 14T-38220-WT041O | G47: 0 | H47: 0 | I47: 0.99729 | J47: 0 | K47: 0.06714 | L47: -0.0302 | M47: 0 | N47: 4670 | O47: =IF((G47*ALBE+H47*ALDE+I47*AT+J47*BE+K47*DE+L47*FR+M47*NL)>(N47),1,0) -> 0 | Q47: =IF((C$6*G47+D$6*H47+E$6*I47+F$6*J47+G$6*K47+H$6*L47+I$6*M47)>(N47),1,0) -> 0
B48: 39 | C48: [BE-BE] PST_ZANDV_2 [N - S]_LTA_corner#13_#0 | D48: 22T20161020---56 | E48: [NL-BE] Rilland - Zandvliet 380 White/30 | F48: 10T-BE-NL-00004C | G48: 0 | H48: 0 | I48: -0.34641 | J48: -0.74757 | K48: -0.26145 | L48: -0.50277 | M48: 0 | N48: 1988 | O48: =IF((G48*ALBE+H48*ALDE+I48*AT+J48*BE+K48*DE+L48*FR+M48*NL)>(N48),1,0) -> 0 | Q48: =IF((C$6*G48+D$6*H48+E$6*I48+F$6*J48+G$6*K48+H$6*L48+I$6*M48)>(N48),1,0) -> 0
B49: 40 | C49: [D2-NL] Diele - Meeden 380 Black [DIR] [D2]_LTA_corner#01_#8 | D49: 10T-DE-NL-00001V | E49: [D2-NL] Diele - Meeden 380 White | F49: 10T-DE-NL-00002T | G49: 0 | H49: 0 | I49: -0.86643 | J49: 0.20438 | K49: 0.40713 | L49: 0.20438 | M49: 0 | N49: 6909 | O49: =IF((G49*ALBE+H49*ALDE+I49*AT+J49*BE+K49*DE+L49*FR+M49*NL)>(N49),1,0) -> 0 | Q49: =IF((C$6*G49+D$6*H49+E$6*I49+F$6*J49+G$6*K49+H$6*L49+I$6*M49)>(N49),1,0) -> 0
B50: 41 | C50: [BE-FR] Achene - Lonny 380.19 [DIR] [BE]_LTA_corner#02_#2 | D50: 10T-BE-FR-000015 | E50: [BE-BE] Avelgem - Horta 380.102 | F50: 22T20161020---1E | G50: 0 | H50: 0 | I50: -0.41759 | J50: 0.40532 | K50: -0.29596 | L50: -0.75746 | M50: 0 | N50: 2401 | O50: =IF((G50*ALBE+H50*ALDE+I50*AT+J50*BE+K50*DE+L50*FR+M50*NL)>(N50),1,0) -> 0 | Q50: =IF((C$6*G50+D$6*H50+E$6*I50+F$6*J50+G$6*K50+H$6*L50+I$6*M50)>(N50),1,0) -> 0
B51: 42 | C51: [D4-AT] Buers - Westtirol 421 weiss [OPP] [D4]_LTA_corner#20_#35 | D51: 10T-AT-DE-000061 | E51: [AT-AT] Westtirol Transformer WTRHU41 | F51: 14T-38220-WT041O | G51: 0 | H51: 0 | I51: 0.97143 | J51: -0.0737 | K51: 0.12356 | L51: -0.18874 | M51: 0 | N51: 4656 | O51: =IF((G51*ALBE+H51*ALDE+I51*AT+J51*BE+K51*DE+L51*FR+M51*NL)>(N51),1,0) -> 0 | Q51: =IF((C$6*G51+D$6*H51+E$6*I51+F$6*J51+G$6*K51+H$6*L51+I$6*M51)>(N51),1,0) -> 0
B52: 43 | C52: [D2-NL] Diele - Meeden 380 Black [DIR] [NL]_LTA_corner#01_#2 | D52: 10T-DE-NL-00001V | E52: [D2-NL] Diele - Meeden 380 White | F52: 10T-DE-NL-00002T | G52: 0 | H52: 0 | I52: 0.50844 | J52: 0.45576 | K52: 0.60057 | L52: 0.41604 | M52: 0 | N52: 1585 | O52: =IF((G52*ALBE+H52*ALDE+I52*AT+J52*BE+K52*DE+L52*FR+M52*NL)>(N52),1,0) -> 0 | Q52: =IF((C$6*G52+D$6*H52+E$6*I52+F$6*J52+G$6*K52+H$6*L52+I$6*M52)>(N52),1,0) -> 0
B53: 44 | C53: [BE-FR] Achene - Lonny 380.19 [DIR] [BE]_LTA_corner#02_#9 | D53: 10T-BE-FR-000015 | E53: [BE-BE] Avelgem - Horta 380.102 | F53: 22T20161020---1E | G53: 0 | H53: 0 | I53: -0.41245 | J53: 0.44012 | K53: -0.28705 | L53: -0.74416 | M53: 0 | N53: 2437 | O53: =IF((G53*ALBE+H53*ALDE+I53*AT+J53*BE+K53*DE+L53*FR+M53*NL)>(N53),1,0) -> 0 | Q53: =IF((C$6*G53+D$6*H53+E$6*I53+F$6*J53+G$6*K53+H$6*L53+I$6*M53)>(N53),1,0) -> 0
B54: 45 | C54: [BE-BE] PST_ZANDV_2 [N - S]_LTA_corner#13_#14 | D54: 22T20161020---56 | E54: [NL-BE] Rilland - Zandvliet 380 White/30 | F54: 10T-BE-NL-00004C | G54: 0 | H54: 0 | I54: -0.36825 | J54: -0.71213 | K54: -0.31286 | L54: -0.50929 | M54: 0 | N54: 1773 | O54: =IF((G54*ALBE+H54*ALDE+I54*AT+J54*BE+K54*DE+L54*FR+M54*NL)>(N54),1,0) -> 0 | Q54: =IF((C$6*G54+D$6*H54+E$6*I54+F$6*J54+G$6*K54+H$6*L54+I$6*M54)>(N54),1,0) -> 0
B55: 46 | C55: [D4-AT] Buers - Westtirol 421 weiss [OPP] [D4]_LTA_corner#17_#16 | D55: 10T-AT-DE-000061 | E55: [AT-AT] Westtirol Transformer WTRHU41 | F55: 14T-38220-WT041O | G55: 0 | H55: 0 | I55: 0.99651 | J55: 0 | K55: 0.08285 | L55: -0.00978 | M55: 0 | N55: 4591 | O55: =IF((G55*ALBE+H55*ALDE+I55*AT+J55*BE+K55*DE+L55*FR+M55*NL)>(N55),1,0) -> 0 | Q55: =IF((C$6*G55+D$6*H55+E$6*I55+F$6*J55+G$6*K55+H$6*L55+I$6*M55)>(N55),1,0) -> 0
B56: 47 | C56: [BE-FR] Achene - Lonny 380.19 [DIR] [BE]_LTA_corner#02_#18 | D56: 10T-BE-FR-000015 | E56: [BE-BE] Avelgem - Horta 380.102 | F56: 22T20161020---1E | G56: 0 | H56: 0 | I56: -0.42406 | J56: 0.38273 | K56: -0.29519 | L56: -0.76586 | M56: 0 | N56: 2422 | O56: =IF((G56*ALBE+H56*ALDE+I56*AT+J56*BE+K56*DE+L56*FR+M56*NL)>(N56),1,0) -> 0 | Q56: =IF((C$6*G56+D$6*H56+E$6*I56+F$6*J56+G$6*K56+H$6*L56+I$6*M56)>(N56),1,0) -> 0
B57: 48 | C57: ALBE_import | D57: N/A | E57: BASECASE | F57: N/A | G57: -1 | H57: 0 | I57: 0 | J57: 0 | K57: 0 | L57: 0 | M57: 0 | N57: 0 | O57: =IF((G57*ALBE+H57*ALDE+I57*AT+J57*BE+K57*DE+L57*FR+M57*NL)>(N57),1,0) -> 0 | Q57: =IF((C$6*G57+D$6*H57+E$6*I57+F$6*J57+G$6*K57+H$6*L57+I$6*M57)>(N57),1,0) -> 0
B58: 49 | C58: ALDE_export | D58: N/A | E58: BASECASE | F58: N/A | G58: 0 | H58: 1 | I58: 0 | J58: 0 | K58: 0 | L58: 0 | M58: 0 | N58: 0 | O58: =IF((G58*ALBE+H58*ALDE+I58*AT+J58*BE+K58*DE+L58*FR+M58*NL)>(N58),1,0) -> 0 | Q58: =IF((C$6*G58+D$6*H58+E$6*I58+F$6*J58+G$6*K58+H$6*L58+I$6*M58)>(N58),1,0) -> 0
B59: 50 | C59: [BE-BE] PST_ZANDV_2 [N - S]_LTA_corner#13_#2 | D59: 22T20161020---56 | E59: [NL-BE] Rilland - Zandvliet 380 White/30 | F59: 10T-BE-NL-00004C | G59: 0 | H59: 0 | I59: -0.30447 | J59: -0.78658 | K59: -0.23839 | L59: -0.48141 | M59: 0 | N59: 1999 | O59: =IF((G59*ALBE+H59*ALDE+I59*AT+J59*BE+K59*DE+L59*FR+M59*NL)>(N59),1,0) -> 0 | Q59: =IF((C$6*G59+D$6*H59+E$6*I59+F$6*J59+G$6*K59+H$6*L59+I$6*M59)>(N59),1,0) -> 0
B60: 51 | C60: [D2-NL] Diele - Meeden 380 Black [DIR] [D2]_LTA_corner#01_#7 | D60: 10T-DE-NL-00001V | E60: [D2-NL] Diele - Meeden 380 White | F60: 10T-DE-NL-00002T | G60: 0 | H60: 0 | I60: -0.75776 | J60: 0.26853 | K60: 0.53064 | L60: 0.26853 | M60: 0 | N60: 7213 | O60: =IF((G60*ALBE+H60*ALDE+I60*AT+J60*BE+K60*DE+L60*FR+M60*NL)>(N60),1,0) -> 0 | Q60: =IF((C$6*G60+D$6*H60+E$6*I60+F$6*J60+G$6*K60+H$6*L60+I$6*M60)>(N60),1,0) -> 0
B61: 52 | C61: [D4-AT] Buers - Westtirol 421 weiss [OPP] [D4]_LTA_corner#20_#33 | D61: 10T-AT-DE-000061 | E61: [AT-AT] Westtirol Transformer WTRHU41 | F61: 14T-38220-WT041O | G61: 0 | H61: 0 | I61: 0.97435 | J61: -0.06149 | K61: 0.13354 | L61: -0.17039 | M61: 0 | N61: 4612 | O61: =IF((G61*ALBE+H61*ALDE+I61*AT+J61*BE+K61*DE+L61*FR+M61*NL)>(N61),1,0) -> 0 | Q61: =IF((C$6*G61+D$6*H61+E$6*I61+F$6*J61+G$6*K61+H$6*L61+I$6*M61)>(N61),1,0) -> 0
B62: 53 | C62: [NL-D7] Maasbracht - Siersdorf 380 black [DIR] [D7] | D62: 10T-DE-NL-00006L | E62: [BE-BE] Avelgem - Horta 380.102 | F62: 22T20161020---1E | G62: 0.32053 | H62: -0.15519 | I62: -0.00266 | J62: 0.30672 | K62: 0.01414 | L62: 0.03897 | M62: 0.23964 | N62: 988 | O62: =IF((G62*ALBE+H62*ALDE+I62*AT+J62*BE+K62*DE+L62*FR+M62*NL)>(N62),1,0) -> 0 | Q62: =IF((C$6*G62+D$6*H62+E$6*I62+F$6*J62+G$6*K62+H$6*L62+I$6*M62)>(N62),1,0) -> 0
B63: 54 | C63: [BE-FR] Achene - Lonny 380.19 [DIR] [BE]_LTA_corner#02_#5 | D63: 10T-BE-FR-000015 | E63: [BE-BE] Avelgem - Horta 380.102 | F63: 22T20161020---1E | G63: 0 | H63: 0 | I63: -0.42107 | J63: 0.40387 | K63: -0.29993 | L63: -0.75474 | M63: 0 | N63: 2394 | O63: =IF((G63*ALBE+H63*ALDE+I63*AT+J63*BE+K63*DE+L63*FR+M63*NL)>(N63),1,0) -> 0 | Q63: =IF((C$6*G63+D$6*H63+E$6*I63+F$6*J63+G$6*K63+H$6*L63+I$6*M63)>(N63),1,0) -> 0
B64: 55 | C64: [BE-BE] PST_VANYK_2 [S - N] | D64: 22T-BE-PST--002U | E64: [BE-FR] Achene - Lonny 380.19 | F64: 10T-BE-FR-000015 | G64: 0.57308 | H64: -0.02434 | I64: 0.00534 | J64: 0.32015 | K64: -0.00699 | L64: 0.04595 | M64: 0.005 | N64: 950 | O64: =IF((G64*ALBE+H64*ALDE+I64*AT+J64*BE+K64*DE+L64*FR+M64*NL)>(N64),1,0) -> 0 | Q64: =IF((C$6*G64+D$6*H64+E$6*I64+F$6*J64+G$6*K64+H$6*L64+I$6*M64)>(N64),1,0) -> 0
B65: 56 | C65: [D2-AT] Y - St. Peter (- Altheim - Simbach) 233/230 [OPP] [D2] | D65: 10T-AT-DE-00001B | E65: [D2-AT] Y - St. Peter (- Altheim - Simbach) 234/230 | F65: 10T-AT-DE-000045 | G65: -0.03696 | H65: -0.03827 | I65: 0.0247 | J65: -0.03672 | K65: -0.03759 | L65: -0.03392 | M65: -0.03767 | N65: 324 | O65: =IF((G65*ALBE+H65*ALDE+I65*AT+J65*BE+K65*DE+L65*FR+M65*NL)>(N65),1,0) -> 0 | Q65: =IF((C$6*G65+D$6*H65+E$6*I65+F$6*J65+G$6*K65+H$6*L65+I$6*M65)>(N65),1,0) -> 0
B66: 57 | C66: [D7-FR] Ensdorf - Vigy 2S [OPP] [D7] | D66: 10T-DE-FR-000068 | E66: [D7-D7] Ensdorf - Uchtelfangen Taubental N | F66: 11T0-0000-0604-N | G66: 0.06726 | H66: -0.05916 | I66: 0.01975 | J66: 0.08286 | K66: -0.01244 | L66: 0.18433 | M66: 0.00613 | N66: 775 | O66: =IF((G66*ALBE+H66*ALDE+I66*AT+J66*BE+K66*DE+L66*FR+M66*NL)>(N66),1,0) -> 0 | Q66: =IF((C$6*G66+D$6*H66+E$6*I66+F$6*J66+G$6*K66+H$6*L66+I$6*M66)>(N66),1,0) -> 0
B67: 58 | C67: [D4-AT] Buers - Westtirol 421 weiss [OPP] [D4]_LTA_corner#20_#31 | D67: 10T-AT-DE-000061 | E67: [AT-AT] Westtirol Transformer WTRHU41 | F67: 14T-38220-WT041O | G67: 0 | H67: 0 | I67: 0.95353 | J67: -0.0918 | K67: 0.03969 | L67: -0.2842 | M67: 0 | N67: 4955 | O67: =IF((G67*ALBE+H67*ALDE+I67*AT+J67*BE+K67*DE+L67*FR+M67*NL)>(N67),1,0) -> 0 | Q67: =IF((C$6*G67+D$6*H67+E$6*I67+F$6*J67+G$6*K67+H$6*L67+I$6*M67)>(N67),1,0) -> 0
B68: 59 | C68: [D2-NL] Diele - Meeden 380 Black [DIR] [D2]_LTA_corner#05_#8 | D68: 10T-DE-NL-00001V | E68: [D2-NL] Diele - Meeden 380 White | F68: 10T-DE-NL-00002T | G68: 0 | H68: 0 | I68: 0.5895 | J68: 0.33347 | K68: 0.5895 | L68: 0.44019 | M68: 0 | N68: 1175 | O68: =IF((G68*ALBE+H68*ALDE+I68*AT+J68*BE+K68*DE+L68*FR+M68*NL)>(N68),1,0) -> 0 | Q68: =IF((C$6*G68+D$6*H68+E$6*I68+F$6*J68+G$6*K68+H$6*L68+I$6*M68)>(N68),1,0) -> 0
B69: 60 | C69: [D4-AT] Buers - Westtirol 421 weiss [OPP] [D4]_LTA_corner#20_#5 | D69: 10T-AT-DE-000061 | E69: [AT-AT] Westtirol Transformer WTRHU41 | F69: 14T-38220-WT041O | G69: 0 | H69: 0 | I69: 0.97791 | J69: -0.05824 | K69: 0.14194 | L69: -0.14196 | M69: 0 | N69: 4560 | O69: =IF((G69*ALBE+H69*ALDE+I69*AT+J69*BE+K69*DE+L69*FR+M69*NL)>(N69),1,0) -> 0 | Q69: =IF((C$6*G69+D$6*H69+E$6*I69+F$6*J69+G$6*K69+H$6*L69+I$6*M69)>(N69),1,0) -> 0
B70: 61 | C70: [D4-AT] Buers - Westtirol 421 weiss [OPP] [D4]_LTA_corner#17_#6 | D70: 10T-AT-DE-000061 | E70: [AT-AT] Westtirol Transformer WTRHU41 | F70: 14T-38220-WT041O | G70: 0 | H70: 0 | I70: 0.99584 | J70: 0 | K70: 0.09007 | L70: -0.01362 | M70: 0 | N70: 4574 | O70: =IF((G70*ALBE+H70*ALDE+I70*AT+J70*BE+K70*DE+L70*FR+M70*NL)>(N70),1,0) -> 0 | Q70: =IF((C$6*G70+D$6*H70+E$6*I70+F$6*J70+G$6*K70+H$6*L70+I$6*M70)>(N70),1,0) -> 0
B71: 62 | C71: [D4-AT] Buers - Westtirol 421 weiss [OPP] [D4]_LTA_corner#20_#46 | D71: 10T-AT-DE-000061 | E71: [AT-AT] Westtirol Transformer WTRHU41 | F71: 14T-38220-WT041O | G71: 0 | H71: 0 | I71: 0.94525 | J71: -0.09165 | K71: 0.00159 | L71: -0.31322 | M71: 0 | N71: 5066 | O71: =IF((G71*ALBE+H71*ALDE+I71*AT+J71*BE+K71*DE+L71*FR+M71*NL)>(N71),1,0) -> 0 | Q71: =IF((C$6*G71+D$6*H71+E$6*I71+F$6*J71+G$6*K71+H$6*L71+I$6*M71)>(N71),1,0) -> 0
B72: 63 | C72: [D4-AT] Buers - Westtirol 421 weiss [OPP] [D4]_LTA_corner#17_#10 | D72: 10T-AT-DE-000061 | E72: [AT-AT] Westtirol Transformer WTRHU41 | F72: 14T-38220-WT041O | G72: 0 | H72: 0 | I72: 0.99714 | J72: 0 | K72: 0.07309 | L72: -0.01945 | M72: 0 | N72: 4636 | O72: =IF((G72*ALBE+H72*ALDE+I72*AT+J72*BE+K72*DE+L72*FR+M72*NL)>(N72),1,0) -> 0 | Q72: =IF((C$6*G72+D$6*H72+E$6*I72+F$6*J72+G$6*K72+H$6*L72+I$6*M72)>(N72),1,0) -> 0
B73: 64 | C73: [BE-BE] PST_ZANDV_2 [N - S]_LTA_corner#13_#17 | D73: 22T20161020---56 | E73: [NL-BE] Rilland - Zandvliet 380 White/30 | F73: 10T-BE-NL-00004C | G73: 0 | H73: 0 | I73: -0.34223 | J73: -0.73857 | K73: -0.30112 | L73: -0.49671 | M73: 0 | N73: 1773 | O73: =IF((G73*ALBE+H73*ALDE+I73*AT+J73*BE+K73*DE+L73*FR+M73*NL)>(N73),1,0) -> 0 | Q73: =IF((C$6*G73+D$6*H73+E$6*I73+F$6*J73+G$6*K73+H$6*L73+I$6*M73)>(N73),1,0) -> 0
B74: 65 | C74: [D2-NL] Diele - Meeden 380 Black [DIR] [D2]_LTA_corner#05_#3 | D74: 10T-DE-NL-00001V | E74: [D2-NL] Diele - Meeden 380 White | F74: 10T-DE-NL-00002T | G74: 0 | H74: 0 | I74: 0.56235 | J74: 0.32888 | K74: 0.64687 | L74: 0.39643 | M74: 0 | N74: 1676 | O74: =IF((G74*ALBE+H74*ALDE+I74*AT+J74*BE+K74*DE+L74*FR+M74*NL)>(N74),1,0) -> 0 | Q74: =IF((C$6*G74+D$6*H74+E$6*I74+F$6*J74+G$6*K74+H$6*L74+I$6*M74)>(N74),1,0) -> 0
B75: 66 | C75: [AT-AT] Westtirol Transformer WTRHU41 [OPP]_LTA_corner#20_#11 | D75: 14T-38220-WT041O | E75: BASECASE | F75: N/A | G75: 0 | H75: 0 | I75: 0.98651 | J75: -0.08065 | K75: 0.11741 | L75: -0.08065 | M75: 0 | N75: 4574 | O75: =IF((G75*ALBE+H75*ALDE+I75*AT+J75*BE+K75*DE+L75*FR+M75*NL)>(N75),1,0) -> 0 | Q75: =IF((C$6*G75+D$6*H75+E$6*I75+F$6*J75+G$6*K75+H$6*L75+I$6*M75)>(N75),1,0) -> 0
B76: 67 | C76: [D2-D2] Altheim - Sittling 220 [OPP] | D76: 11TD2L000000004J | E76: [D2-AT] Pleinting - St. Peter 258 | F76: 10T-AT-DE-000037 | G76: 0.03468 | H76: 0.03645 | I76: -0.02569 | J76: 0.03435 | K76: 0.03429 | L76: 0.0305 | M76: 0.03588 | N76: 304 | O76: =IF((G76*ALBE+H76*ALDE+I76*AT+J76*BE+K76*DE+L76*FR+M76*NL)>(N76),1,0) -> 0 | Q76: =IF((C$6*G76+D$6*H76+E$6*I76+F$6*J76+G$6*K76+H$6*L76+I$6*M76)>(N76),1,0) -> 0
B77: 68 | C77: [D2-NL] Diele - Meeden 380 Black [DIR] [NL]_LTA_corner#01_#1 | D77: 10T-DE-NL-00001V | E77: [D2-NL] Diele - Meeden 380 White | F77: 10T-DE-NL-00002T | G77: 0 | H77: 0 | I77: 0.51563 | J77: 0.4442 | K77: 0.58266 | L77: 0.4442 | M77: 0 | N77: 1367 | O77: =IF((G77*ALBE+H77*ALDE+I77*AT+J77*BE+K77*DE+L77*FR+M77*NL)>(N77),1,0) -> 0 | Q77: =IF((C$6*G77+D$6*H77+E$6*I77+F$6*J77+G$6*K77+H$6*L77+I$6*M77)>(N77),1,0) -> 0
B78: 69 | C78: [AT-AT] Westtirol Transformer WTRHU41 [OPP]_LTA_corner#17_#3 | D78: 14T-38220-WT041O | E78: BASECASE | F78: N/A | G78: 0 | H78: 0 | I78: 0.98617 | J78: 0 | K78: 0.14808 | L78: -0.07448 | M78: 0 | N78: 4466 | O78: =IF((G78*ALBE+H78*ALDE+I78*AT+J78*BE+K78*DE+L78*FR+M78*NL)>(N78),1,0) -> 0 | Q78: =IF((C$6*G78+D$6*H78+E$6*I78+F$6*J78+G$6*K78+H$6*L78+I$6*M78)>(N78),1,0) -> 0
B79: 70 | C79: [D4-AT] Buers - Westtirol 421 weiss [OPP] [D4]_LTA_corner#20_#21 | D79: 10T-AT-DE-000061 | E79: [AT-AT] Westtirol Transformer WTRHU41 | F79: 14T-38220-WT041O | G79: 0 | H79: 0 | I79: 0.97205 | J79: -0.06559 | K79: 0.12556 | L79: -0.18723 | M79: 0 | N79: 4650 | O79: =IF((G79*ALBE+H79*ALDE+I79*AT+J79*BE+K79*DE+L79*FR+M79*NL)>(N79),1,0) -> 0 | Q79: =IF((C$6*G79+D$6*H79+E$6*I79+F$6*J79+G$6*K79+H$6*L79+I$6*M79)>(N79),1,0) -> 0
B80: 71 | C80: [D4-AT] Buers - Westtirol 421 weiss [OPP] [D4]_LTA_corner#20_#1 | D80: 10T-AT-DE-000061 | E80: [AT-AT] Westtirol Transformer WTRHU41 | F80: 14T-38220-WT041O | G80: 0 | H80: 0 | I80: 0.98145 | J80: -0.03528 | K80: 0.16433 | L80: -0.0922 | M80: 0 | N80: 4433 | O80: =IF((G80*ALBE+H80*ALDE+I80*AT+J80*BE+K80*DE+L80*FR+M80*NL)>(N80),1,0) -> 0 | Q80: =IF((C$6*G80+D$6*H80+E$6*I80+F$6*J80+G$6*K80+H$6*L80+I$6*M80)>(N80),1,0) -> 0
B81: 72 | C81: [BE-BE] PST_ZANDV_2 [N - S]_LTA_corner#13_#9 | D81: 22T20161020---56 | E81: [NL-BE] Rilland - Zandvliet 380 White/30 | F81: 10T-BE-NL-00004C | G81: 0 | H81: 0 | I81: -0.32793 | J81: -0.74708 | K81: -0.28615 | L81: -0.50244 | M81: 0 | N81: 1788 | O81: =IF((G81*ALBE+H81*ALDE+I81*AT+J81*BE+K81*DE+L81*FR+M81*NL)>(N81),1,0) -> 0 | Q81: =IF((C$6*G81+D$6*H81+E$6*I81+F$6*J81+G$6*K81+H$6*L81+I$6*M81)>(N81),1,0) -> 0
B82: 73 | C82: [BE-BE] PST_ZANDV_2 [N - S]_LTA_corner#13_#31 | D82: 22T20161020---56 | E82: [NL-BE] Rilland - Zandvliet 380 White/30 | F82: 10T-BE-NL-00004C | G82: 0 | H82: 0 | I82: -0.29045 | J82: -0.82647 | K82: -0.24399 | L82: -0.416 | M82: 0 | N82: 2050 | O82: =IF((G82*ALBE+H82*ALDE+I82*AT+J82*BE+K82*DE+L82*FR+M82*NL)>(N82),1,0) -> 0 | Q82: =IF((C$6*G82+D$6*H82+E$6*I82+F$6*J82+G$6*K82+H$6*L82+I$6*M82)>(N82),1,0) -> 0
B83: 74 | C83: [D4-AT] Buers - Westtirol 421 weiss [OPP] [D4]_LTA_corner#17_#12 | D83: 10T-AT-DE-000061 | E83: [AT-AT] Westtirol Transformer WTRHU41 | F83: 14T-38220-WT041O | G83: 0 | H83: 0 | I83: 0.98694 | J83: 0 | K83: 0.10575 | L83: -0.12151 | M83: 0 | N83: 4661 | O83: =IF((G83*ALBE+H83*ALDE+I83*AT+J83*BE+K83*DE+L83*FR+M83*NL)>(N83),1,0) -> 0 | Q83: =IF((C$6*G83+D$6*H83+E$6*I83+F$6*J83+G$6*K83+H$6*L83+I$6*M83)>(N83),1,0) -> 0
B84: 75 | C84: [BE-FR] Achene - Lonny 380.19 [OPP] [BE] | D84: 10T-BE-FR-000015 | E84: [BE-BE] Avelgem - Horta 380.102 | F84: 22T20161020---1E | G84: -0.30628 | H84: -0.06445 | I84: 0.02074 | J84: -0.30152 | K84: -0.02855 | L84: 0.15109 | M84: -0.14375 | N84: 1961 | O84: =IF((G84*ALBE+H84*ALDE+I84*AT+J84*BE+K84*DE+L84*FR+M84*NL)>(N84),1,0) -> 0 | Q84: =IF((C$6*G84+D$6*H84+E$6*I84+F$6*J84+G$6*K84+H$6*L84+I$6*M84)>(N84),1,0) -> 0
B85: 76 | C85: [D2-NL] Diele - Meeden 380 Black [DIR] [D2]_LTA_corner#05_#17 | D85: 10T-DE-NL-00001V | E85: [D2-NL] Diele - Meeden 380 White | F85: 10T-DE-NL-00002T | G85: 0 | H85: 0 | I85: 0.5899 | J85: 0.32912 | K85: 0.5899 | L85: 0.4424 | M85: 0 | N85: 1182 | O85: =IF((G85*ALBE+H85*ALDE+I85*AT+J85*BE+K85*DE+L85*FR+M85*NL)>(N85),1,0) -> 0 | Q85: =IF((C$6*G85+D$6*H85+E$6*I85+F$6*J85+G$6*K85+H$6*L85+I$6*M85)>(N85),1,0) -> 0
B86: 77 | C86: [D2-NL] Diele - Meeden 380 Black [DIR] [D2]_LTA_corner#05_#23 | D86: 10T-DE-NL-00001V | E86: [D2-NL] Diele - Meeden 380 White | F86: 10T-DE-NL-00002T | G86: 0 | H86: 0 | I86: 0.59338 | J86: 0.3233 | K86: 0.59338 | L86: 0.43735 | M86: 0 | N86: 1192 | O86: =IF((G86*ALBE+H86*ALDE+I86*AT+J86*BE+K86*DE+L86*FR+M86*NL)>(N86),1,0) -> 0 | Q86: =IF((C$6*G86+D$6*H86+E$6*I86+F$6*J86+G$6*K86+H$6*L86+I$6*M86)>(N86),1,0) -> 0
B87: 78 | C87: [D2-NL] Diele - Meeden 380 Black [DIR] [NL]_LTA_corner#05_#18 | D87: 10T-DE-NL-00001V | E87: [D2-NL] Diele - Meeden 380 White | F87: 10T-DE-NL-00002T | G87: 0 | H87: 0 | I87: 0.53113 | J87: 0.40773 | K87: 0.57603 | L87: 0.46888 | M87: 0 | N87: 1303 | O87: =IF((G87*ALBE+H87*ALDE+I87*AT+J87*BE+K87*DE+L87*FR+M87*NL)>(N87),1,0) -> 0 | Q87: =IF((C$6*G87+D$6*H87+E$6*I87+F$6*J87+G$6*K87+H$6*L87+I$6*M87)>(N87),1,0) -> 0
B88: 79 | C88: [AT-AT] Westtirol Transformer WTRHU41 [OPP]_LTA_corner#17_#7 | D88: 14T-38220-WT041O | E88: BASECASE | F88: N/A | G88: 0 | H88: 0 | I88: 0.99228 | J88: 0 | K88: 0.11682 | L88: -0.04161 | M88: 0 | N88: 4528 | O88: =IF((G88*ALBE+H88*ALDE+I88*AT+J88*BE+K88*DE+L88*FR+M88*NL)>(N88),1,0) -> 0 | Q88: =IF((C$6*G88+D$6*H88+E$6*I88+F$6*J88+G$6*K88+H$6*L88+I$6*M88)>(N88),1,0) -> 0
B89: 80 | C89: [BE-FR] Achene - Lonny 380.19 [DIR] [BE]_LTA_corner#02_#7 | D89: 10T-BE-FR-000015 | E89: [BE-BE] Avelgem - Horta 380.102 | F89: 22T20161020---1E | G89: 0 | H89: 0 | I89: -0.42254 | J89: 0.40528 | K89: -0.28911 | L89: -0.75738 | M89: 0 | N89: 2456 | O89: =IF((G89*ALBE+H89*ALDE+I89*AT+J89*BE+K89*DE+L89*FR+M89*NL)>(N89),1,0) -> 0 | Q89: =IF((C$6*G89+D$6*H89+E$6*I89+F$6*J89+G$6*K89+H$6*L89+I$6*M89)>(N89),1,0) -> 0
B90: 81 | C90: [AT-AT] Westtirol Transformer WTRHU41 [OPP]_LTA_corner#17_#0 | D90: 14T-38220-WT041O | E90: BASECASE | F90: N/A | G90: 0 | H90: 0 | I90: 0.9897 | J90: 0.0365 | K90: 0.11652 | L90: -0.07474 | M90: 0 | N90: 4614 | O90: =IF((G90*ALBE+H90*ALDE+I90*AT+J90*BE+K90*DE+L90*FR+M90*NL)>(N90),1,0) -> 0 | Q90: =IF((C$6*G90+D$6*H90+E$6*I90+F$6*J90+G$6*K90+H$6*L90+I$6*M90)>(N90),1,0) -> 0
B91: 82 | C91: [BE-FR] Achene - Lonny 380.19 [DIR] [BE]_LTA_corner#02_#0 | D91: 10T-BE-FR-000015 | E91: [BE-BE] Avelgem - Horta 380.102 | F91: 22T20161020---1E | G91: 0 | H91: 0 | I91: -0.4529 | J91: 0.25048 | K91: -0.32464 | L91: -0.79168 | M91: 0 | N91: 2310 | O91: =IF((G91*ALBE+H91*ALDE+I91*AT+J91*BE+K91*DE+L91*FR+M91*NL)>(N91),1,0) -> 0 | Q91: =IF((C$6*G91+D$6*H91+E$6*I91+F$6*J91+G$6*K91+H$6*L91+I$6*M91)>(N91),1,0) -> 0
B92: 83 | C92: [BE-FR] Achene - Lonny 380.19 [DIR] [BE]_LTA_corner#02_#15 | D92: 10T-BE-FR-000015 | E92: [BE-BE] Avelgem - Horta 380.102 | F92: 22T20161020---1E | G92: 0 | H92: 0 | I92: -0.42612 | J92: 0.37275 | K92: -0.29672 | L92: -0.76905 | M92: 0 | N92: 2418 | O92: =IF((G92*ALBE+H92*ALDE+I92*AT+J92*BE+K92*DE+L92*FR+M92*NL)>(N92),1,0) -> 0 | Q92: =IF((C$6*G92+D$6*H92+E$6*I92+F$6*J92+G$6*K92+H$6*L92+I$6*M92)>(N92),1,0) -> 0
B93: 84 | C93: [D4-AT] Buers - Westtirol 421 weiss [OPP] [D4]_LTA_corner#20_#0 | D93: 10T-AT-DE-000061 | E93: [AT-AT] Westtirol Transformer WTRHU41 | F93: 14T-38220-WT041O | G93: 0 | H93: 0 | I93: 0.98482 | J93: -0.08463 | K93: 0.12001 | L93: -0.09251 | M93: 0 | N93: 4578 | O93: =IF((G93*ALBE+H93*ALDE+I93*AT+J93*BE+K93*DE+L93*FR+M93*NL)>(N93),1,0) -> 0 | Q93: =IF((C$6*G93+D$6*H93+E$6*I93+F$6*J93+G$6*K93+H$6*L93+I$6*M93)>(N93),1,0) -> 0
B94: 85 | C94: [D2-NL] Diele - Meeden 380 Black [DIR] [D2]_LTA_corner#01_#4 | D94: 10T-DE-NL-00001V | E94: [D2-NL] Diele - Meeden 380 White | F94: 10T-DE-NL-00002T | G94: 0 | H94: 0 | I94: -0.88286 | J94: 0.19716 | K94: 0.37791 | L94: 0.19716 | M94: 0 | N94: 6789 | O94: =IF((G94*ALBE+H94*ALDE+I94*AT+J94*BE+K94*DE+L94*FR+M94*NL)>(N94),1,0) -> 0 | Q94: =IF((C$6*G94+D$6*H94+E$6*I94+F$6*J94+G$6*K94+H$6*L94+I$6*M94)>(N94),1,0) -> 0
B95: 86 | C95: [AT-AT] Westtirol Transformer WTRHU41 [OPP]_LTA_corner#22_#5 | D95: 14T-38220-WT041O | E95: BASECASE | F95: N/A | G95: 0 | H95: 0 | I95: 0.98667 | J95: -0.08627 | K95: 0.11616 | L95: -0.07451 | M95: 0 | N95: 4596 | O95: =IF((G95*ALBE+H95*ALDE+I95*AT+J95*BE+K95*DE+L95*FR+M95*NL)>(N95),1,0) -> 0 | Q95: =IF((C$6*G95+D$6*H95+E$6*I95+F$6*J95+G$6*K95+H$6*L95+I$6*M95)>(N95),1,0) -> 0
B96: 87 | C96: [AT-AT] Westtirol Transformer WTRHU41 [OPP]_LTA_corner#22_#1 | D96: 14T-38220-WT041O | E96: BASECASE | F96: N/A | G96: 0 | H96: 0 | I96: 0.99268 | J96: -0.02517 | K96: 0.11687 | L96: -0.01702 | M96: 0 | N96: 4514 | O96: =IF((G96*ALBE+H96*ALDE+I96*AT+J96*BE+K96*DE+L96*FR+M96*NL)>(N96),1,0) -> 0 | Q96: =IF((C$6*G96+D$6*H96+E$6*I96+F$6*J96+G$6*K96+H$6*L96+I$6*M96)>(N96),1,0) -> 0
B97: 88 | C97: [AT-AT] Westtirol Transformer WTRHU41 [OPP]_LTA_corner#20_#15 | D97: 14T-38220-WT041O | E97: BASECASE | F97: N/A | G97: 0 | H97: 0 | I97: 0.99164 | J97: -0.02514 | K97: 0.12403 | L97: -0.02514 | M97: 0 | N97: 4483 | O97: =IF((G97*ALBE+H97*ALDE+I97*AT+J97*BE+K97*DE+L97*FR+M97*NL)>(N97),1,0) -> 0 | Q97: =IF((C$6*G97+D$6*H97+E$6*I97+F$6*J97+G$6*K97+H$6*L97+I$6*M97)>(N97),1,0) -> 0
B98: 89 | C98: [D2-NL] Diele - Meeden 380 Black [DIR] [NL]_LTA_corner#01_#8 | D98: 10T-DE-NL-00001V | E98: [D2-NL] Diele - Meeden 380 White | F98: 10T-DE-NL-00002T | G98: 0 | H98: 0 | I98: 0.52467 | J98: 0.44135 | K98: 0.57892 | L98: 0.44135 | M98: 0 | N98: 1299 | O98: =IF((G98*ALBE+H98*ALDE+I98*AT+J98*BE+K98*DE+L98*FR+M98*NL)>(N98),1,0) -> 0 | Q98: =IF((C$6*G98+D$6*H98+E$6*I98+F$6*J98+G$6*K98+H$6*L98+I$6*M98)>(N98),1,0) -> 0
B99: 90 | C99: [D2-NL] Diele - Meeden 380 Black [DIR] [NL]_LTA_corner#01_#4 | D99: 10T-DE-NL-00001V | E99: [D2-NL] Diele - Meeden 380 White | F99: 10T-DE-NL-00002T | G99: 0 | H99: 0 | I99: 0.52479 | J99: 0.43713 | K99: 0.58517 | L99: 0.43713 | M99: 0 | N99: 1343 | O99: =IF((G99*ALBE+H99*ALDE+I99*AT+J99*BE+K99*DE+L99*FR+M99*NL)>(N99),1,0) -> 0 | Q99: =IF((C$6*G99+D$6*H99+E$6*I99+F$6*J99+G$6*K99+H$6*L99+I$6*M99)>(N99),1,0) -> 0
B100: 91 | C100: [D2-NL] Diele - Meeden 380 Black [DIR] [D2]_LTA_corner#05_#6 | D100: 10T-DE-NL-00001V | E100: [D2-NL] Diele - Meeden 380 White | F100: 10T-DE-NL-00002T | G100: 0 | H100: 0 | I100: 0.5971 | J100: 0.32675 | K100: 0.5971 | L100: 0.42447 | M100: 0 | N100: 1187 | O100: =IF((G100*ALBE+H100*ALDE+I100*AT+J100*BE+K100*DE+L100*FR+M100*NL)>(N100),1,0) -> 0 | Q100: =IF((C$6*G100+D$6*H100+E$6*I100+F$6*J100+G$6*K100+H$6*L100+I$6*M100)>(N100),1,0) -> 0
B101: 92 | C101: [D2-NL] Diele - Meeden 380 Black [DIR] [NL]_LTA_corner#01_#9 | D101: 10T-DE-NL-00001V | E101: [D2-NL] Diele - Meeden 380 White | F101: 10T-DE-NL-00002T | G101: 0 | H101: 0 | I101: 0.51593 | J101: 0.45275 | K101: 0.56909 | L101: 0.45275 | M101: 0 | N101: 1269 | O101: =IF((G101*ALBE+H101*ALDE+I101*AT+J101*BE+K101*DE+L101*FR+M101*NL)>(N101),1,0) -> 0 | Q101: =IF((C$6*G101+D$6*H101+E$6*I101+F$6*J101+G$6*K101+H$6*L101+I$6*M101)>(N101),1,0) -> 0
B102: 93 | C102: [D4-AT] Buers - Westtirol 421 weiss [OPP] [D4]_LTA_corner#17_#4 | D102: 10T-AT-DE-000061 | E102: [AT-AT] Westtirol Transformer WTRHU41 | F102: 14T-38220-WT041O | G102: 0 | H102: 0 | I102: 0.98827 | J102: 0.01401 | K102: 0.12044 | L102: -0.09284 | M102: 0 | N102: 4598 | O102: =IF((G102*ALBE+H102*ALDE+I102*AT+J102*BE+K102*DE+L102*FR+M102*NL)>(N102),1,0) -> 0 | Q102: =IF((C$6*G102+D$6*H102+E$6*I102+F$6*J102+G$6*K102+H$6*L102+I$6*M102)>(N102),1,0) -> 0
B103: 94 | C103: [AT-AT] Westtirol Transformer WTRHU41 [OPP]_LTA_corner#20_#19 | D103: 14T-38220-WT041O | E103: BASECASE | F103: N/A | G103: 0 | H103: 0 | I103: 0.9889 | J103: -0.07468 | K103: 0.10452 | L103: -0.07468 | M103: 0 | N103: 4610 | O103: =IF((G103*ALBE+H103*ALDE+I103*AT+J103*BE+K103*DE+L103*FR+M103*NL)>(N103),1,0) -> 0 | Q103: =IF((C$6*G103+D$6*H103+E$6*I103+F$6*J103+G$6*K103+H$6*L103+I$6*M103)>(N103),1,0) -> 0
B104: 95 | C104: ALBE_export | D104: N/A | E104: BASECASE | F104: N/A | G104: 1 | H104: 0 | I104: 0 | J104: 0 | K104: 0 | L104: 0 | M104: 0 | N104: 0 | O104: =IF((G104*ALBE+H104*ALDE+I104*AT+J104*BE+K104*DE+L104*FR+M104*NL)>(N104),1,0) -> 0 | Q104: =IF((C$6*G104+D$6*H104+E$6*I104+F$6*J104+G$6*K104+H$6*L104+I$6*M104)>(N104),1,0) -> 0
B105: 96 | C105: [D2-NL] Diele - Meeden 380 Black [DIR] [D2]_LTA_corner#01_#0 | D105: 10T-DE-NL-00001V | E105: [D2-NL] Diele - Meeden 380 White | F105: 10T-DE-NL-00002T | G105: 0 | H105: 0 | I105: -0.98069 | J105: 0.08303 | K105: 0.17109 | L105: 0.04553 | M105: 0 | N105: 5937 | O105: =IF((G105*ALBE+H105*ALDE+I105*AT+J105*BE+K105*DE+L105*FR+M105*NL)>(N105),1,0) -> 0 | Q105: =IF((C$6*G105+D$6*H105+E$6*I105+F$6*J105+G$6*K105+H$6*L105+I$6*M105)>(N105),1,0) -> 0
B106: 97 | C106: [D2-NL] Diele - Meeden 380 Black [DIR] [NL]_LTA_corner#05_#0 | D106: 10T-DE-NL-00001V | E106: [D2-NL] Diele - Meeden 380 White | F106: 10T-DE-NL-00002T | G106: 0 | H106: 0 | I106: 0.58838 | J106: 0.08606 | K106: 0.71537 | L106: 0.36694 | M106: 0 | N106: 2265 | O106: =IF((G106*ALBE+H106*ALDE+I106*AT+J106*BE+K106*DE+L106*FR+M106*NL)>(N106),1,0) -> 0 | Q106: =IF((C$6*G106+D$6*H106+E$6*I106+F$6*J106+G$6*K106+H$6*L106+I$6*M106)>(N106),1,0) -> 0
B107: 98 | C107: [D2-NL] Diele - Meeden 380 Black [DIR] [D2]_LTA_corner#05_#22 | D107: 10T-DE-NL-00001V | E107: [D2-NL] Diele - Meeden 380 White | F107: 10T-DE-NL-00002T | G107: 0 | H107: 0 | I107: 0.59525 | J107: 0.32349 | K107: 0.59525 | L107: 0.4321 | M107: 0 | N107: 1192 | O107: =IF((G107*ALBE+H107*ALDE+I107*AT+J107*BE+K107*DE+L107*FR+M107*NL)>(N107),1,0) -> 0 | Q107: =IF((C$6*G107+D$6*H107+E$6*I107+F$6*J107+G$6*K107+H$6*L107+I$6*M107)>(N107),1,0) -> 0
B108: 99 | C108: [D2-NL] Diele - Meeden 380 Black [DIR] [NL]_LTA_corner#01_#6 | D108: 10T-DE-NL-00001V | E108: [D2-NL] Diele - Meeden 380 White | F108: 10T-DE-NL-00002T | G108: 0 | H108: 0 | I108: 0.52382 | J108: 0.42152 | K108: 0.60848 | L108: 0.42152 | M108: 0 | N108: 1515 | O108: =IF((G108*ALBE+H108*ALDE+I108*AT+J108*BE+K108*DE+L108*FR+M108*NL)>(N108),1,0) -> 0 | Q108: =IF((C$6*G108+D$6*H108+E$6*I108+F$6*J108+G$6*K108+H$6*L108+I$6*M108)>(N108),1,0) -> 0
B109: 100 | C109: [D2-NL] Diele - Meeden 380 Black [DIR] [NL]_LTA_corner#01_#0 | D109: 10T-DE-NL-00001V | E109: [D2-NL] Diele - Meeden 380 White | F109: 10T-DE-NL-00002T | G109: 0 | H109: 0 | I109: 0.50897 | J109: 0.47868 | K109: 0.56537 | L109: 0.43838 | M109: 0 | N109: 1331 | O109: =IF((G109*ALBE+H109*ALDE+I109*AT+J109*BE+K109*DE+L109*FR+M109*NL)>(N109),1,0) -> 0 | Q109: =IF((C$6*G109+D$6*H109+E$6*I109+F$6*J109+G$6*K109+H$6*L109+I$6*M109)>(N109),1,0) -> 0
B110: 101 | C110: [BE-BE] PST_ZANDV_2 [N - S]_LTA_corner#13_#13 | D110: 22T20161020---56 | E110: [NL-BE] Rilland - Zandvliet 380 White/30 | F110: 10T-BE-NL-00004C | G110: 0 | H110: 0 | I110: -0.37712 | J110: -0.68937 | K110: -0.31658 | L110: -0.53134 | M110: 0 | N110: 1728 | O110: =IF((G110*ALBE+H110*ALDE+I110*AT+J110*BE+K110*DE+L110*FR+M110*NL)>(N110),1,0) -> 0 | Q110: =IF((C$6*G110+D$6*H110+E$6*I110+F$6*J110+G$6*K110+H$6*L110+I$6*M110)>(N110),1,0) -> 0
A111: hour 2 | B111: 206 | C111: [BE-FR] Achene - Lonny 380.19 [DIR] [BE]_LTA_corner#02_#0 | D111: 10T-BE-FR-000015 | E111: [BE-BE] Avelgem - Horta 380.102 | F111: 22T20161020---1E | G111: 0 | H111: 0 | I111: -0.4359 | J111: 0.40314 | K111: -0.32112 | L111: -0.7378 | M111: 0 | N111: 2344 | O111: =IF((G111*ALBE+H111*ALDE+I111*AT+J111*BE+K111*DE+L111*FR+M111*NL)>(N111),1,0) -> 0 | Q111: =IF((C$6*G111+D$6*H111+E$6*I111+F$6*J111+G$6*K111+H$6*L111+I$6*M111)>(N111),1,0) -> 0
B112: 207 | C112: [D2-NL] Diele - Meeden 380 Black [DIR] [NL]_LTA_corner#05_#14 | D112: 10T-DE-NL-00001V | E112: [D2-NL] Diele - Meeden 380 White | F112: 10T-DE-NL-00002T | G112: 0 | H112: 0 | I112: 0.57669 | J112: 0.23606 | K112: 0.63372 | L112: 0.45837 | M112: 0 | N112: 1660 | O112: =IF((G112*ALBE+H112*ALDE+I112*AT+J112*BE+K112*DE+L112*FR+M112*NL)>(N112),1,0) -> 0 | Q112: =IF((C$6*G112+D$6*H112+E$6*I112+F$6*J112+G$6*K112+H$6*L112+I$6*M112)>(N112),1,0) -> 0
B113: 208 | C113: [BE-FR] Achene - Lonny 380.19 [DIR] [BE]_LTA_corner#02_#14 | D113: 10T-BE-FR-000015 | E113: [BE-BE] Avelgem - Horta 380.102 | F113: 22T20161020---1E | G113: 0 | H113: 0 | I113: -0.4443 | J113: 0.34494 | K113: -0.31683 | L113: -0.7637 | M113: 0 | N113: 2374 | O113: =IF((G113*ALBE+H113*ALDE+I113*AT+J113*BE+K113*DE+L113*FR+M113*NL)>(N113),1,0) -> 0 | Q113: =IF((C$6*G113+D$6*H113+E$6*I113+F$6*J113+G$6*K113+H$6*L113+I$6*M113)>(N113),1,0) -> 0
B114: 209 | C114: ALDE_import | D114: N/A | E114: BASECASE | F114: N/A | G114: 0 | H114: -1 | I114: 0 | J114: 0 | K114: 0 | L114: 0 | M114: 0 | N114: 0 | O114: =IF((G114*ALBE+H114*ALDE+I114*AT+J114*BE+K114*DE+L114*FR+M114*NL)>(N114),1,0) -> 0 | Q114: =IF((C$6*G114+D$6*H114+E$6*I114+F$6*J114+G$6*K114+H$6*L114+I$6*M114)>(N114),1,0) -> 0
B115: 210 | C115: [D2-NL] Diele - Meeden 380 Black [DIR] [NL]_LTA_corner#05_#0 | D115: 10T-DE-NL-00001V | E115: [D2-NL] Diele - Meeden 380 White | F115: 10T-DE-NL-00002T | G115: 0 | H115: 0 | I115: 0.54046 | J115: 0.37585 | K115: 0.59454 | L115: 0.46169 | M115: 0 | N115: 1415 | O115: =IF((G115*ALBE+H115*ALDE+I115*AT+J115*BE+K115*DE+L115*FR+M115*NL)>(N115),1,0) -> 0 | Q115: =IF((C$6*G115+D$6*H115+E$6*I115+F$6*J115+G$6*K115+H$6*L115+I$6*M115)>(N115),1,0) -> 0
B116: 211 | C116: [D4-AT] Buers - Westtirol 421 weiss [OPP] [D4]_LTA_corner#20_#7 | D116: 10T-AT-DE-000061 | E116: [AT-AT] Westtirol Transformer WTRHU41 | F116: 14T-38220-WT041O | G116: 0 | H116: 0 | I116: 0.94213 | J116: -0.08367 | K116: 0 | L116: -0.32464 | M116: 0 | N116: 5072 | O116: =IF((G116*ALBE+H116*ALDE+I116*AT+J116*BE+K116*DE+L116*FR+M116*NL)>(N116),1,0) -> 0 | Q116: =IF((C$6*G116+D$6*H116+E$6*I116+F$6*J116+G$6*K116+H$6*L116+I$6*M116)>(N116),1,0) -> 0
B117: 212 | C117: [AT-AT] Westtirol Transformer WTRHU41 [OPP]_LTA_corner#20_#0 | D117: 14T-38220-WT041O | E117: BASECASE | F117: N/A | G117: 0 | H117: 0 | I117: 0.98364 | J117: -0.02079 | K117: 0.1647 | L117: -0.07 | M117: 0 | N117: 4404 | O117: =IF((G117*ALBE+H117*ALDE+I117*AT+J117*BE+K117*DE+L117*FR+M117*NL)>(N117),1,0) -> 0 | Q117: =IF((C$6*G117+D$6*H117+E$6*I117+F$6*J117+G$6*K117+H$6*L117+I$6*M117)>(N117),1,0) -> 0
B118: 213 | C118: ALDE_export | D118: N/A | E118: BASECASE | F118: N/A | G118: 0 | H118: 1 | I118: 0 | J118: 0 | K118: 0 | L118: 0 | M118: 0 | N118: 0 | O118: =IF((G118*ALBE+H118*ALDE+I118*AT+J118*BE+K118*DE+L118*FR+M118*NL)>(N118),1,0) -> 0 | Q118: =IF((C$6*G118+D$6*H118+E$6*I118+F$6*J118+G$6*K118+H$6*L118+I$6*M118)>(N118),1,0) -> 0
B119: 214 | C119: [BE-BE] PST_ZANDV_2 [N - S]_LTA_corner#13_#0 | D119: 22T20161020---56 | E119: [NL-BE] Rilland - Zandvliet 380 White/30 | F119: 10T-BE-NL-00004C | G119: 0 | H119: 0 | I119: -0.31609 | J119: -0.81177 | K119: -0.28307 | L119: -0.40122 | M119: 0 | N119: 1974 | O119: =IF((G119*ALBE+H119*ALDE+I119*AT+J119*BE+K119*DE+L119*FR+M119*NL)>(N119),1,0) -> 0 | Q119: =IF((C$6*G119+D$6*H119+E$6*I119+F$6*J119+G$6*K119+H$6*L119+I$6*M119)>(N119),1,0) -> 0
B120: 215 | C120: [BE-FR] Achene - Lonny 380.19 [DIR] [BE]_LTA_corner#02_#2 | D120: 10T-BE-FR-000015 | E120: [BE-BE] Avelgem - Horta 380.102 | F120: 22T20161020---1E | G120: 0 | H120: 0 | I120: -0.44606 | J120: 0.31411 | K120: -0.32256 | L120: -0.77351 | M120: 0 | N120: 2335 | O120: =IF((G120*ALBE+H120*ALDE+I120*AT+J120*BE+K120*DE+L120*FR+M120*NL)>(N120),1,0) -> 0 | Q120: =IF((C$6*G120+D$6*H120+E$6*I120+F$6*J120+G$6*K120+H$6*L120+I$6*M120)>(N120),1,0) -> 0
B121: 216 | C121: [D2-NL] Diele - Meeden 380 Black [DIR] [D2]_LTA_corner#05_#0 | D121: 10T-DE-NL-00001V | E121: [D2-NL] Diele - Meeden 380 White | F121: 10T-DE-NL-00002T | G121: 0 | H121: 0 | I121: 0.5647 | J121: 0.29336 | K121: 0.64337 | L121: 0.4256 | M121: 0 | N121: 1699 | O121: =IF((G121*ALBE+H121*ALDE+I121*AT+J121*BE+K121*DE+L121*FR+M121*NL)>(N121),1,0) -> 0 | Q121: =IF((C$6*G121+D$6*H121+E$6*I121+F$6*J121+G$6*K121+H$6*L121+I$6*M121)>(N121),1,0) -> 0
B122: 217 | C122: [D4-AT] Buers - Westtirol 421 weiss [OPP] [D4]_LTA_corner#17_#13 | D122: 10T-AT-DE-000061 | E122: [AT-AT] Westtirol Transformer WTRHU41 | F122: 14T-38220-WT041O | G122: 0 | H122: 0 | I122: 0.98513 | J122: 0 | K122: 0.09789 | L122: -0.1412 | M122: 0 | N122: 4705 | O122: =IF((G122*ALBE+H122*ALDE+I122*AT+J122*BE+K122*DE+L122*FR+M122*NL)>(N122),1,0) -> 0 | Q122: =IF((C$6*G122+D$6*H122+E$6*I122+F$6*J122+G$6*K122+H$6*L122+I$6*M122)>(N122),1,0) -> 0
B123: 218 | C123: [D2-NL] Diele - Meeden 380 Black [DIR] [D2]_LTA_corner#05_#2 | D123: 10T-DE-NL-00001V | E123: [D2-NL] Diele - Meeden 380 White | F123: 10T-DE-NL-00002T | G123: 0 | H123: 0 | I123: 0.60565 | J123: 0.30146 | K123: 0.60565 | L123: 0.41891 | M123: 0 | N123: 1228 | O123: =IF((G123*ALBE+H123*ALDE+I123*AT+J123*BE+K123*DE+L123*FR+M123*NL)>(N123),1,0) -> 0 | Q123: =IF((C$6*G123+D$6*H123+E$6*I123+F$6*J123+G$6*K123+H$6*L123+I$6*M123)>(N123),1,0) -> 0
B124: 219 | C124: [D4-AT] Buers - Westtirol 421 weiss [OPP] [D4]_LTA_corner#20_#0 | D124: 10T-AT-DE-000061 | E124: [AT-AT] Westtirol Transformer WTRHU41 | F124: 14T-38220-WT041O | G124: 0 | H124: 0 | I124: 0.98484 | J124: -0.08386 | K124: 0.12499 | L124: -0.08621 | M124: 0 | N124: 4554 | O124: =IF((G124*ALBE+H124*ALDE+I124*AT+J124*BE+K124*DE+L124*FR+M124*NL)>(N124),1,0) -> 0 | Q124: =IF((C$6*G124+D$6*H124+E$6*I124+F$6*J124+G$6*K124+H$6*L124+I$6*M124)>(N124),1,0) -> 0
B125: 220 | C125: [BE-BE] PST_VANYK_2 [S - N] | D125: 22T-BE-PST--002U | E125: [BE-FR] Achene - Lonny 380.19 | F125: 10T-BE-FR-000015 | G125: 0.57308 | H125: -0.02434 | I125: 0.00534 | J125: 0.32016 | K125: -0.00699 | L125: 0.04597 | M125: 0.01996 | N125: 1025 | O125: =IF((G125*ALBE+H125*ALDE+I125*AT+J125*BE+K125*DE+L125*FR+M125*NL)>(N125),1,0) -> 0 | Q125: =IF((C$6*G125+D$6*H125+E$6*I125+F$6*J125+G$6*K125+H$6*L125+I$6*M125)>(N125),1,0) -> 0
B126: 221 | C126: [BE-FR] Achene - Lonny 380.19 [DIR] [BE]_LTA_corner#02_#18 | D126: 10T-BE-FR-000015 | E126: [BE-BE] Avelgem - Horta 380.102 | F126: 22T20161020---1E | G126: 0 | H126: 0 | I126: -0.44882 | J126: 0.34315 | K126: -0.3219 | L126: -0.75973 | M126: 0 | N126: 2364 | O126: =IF((G126*ALBE+H126*ALDE+I126*AT+J126*BE+K126*DE+L126*FR+M126*NL)>(N126),1,0) -> 0 | Q126: =IF((C$6*G126+D$6*H126+E$6*I126+F$6*J126+G$6*K126+H$6*L126+I$6*M126)>(N126),1,0) -> 0
B127: 222 | C127: [BE-BE] PST_ZANDV_2 [N - S]_LTA_corner#13_#1 | D127: 22T20161020---56 | E127: [NL-BE] Rilland - Zandvliet 380 White/30 | F127: 10T-BE-NL-00004C | G127: 0 | H127: 0 | I127: -0.39379 | J127: -0.70402 | K127: -0.31713 | L127: -0.49872 | M127: 0 | N127: 1864 | O127: =IF((G127*ALBE+H127*ALDE+I127*AT+J127*BE+K127*DE+L127*FR+M127*NL)>(N127),1,0) -> 0 | Q127: =IF((C$6*G127+D$6*H127+E$6*I127+F$6*J127+G$6*K127+H$6*L127+I$6*M127)>(N127),1,0) -> 0
B128: 223 | C128: [D4-AT] Buers - Westtirol 421 weiss [OPP] [D4]_LTA_corner#17_#16 | D128: 10T-AT-DE-000061 | E128: [AT-AT] Westtirol Transformer WTRHU41 | F128: 14T-38220-WT041O | G128: 0 | H128: 0 | I128: 0.98509 | J128: 0 | K128: 0.13111 | L128: -0.1114 | M128: 0 | N128: 4566 | O128: =IF((G128*ALBE+H128*ALDE+I128*AT+J128*BE+K128*DE+L128*FR+M128*NL)>(N128),1,0) -> 0 | Q128: =IF((C$6*G128+D$6*H128+E$6*I128+F$6*J128+G$6*K128+H$6*L128+I$6*M128)>(N128),1,0) -> 0
B129: 224 | C129: [BE-BE] PST_ZANDV_2 [N - S]_LTA_corner#09_#9 | D129: 22T20161020---56 | E129: [NL-BE] Rilland - Zandvliet 380 White/30 | F129: 10T-BE-NL-00004C | G129: 0 | H129: 0 | I129: -0.42096 | J129: -0.5921 | K129: -0.34875 | L129: -0.5921 | M129: 0 | N129: 1515 | O129: =IF((G129*ALBE+H129*ALDE+I129*AT+J129*BE+K129*DE+L129*FR+M129*NL)>(N129),1,0) -> 0 | Q129: =IF((C$6*G129+D$6*H129+E$6*I129+F$6*J129+G$6*K129+H$6*L129+I$6*M129)>(N129),1,0) -> 0
B130: 225 | C130: [BE-BE] PST_ZANDV_2 [N - S]_LTA_corner#09_#5 | D130: 22T20161020---56 | E130: [NL-BE] Rilland - Zandvliet 380 White/30 | F130: 10T-BE-NL-00004C | G130: 0 | H130: 0 | I130: -0.41394 | J130: -0.59421 | K130: -0.34999 | L130: -0.59421 | M130: 0 | N130: 1479 | O130: =IF((G130*ALBE+H130*ALDE+I130*AT+J130*BE+K130*DE+L130*FR+M130*NL)>(N130),1,0) -> 0 | Q130: =IF((C$6*G130+D$6*H130+E$6*I130+F$6*J130+G$6*K130+H$6*L130+I$6*M130)>(N130),1,0) -> 0
B131: 226 | C131: ALBE_export | D131: N/A | E131: BASECASE | F131: N/A | G131: 1 | H131: 0 | I131: 0 | J131: 0 | K131: 0 | L131: 0 | M131: 0 | N131: 0 | O131: =IF((G131*ALBE+H131*ALDE+I131*AT+J131*BE+K131*DE+L131*FR+M131*NL)>(N131),1,0) -> 0 | Q131: =IF((C$6*G131+D$6*H131+E$6*I131+F$6*J131+G$6*K131+H$6*L131+I$6*M131)>(N131),1,0) -> 0
B132: 227 | C132: [NL-NL] Borssele - Rilland 380 Zwart [DIR] | D132: 49T000000000059S | E132: [NL-NL] Borssele - Rilland 380 Grijs | F132: 49T000000000057W | G132: -0.00585 | H132: 0.00231 | I132: -0.00081 | J132: -0.0149 | K132: 0.00111 | L132: -0.00626 | M132: 0.22537 | N132: 817 | O132: =IF((G132*ALBE+H132*ALDE+I132*AT+J132*BE+K132*DE+L132*FR+M132*NL)>(N132),1,0) -> 0 | Q132: =IF((C$6*G132+D$6*H132+E$6*I132+F$6*J132+G$6*K132+H$6*L132+I$6*M132)>(N132),1,0) -> 0
B133: 228 | C133: [BE-BE] PST_ZANDV_2 [N - S]_LTA_corner#09_#1 | D133: 22T20161020---56 | E133: [NL-BE] Rilland - Zandvliet 380 White/30 | F133: 10T-BE-NL-00004C | G133: 0 | H133: 0 | I133: -0.42107 | J133: -0.58986 | K133: -0.35615 | L133: -0.58986 | M133: 0 | N133: 1478 | O133: =IF((G133*ALBE+H133*ALDE+I133*AT+J133*BE+K133*DE+L133*FR+M133*NL)>(N133),1,0) -> 0 | Q133: =IF((C$6*G133+D$6*H133+E$6*I133+F$6*J133+G$6*K133+H$6*L133+I$6*M133)>(N133),1,0) -> 0
B134: 229 | C134: [D2-NL] Diele - Meeden 380 Black [DIR] [NL]_LTA_corner#05_#2 | D134: 10T-DE-NL-00001V | E134: [D2-NL] Diele - Meeden 380 White | F134: 10T-DE-NL-00002T | G134: 0 | H134: 0 | I134: 0.57344 | J134: 0.24533 | K134: 0.63053 | L134: 0.46197 | M134: 0 | N134: 1646 | O134: =IF((G134*ALBE+H134*ALDE+I134*AT+J134*BE+K134*DE+L134*FR+M134*NL)>(N134),1,0) -> 0 | Q134: =IF((C$6*G134+D$6*H134+E$6*I134+F$6*J134+G$6*K134+H$6*L134+I$6*M134)>(N134),1,0) -> 0
B135: 230 | C135: [D4-AT] Buers - Westtirol 421 weiss [OPP] [D4]_LTA_corner#20_#17 | D135: 10T-AT-DE-000061 | E135: [AT-AT] Westtirol Transformer WTRHU41 | F135: 14T-38220-WT041O | G135: 0 | H135: 0 | I135: 0.97733 | J135: -0.05138 | K135: 0.15258 | L135: -0.1375 | M135: 0 | N135: 4520 | O135: =IF((G135*ALBE+H135*ALDE+I135*AT+J135*BE+K135*DE+L135*FR+M135*NL)>(N135),1,0) -> 0 | Q135: =IF((C$6*G135+D$6*H135+E$6*I135+F$6*J135+G$6*K135+H$6*L135+I$6*M135)>(N135),1,0) -> 0
B136: 231 | C136: [D4-AT] Buers - Westtirol 421 weiss [OPP] [D4]_LTA_corner#20_#12 | D136: 10T-AT-DE-000061 | E136: [AT-AT] Westtirol Transformer WTRHU41 | F136: 14T-38220-WT041O | G136: 0 | H136: 0 | I136: 0.94194 | J136: -0.08404 | K136: 0 | L136: -0.32508 | M136: 0 | N136: 5072 | O136: =IF((G136*ALBE+H136*ALDE+I136*AT+J136*BE+K136*DE+L136*FR+M136*NL)>(N136),1,0) -> 0 | Q136: =IF((C$6*G136+D$6*H136+E$6*I136+F$6*J136+G$6*K136+H$6*L136+I$6*M136)>(N136),1,0) -> 0
B137: 232 | C137: [D4-AT] Buers - Westtirol 421 weiss [OPP] [D4]_LTA_corner#20_#13 | D137: 10T-AT-DE-000061 | E137: [AT-AT] Westtirol Transformer WTRHU41 | F137: 14T-38220-WT041O | G137: 0 | H137: 0 | I137: 0.94194 | J137: -0.0841 | K137: 0 | L137: -0.32508 | M137: 0 | N137: 5072 | O137: =IF((G137*ALBE+H137*ALDE+I137*AT+J137*BE+K137*DE+L137*FR+M137*NL)>(N137),1,0) -> 0 | Q137: =IF((C$6*G137+D$6*H137+E$6*I137+F$6*J137+G$6*K137+H$6*L137+I$6*M137)>(N137),1,0) -> 0
B138: 233 | C138: [BE-BE] PST_ZANDV_2 [N - S]_LTA_corner#13_#7 | D138: 22T20161020---56 | E138: [NL-BE] Rilland - Zandvliet 380 White/30 | F138: 10T-BE-NL-00004C | G138: 0 | H138: 0 | I138: -0.35452 | J138: -0.71615 | K138: -0.3226 | L138: -0.50732 | M138: 0 | N138: 1674 | O138: =IF((G138*ALBE+H138*ALDE+I138*AT+J138*BE+K138*DE+L138*FR+M138*NL)>(N138),1,0) -> 0 | Q138: =IF((C$6*G138+D$6*H138+E$6*I138+F$6*J138+G$6*K138+H$6*L138+I$6*M138)>(N138),1,0) -> 0
B139: 234 | C139: ALBE_import | D139: N/A | E139: BASECASE | F139: N/A | G139: -1 | H139: 0 | I139: 0 | J139: 0 | K139: 0 | L139: 0 | M139: 0 | N139: 0 | O139: =IF((G139*ALBE+H139*ALDE+I139*AT+J139*BE+K139*DE+L139*FR+M139*NL)>(N139),1,0) -> 0 | Q139: =IF((C$6*G139+D$6*H139+E$6*I139+F$6*J139+G$6*K139+H$6*L139+I$6*M139)>(N139),1,0) -> 0
B140: 235 | C140: [BE-BE] PST_ZANDV_2 [N - S]_LTA_corner#09_#6 | D140: 22T20161020---56 | E140: [NL-BE] Rilland - Zandvliet 380 White/30 | F140: 10T-BE-NL-00004C | G140: 0 | H140: 0 | I140: -0.41637 | J140: -0.59257 | K140: -0.35264 | L140: -0.59257 | M140: 0 | N140: 1476 | O140: =IF((G140*ALBE+H140*ALDE+I140*AT+J140*BE+K140*DE+L140*FR+M140*NL)>(N140),1,0) -> 0 | Q140: =IF((C$6*G140+D$6*H140+E$6*I140+F$6*J140+G$6*K140+H$6*L140+I$6*M140)>(N140),1,0) -> 0
B141: 236 | C141: [D2-D2] Altheim - Sittling 220 [OPP] | D141: 11TD2L000000004J | E141: [D2-AT] Pleinting - St. Peter 258 | F141: 10T-AT-DE-000037 | G141: 0.03468 | H141: 0.03645 | I141: -0.02569 | J141: 0.03435 | K141: 0.03429 | L141: 0.03049 | M141: 0.03565 | N141: 314 | O141: =IF((G141*ALBE+H141*ALDE+I141*AT+J141*BE+K141*DE+L141*FR+M141*NL)>(N141),1,0) -> 0 | Q141: =IF((C$6*G141+D$6*H141+E$6*I141+F$6*J141+G$6*K141+H$6*L141+I$6*M141)>(N141),1,0) -> 0
B142: 237 | C142: [BE-FR] Achene - Lonny 380.19 [DIR] [BE]_LTA_corner#02_#4 | D142: 10T-BE-FR-000015 | E142: [BE-BE] Avelgem - Horta 380.102 | F142: 22T20161020---1E | G142: 0 | H142: 0 | I142: -0.43936 | J142: 0.34495 | K142: -0.32359 | L142: -0.76372 | M142: 0 | N142: 2320 | O142: =IF((G142*ALBE+H142*ALDE+I142*AT+J142*BE+K142*DE+L142*FR+M142*NL)>(N142),1,0) -> 0 | Q142: =IF((C$6*G142+D$6*H142+E$6*I142+F$6*J142+G$6*K142+H$6*L142+I$6*M142)>(N142),1,0) -> 0
B143: 238 | C143: [D2-NL] Diele - Meeden 380 Black [DIR] [D2]_LTA_corner#21_#0 | D143: 10T-DE-NL-00001V | E143: [D2-NL] Diele - Meeden 380 White | F143: 10T-DE-NL-00002T | G143: 0 | H143: 0 | I143: 0.78417 | J143: 0.23566 | K143: 0.46025 | L143: 0.34309 | M143: 0 | N143: 2505 | O143: =IF((G143*ALBE+H143*ALDE+I143*AT+J143*BE+K143*DE+L143*FR+M143*NL)>(N143),1,0) -> 0 | Q143: =IF((C$6*G143+D$6*H143+E$6*I143+F$6*J143+G$6*K143+H$6*L143+I$6*M143)>(N143),1,0) -> 0
B144: 239 | C144: [D2-NL] Diele - Meeden 380 Black [DIR] [D2]_LTA_corner#05_#10 | D144: 10T-DE-NL-00001V | E144: [D2-NL] Diele - Meeden 380 White | F144: 10T-DE-NL-00002T | G144: 0 | H144: 0 | I144: 0.60245 | J144: 0.30695 | K144: 0.60245 | L144: 0.42414 | M144: 0 | N144: 1219 | O144: =IF((G144*ALBE+H144*ALDE+I144*AT+J144*BE+K144*DE+L144*FR+M144*NL)>(N144),1,0) -> 0 | Q144: =IF((C$6*G144+D$6*H144+E$6*I144+F$6*J144+G$6*K144+H$6*L144+I$6*M144)>(N144),1,0) -> 0
B145: 240 | C145: [BE-FR] Achene - Lonny 380.19 [DIR] [BE]_LTA_corner#02_#5 | D145: 10T-BE-FR-000015 | E145: [BE-BE] Avelgem - Horta 380.102 | F145: 22T20161020---1E | G145: 0 | H145: 0 | I145: -0.47384 | J145: 0.16964 | K145: -0.35501 | L145: -0.78782 | M145: 0 | N145: 2171 | O145: =IF((G145*ALBE+H145*ALDE+I145*AT+J145*BE+K145*DE+L145*FR+M145*NL)>(N145),1,0) -> 0 | Q145: =IF((C$6*G145+D$6*H145+E$6*I145+F$6*J145+G$6*K145+H$6*L145+I$6*M145)>(N145),1,0) -> 0
B146: 241 | C146: [BE-BE] PST_ZANDV_2 [N - S]_LTA_corner#13_#28 | D146: 22T20161020---56 | E146: [NL-BE] Rilland - Zandvliet 380 White/30 | F146: 10T-BE-NL-00004C | G146: 0 | H146: 0 | I146: -0.37427 | J146: -0.71695 | K146: -0.29658 | L146: -0.50788 | M146: 0 | N146: 1887 | O146: =IF((G146*ALBE+H146*ALDE+I146*AT+J146*BE+K146*DE+L146*FR+M146*NL)>(N146),1,0) -> 0 | Q146: =IF((C$6*G146+D$6*H146+E$6*I146+F$6*J146+G$6*K146+H$6*L146+I$6*M146)>(N146),1,0) -> 0
B147: 242 | C147: [BE-FR] Achene - Lonny 380.19 [DIR] [BE]_LTA_corner#02_#11 | D147: 10T-BE-FR-000015 | E147: [BE-BE] Avelgem - Horta 380.102 | F147: 22T20161020---1E | G147: 0 | H147: 0 | I147: -0.44262 | J147: 0.34364 | K147: -0.32735 | L147: -0.76081 | M147: 0 | N147: 2313 | O147: =IF((G147*ALBE+H147*ALDE+I147*AT+J147*BE+K147*DE+L147*FR+M147*NL)>(N147),1,0) -> 0 | Q147: =IF((C$6*G147+D$6*H147+E$6*I147+F$6*J147+G$6*K147+H$6*L147+I$6*M147)>(N147),1,0) -> 0
B148: 243 | C148: [BE-FR] Achene - Lonny 380.19 [OPP] [BE] | D148: 10T-BE-FR-000015 | E148: [BE-BE] Avelgem - Horta 380.102 | F148: 22T20161020---1E | G148: -0.30628 | H148: -0.06444 | I148: 0.02074 | J148: -0.30151 | K148: -0.02855 | L148: 0.15115 | M148: -0.16067 | N148: 1951 | O148: =IF((G148*ALBE+H148*ALDE+I148*AT+J148*BE+K148*DE+L148*FR+M148*NL)>(N148),1,0) -> 0 | Q148: =IF((C$6*G148+D$6*H148+E$6*I148+F$6*J148+G$6*K148+H$6*L148+I$6*M148)>(N148),1,0) -> 0
B149: 244 | C149: [D4-AT] Buers - Westtirol 421 weiss [OPP] [D4]_LTA_corner#20_#3 | D149: 10T-AT-DE-000061 | E149: [AT-AT] Westtirol Transformer WTRHU41 | F149: 14T-38220-WT041O | G149: 0 | H149: 0 | I149: 0.99357 | J149: -0.0298 | K149: 0.06609 | L149: -0.08698 | M149: 0 | N149: 4751 | O149: =IF((G149*ALBE+H149*ALDE+I149*AT+J149*BE+K149*DE+L149*FR+M149*NL)>(N149),1,0) -> 0 | Q149: =IF((C$6*G149+D$6*H149+E$6*I149+F$6*J149+G$6*K149+H$6*L149+I$6*M149)>(N149),1,0) -> 0
B150: 245 | C150: [BE-BE] PST_ZANDV_2 [N - S]_LTA_corner#13_#13 | D150: 22T20161020---56 | E150: [NL-BE] Rilland - Zandvliet 380 White/30 | F150: 10T-BE-NL-00004C | G150: 0 | H150: 0 | I150: -0.40757 | J150: -0.64832 | K150: -0.35748 | L150: -0.53458 | M150: 0 | N150: 1589 | O150: =IF((G150*ALBE+H150*ALDE+I150*AT+J150*BE+K150*DE+L150*FR+M150*NL)>(N150),1,0) -> 0 | Q150: =IF((C$6*G150+D$6*H150+E$6*I150+F$6*J150+G$6*K150+H$6*L150+I$6*M150)>(N150),1,0) -> 0
B151: 246 | C151: [D4-AT] Buers - Westtirol 421 weiss [OPP] [D4]_LTA_corner#20_#30 | D151: 10T-AT-DE-000061 | E151: [AT-AT] Westtirol Transformer WTRHU41 | F151: 14T-38220-WT041O | G151: 0 | H151: 0 | I151: 0.97326 | J151: -0.05562 | K151: 0.13469 | L151: -0.17759 | M151: 0 | N151: 4614 | O151: =IF((G151*ALBE+H151*ALDE+I151*AT+J151*BE+K151*DE+L151*FR+M151*NL)>(N151),1,0) -> 0 | Q151: =IF((C$6*G151+D$6*H151+E$6*I151+F$6*J151+G$6*K151+H$6*L151+I$6*M151)>(N151),1,0) -> 0
B152: 247 | C152: [D4-AT] Buers - Westtirol 421 weiss [OPP] [D4]_LTA_corner#17_#3 | D152: 10T-AT-DE-000061 | E152: [AT-AT] Westtirol Transformer WTRHU41 | F152: 14T-38220-WT041O | G152: 0 | H152: 0 | I152: 0.99704 | J152: 0.00859 | K152: 0.07636 | L152: 0.00291 | M152: 0 | N152: 4601 | O152: =IF((G152*ALBE+H152*ALDE+I152*AT+J152*BE+K152*DE+L152*FR+M152*NL)>(N152),1,0) -> 0 | Q152: =IF((C$6*G152+D$6*H152+E$6*I152+F$6*J152+G$6*K152+H$6*L152+I$6*M152)>(N152),1,0) -> 0
B153: 248 | C153: [D2-NL] Diele - Meeden 380 Black [DIR] [D2]_LTA_corner#05_#20 | D153: 10T-DE-NL-00001V | E153: [D2-NL] Diele - Meeden 380 White | F153: 10T-DE-NL-00002T | G153: 0 | H153: 0 | I153: 0.56459 | J153: 0.30558 | K153: 0.656 | L153: 0.39689 | M153: 0 | N153: 1754 | O153: =IF((G153*ALBE+H153*ALDE+I153*AT+J153*BE+K153*DE+L153*FR+M153*NL)>(N153),1,0) -> 0 | Q153: =IF((C$6*G153+D$6*H153+E$6*I153+F$6*J153+G$6*K153+H$6*L153+I$6*M153)>(N153),1,0) -> 0
B154: 249 | C154: [D4-AT] Buers - Westtirol 421 weiss [OPP] [D4]_LTA_corner#25_#0 | D154: 10T-AT-DE-000061 | E154: [AT-AT] Westtirol Transformer WTRHU41 | F154: 14T-38220-WT041O | G154: 0 | H154: 0 | I154: 0.94163 | J154: -0.08422 | K154: -0.00073 | L154: -0.32595 | M154: 0 | N154: 5076 | O154: =IF((G154*ALBE+H154*ALDE+I154*AT+J154*BE+K154*DE+L154*FR+M154*NL)>(N154),1,0) -> 0 | Q154: =IF((C$6*G154+D$6*H154+E$6*I154+F$6*J154+G$6*K154+H$6*L154+I$6*M154)>(N154),1,0) -> 0
B155: 250 | C155: [AT-AT] Westtirol Transformer WTRHU41 [OPP]_LTA_corner#20_#13 | D155: 14T-38220-WT041O | E155: BASECASE | F155: N/A | G155: 0 | H155: 0 | I155: 0.98787 | J155: -0.0703 | K155: 0.11933 | L155: -0.0703 | M155: 0 | N155: 4557 | O155: =IF((G155*ALBE+H155*ALDE+I155*AT+J155*BE+K155*DE+L155*FR+M155*NL)>(N155),1,0) -> 0 | Q155: =IF((C$6*G155+D$6*H155+E$6*I155+F$6*J155+G$6*K155+H$6*L155+I$6*M155)>(N155),1,0) -> 0
B156: 251 | C156: [D4-AT] Buers - Westtirol 421 weiss [OPP] [D4]_LTA_corner#17_#25 | D156: 10T-AT-DE-000061 | E156: [AT-AT] Westtirol Transformer WTRHU41 | F156: 14T-38220-WT041O | G156: 0 | H156: 0 | I156: 0.9975 | J156: 0 | K156: 0.06097 | L156: -0.03562 | M156: 0 | N156: 4697 | O156: =IF((G156*ALBE+H156*ALDE+I156*AT+J156*BE+K156*DE+L156*FR+M156*NL)>(N156),1,0) -> 0 | Q156: =IF((C$6*G156+D$6*H156+E$6*I156+F$6*J156+G$6*K156+H$6*L156+I$6*M156)>(N156),1,0) -> 0
B157: 252 | C157: [D2-NL] Diele - Meeden 380 Black [DIR] [D2]_LTA_corner#05_#6 | D157: 10T-DE-NL-00001V | E157: [D2-NL] Diele - Meeden 380 White | F157: 10T-DE-NL-00002T | G157: 0 | H157: 0 | I157: -0.88038 | J157: 0.1847 | K157: 0.39399 | L157: 0.18867 | M157: 0 | N157: 6896 | O157: =IF((G157*ALBE+H157*ALDE+I157*AT+J157*BE+K157*DE+L157*FR+M157*NL)>(N157),1,0) -> 0 | Q157: =IF((C$6*G157+D$6*H157+E$6*I157+F$6*J157+G$6*K157+H$6*L157+I$6*M157)>(N157),1,0) -> 0
B158: 253 | C158: [AT-AT] Westtirol Transformer WTRHU41 [OPP]_LTA_corner#20_#14 | D158: 14T-38220-WT041O | E158: BASECASE | F158: N/A | G158: 0 | H158: 0 | I158: 0.98894 | J158: -0.06162 | K158: 0.12002 | L158: -0.06162 | M158: 0 | N158: 4545 | O158: =IF((G158*ALBE+H158*ALDE+I158*AT+J158*BE+K158*DE+L158*FR+M158*NL)>(N158),1,0) -> 0 | Q158: =IF((C$6*G158+D$6*H158+E$6*I158+F$6*J158+G$6*K158+H$6*L158+I$6*M158)>(N158),1,0) -> 0
B159: 254 | C159: [BE-BE] PST_ZANDV_2 [N - S]_LTA_corner#13_#11 | D159: 22T20161020---56 | E159: [NL-BE] Rilland - Zandvliet 380 White/30 | F159: 10T-BE-NL-00004C | G159: 0 | H159: 0 | I159: -0.40066 | J159: -0.67028 | K159: -0.35618 | L159: -0.51316 | M159: 0 | N159: 1631 | O159: =IF((G159*ALBE+H159*ALDE+I159*AT+J159*BE+K159*DE+L159*FR+M159*NL)>(N159),1,0) -> 0 | Q159: =IF((C$6*G159+D$6*H159+E$6*I159+F$6*J159+G$6*K159+H$6*L159+I$6*M159)>(N159),1,0) -> 0
B160: 255 | C160: [D4-AT] Buers - Westtirol 421 weiss [OPP] [D4]_LTA_corner#17_#14 | D160: 10T-AT-DE-000061 | E160: [AT-AT] Westtirol Transformer WTRHU41 | F160: 14T-38220-WT041O | G160: 0 | H160: 0 | I160: 0.9851 | J160: 0 | K160: 0.12843 | L160: -0.11439 | M160: 0 | N160: 4578 | O160: =IF((G160*ALBE+H160*ALDE+I160*AT+J160*BE+K160*DE+L160*FR+M160*NL)>(N160),1,0) -> 0 | Q160: =IF((C$6*G160+D$6*H160+E$6*I160+F$6*J160+G$6*K160+H$6*L160+I$6*M160)>(N160),1,0) -> 0
B161: 256 | C161: [D4-AT] Buers - Westtirol 421 weiss [OPP] [D4]_LTA_corner#17_#6 | D161: 10T-AT-DE-000061 | E161: [AT-AT] Westtirol Transformer WTRHU41 | F161: 14T-38220-WT041O | G161: 0 | H161: 0 | I161: 0.99612 | J161: 0 | K161: 0.0878 | L161: -0.00598 | M161: 0 | N161: 4569 | O161: =IF((G161*ALBE+H161*ALDE+I161*AT+J161*BE+K161*DE+L161*FR+M161*NL)>(N161),1,0) -> 0 | Q161: =IF((C$6*G161+D$6*H161+E$6*I161+F$6*J161+G$6*K161+H$6*L161+I$6*M161)>(N161),1,0) -> 0
B162: 257 | C162: [D2-NL] Diele - Meeden 380 Black [DIR] [NL]_LTA_corner#01_#10 | D162: 10T-DE-NL-00001V | E162: [D2-NL] Diele - Meeden 380 White | F162: 10T-DE-NL-00002T | G162: 0 | H162: 0 | I162: 0.51987 | J162: 0.41575 | K162: 0.6272 | L162: 0.40435 | M162: 0 | N162: 1683 | O162: =IF((G162*ALBE+H162*ALDE+I162*AT+J162*BE+K162*DE+L162*FR+M162*NL)>(N162),1,0) -> 0 | Q162: =IF((C$6*G162+D$6*H162+E$6*I162+F$6*J162+G$6*K162+H$6*L162+I$6*M162)>(N162),1,0) -> 0
B163: 258 | C163: [D2-NL] Diele - Meeden 380 Black [DIR] [NL]_LTA_corner#01_#0 | D163: 10T-DE-NL-00001V | E163: [D2-NL] Diele - Meeden 380 White | F163: 10T-DE-NL-00002T | G163: 0 | H163: 0 | I163: 0.52407 | J163: 0.40634 | K163: 0.6286 | L163: 0.40634 | M163: 0 | N163: 1658 | O163: =IF((G163*ALBE+H163*ALDE+I163*AT+J163*BE+K163*DE+L163*FR+M163*NL)>(N163),1,0) -> 0 | Q163: =IF((C$6*G163+D$6*H163+E$6*I163+F$6*J163+G$6*K163+H$6*L163+I$6*M163)>(N163),1,0) -> 0
B164: 259 | C164: [D2-NL] Diele - Meeden 380 Black [DIR] [NL]_LTA_corner#01_#1 | D164: 10T-DE-NL-00001V | E164: [D2-NL] Diele - Meeden 380 White | F164: 10T-DE-NL-00002T | G164: 0 | H164: 0 | I164: 0.51978 | J164: 0.44506 | K164: 0.58804 | L164: 0.43122 | M164: 0 | N164: 1406 | O164: =IF((G164*ALBE+H164*ALDE+I164*AT+J164*BE+K164*DE+L164*FR+M164*NL)>(N164),1,0) -> 0 | Q164: =IF((C$6*G164+D$6*H164+E$6*I164+F$6*J164+G$6*K164+H$6*L164+I$6*M164)>(N164),1,0) -> 0
B165: 260 | C165: [D2-NL] Diele - Meeden 380 Black [DIR] [NL]_LTA_corner#01_#6 | D165: 10T-DE-NL-00001V | E165: [D2-NL] Diele - Meeden 380 White | F165: 10T-DE-NL-00002T | G165: 0 | H165: 0 | I165: 0.52185 | J165: 0.43309 | K165: 0.59376 | L165: 0.43309 | M165: 0 | N165: 1418 | O165: =IF((G165*ALBE+H165*ALDE+I165*AT+J165*BE+K165*DE+L165*FR+M165*NL)>(N165),1,0) -> 0 | Q165: =IF((C$6*G165+D$6*H165+E$6*I165+F$6*J165+G$6*K165+H$6*L165+I$6*M165)>(N165),1,0) -> 0
B166: 261 | C166: [D2-NL] Diele - Meeden 380 Black [DIR] [D2]_LTA_corner#05_#4 | D166: 10T-DE-NL-00001V | E166: [D2-NL] Diele - Meeden 380 White | F166: 10T-DE-NL-00002T | G166: 0 | H166: 0 | I166: 0.60405 | J166: 0.29897 | K166: 0.60405 | L166: 0.42527 | M166: 0 | N166: 1232 | O166: =IF((G166*ALBE+H166*ALDE+I166*AT+J166*BE+K166*DE+L166*FR+M166*NL)>(N166),1,0) -> 0 | Q166: =IF((C$6*G166+D$6*H166+E$6*I166+F$6*J166+G$6*K166+H$6*L166+I$6*M166)>(N166),1,0) -> 0
B167: 262 | C167: [D4-AT] Buers - Westtirol 421 weiss [OPP] [D4]_LTA_corner#17_#18 | D167: 10T-AT-DE-000061 | E167: [AT-AT] Westtirol Transformer WTRHU41 | F167: 14T-38220-WT041O | G167: 0 | H167: 0 | I167: 0.99735 | J167: 0 | K167: 0.07092 | L167: -0.01613 | M167: 0 | N167: 4638 | O167: =IF((G167*ALBE+H167*ALDE+I167*AT+J167*BE+K167*DE+L167*FR+M167*NL)>(N167),1,0) -> 0 | Q167: =IF((C$6*G167+D$6*H167+E$6*I167+F$6*J167+G$6*K167+H$6*L167+I$6*M167)>(N167),1,0) -> 0
B168: 263 | C168: [BE-BE] PST_ZANDV_2 [N - S]_LTA_corner#13_#8 | D168: 22T20161020---56 | E168: [NL-BE] Rilland - Zandvliet 380 White/30 | F168: 10T-BE-NL-00004C | G168: 0 | H168: 0 | I168: -0.31383 | J168: -0.80673 | K168: -0.27573 | L168: -0.41793 | M168: 0 | N168: 1971 | O168: =IF((G168*ALBE+H168*ALDE+I168*AT+J168*BE+K168*DE+L168*FR+M168*NL)>(N168),1,0) -> 0 | Q168: =IF((C$6*G168+D$6*H168+E$6*I168+F$6*J168+G$6*K168+H$6*L168+I$6*M168)>(N168),1,0) -> 0
B169: 264 | C169: [D4-AT] Buers - Westtirol 421 weiss [OPP] [D4]_LTA_corner#20_#8 | D169: 10T-AT-DE-000061 | E169: [AT-AT] Westtirol Transformer WTRHU41 | F169: 14T-38220-WT041O | G169: 0 | H169: 0 | I169: 0.9427 | J169: -0.08339 | K169: 0 | L169: -0.32306 | M169: 0 | N169: 5072 | O169: =IF((G169*ALBE+H169*ALDE+I169*AT+J169*BE+K169*DE+L169*FR+M169*NL)>(N169),1,0) -> 0 | Q169: =IF((C$6*G169+D$6*H169+E$6*I169+F$6*J169+G$6*K169+H$6*L169+I$6*M169)>(N169),1,0) -> 0
B170: 265 | C170: [BE-FR] Achene - Lonny 380.19 [DIR] [BE]_LTA_corner#02_#9 | D170: 10T-BE-FR-000015 | E170: [BE-BE] Avelgem - Horta 380.102 | F170: 22T20161020---1E | G170: 0 | H170: 0 | I170: -0.4337 | J170: 0.38496 | K170: -0.31345 | L170: -0.75197 | M170: 0 | N170: 2368 | O170: =IF((G170*ALBE+H170*ALDE+I170*AT+J170*BE+K170*DE+L170*FR+M170*NL)>(N170),1,0) -> 0 | Q170: =IF((C$6*G170+D$6*H170+E$6*I170+F$6*J170+G$6*K170+H$6*L170+I$6*M170)>(N170),1,0) -> 0
B171: 266 | C171: [D4-AT] Buers - Westtirol 421 weiss [OPP] [D4]_LTA_corner#17_#0 | D171: 10T-AT-DE-000061 | E171: [AT-AT] Westtirol Transformer WTRHU41 | F171: 14T-38220-WT041O | G171: 0 | H171: 0 | I171: 0.988 | J171: 0.02548 | K171: 0.1254 | L171: -0.08649 | M171: 0 | N171: 4587 | O171: =IF((G171*ALBE+H171*ALDE+I171*AT+J171*BE+K171*DE+L171*FR+M171*NL)>(N171),1,0) -> 0 | Q171: =IF((C$6*G171+D$6*H171+E$6*I171+F$6*J171+G$6*K171+H$6*L171+I$6*M171)>(N171),1,0) -> 0
B172: 267 | C172: [NL-D7] Maasbracht - Siersdorf 380 black [DIR] [D7] | D172: 10T-DE-NL-00006L | E172: [BE-BE] Avelgem - Horta 380.102 | F172: 22T20161020---1E | G172: 0.32054 | H172: -0.15518 | I172: -0.00266 | J172: 0.30672 | K172: 0.01414 | L172: 0.039 | M172: 0.27053 | N172: 939 | O172: =IF((G172*ALBE+H172*ALDE+I172*AT+J172*BE+K172*DE+L172*FR+M172*NL)>(N172),1,0) -> 0 | Q172: =IF((C$6*G172+D$6*H172+E$6*I172+F$6*J172+G$6*K172+H$6*L172+I$6*M172)>(N172),1,0) -> 0
B173: 268 | C173: [D4-AT] Buers - Westtirol 421 weiss [OPP] [D4]_LTA_corner#20_#4 | D173: 10T-AT-DE-000061 | E173: [AT-AT] Westtirol Transformer WTRHU41 | F173: 14T-38220-WT041O | G173: 0 | H173: 0 | I173: 0.94246 | J173: -0.0837 | K173: 0 | L173: -0.32368 | M173: 0 | N173: 5072 | O173: =IF((G173*ALBE+H173*ALDE+I173*AT+J173*BE+K173*DE+L173*FR+M173*NL)>(N173),1,0) -> 0 | Q173: =IF((C$6*G173+D$6*H173+E$6*I173+F$6*J173+G$6*K173+H$6*L173+I$6*M173)>(N173),1,0) -> 0
B174: 269 | C174: [D4-AT] Buers - Westtirol 421 weiss [OPP] [D4]_LTA_corner#17_#8 | D174: 10T-AT-DE-000061 | E174: [AT-AT] Westtirol Transformer WTRHU41 | F174: 14T-38220-WT041O | G174: 0 | H174: 0 | I174: 0.99534 | J174: 0 | K174: 0.09555 | L174: -0.01264 | M174: 0 | N174: 4555 | O174: =IF((G174*ALBE+H174*ALDE+I174*AT+J174*BE+K174*DE+L174*FR+M174*NL)>(N174),1,0) -> 0 | Q174: =IF((C$6*G174+D$6*H174+E$6*I174+F$6*J174+G$6*K174+H$6*L174+I$6*M174)>(N174),1,0) -> 0
B175: 270 | C175: [D2-AT] Y - St. Peter (- Altheim - Simbach) 233/230 [OPP] [D2] | D175: 10T-AT-DE-00001B | E175: [D2-AT] Y - St. Peter (- Altheim - Simbach) 234/230 | F175: 10T-AT-DE-000045 | G175: -0.03696 | H175: -0.03827 | I175: 0.0247 | J175: -0.03672 | K175: -0.03759 | L175: -0.03391 | M175: -0.03754 | N175: 321 | O175: =IF((G175*ALBE+H175*ALDE+I175*AT+J175*BE+K175*DE+L175*FR+M175*NL)>(N175),1,0) -> 0 | Q175: =IF((C$6*G175+D$6*H175+E$6*I175+F$6*J175+G$6*K175+H$6*L175+I$6*M175)>(N175),1,0) -> 0
B176: 271 | C176: [BE-BE] PST_ZANDV_2 [N - S]_LTA_corner#13_#17 | D176: 22T20161020---56 | E176: [NL-BE] Rilland - Zandvliet 380 White/30 | F176: 10T-BE-NL-00004C | G176: 0 | H176: 0 | I176: -0.32168 | J176: -0.77024 | K176: -0.26102 | L176: -0.4849 | M176: 0 | N176: 1938 | O176: =IF((G176*ALBE+H176*ALDE+I176*AT+J176*BE+K176*DE+L176*FR+M176*NL)>(N176),1,0) -> 0 | Q176: =IF((C$6*G176+D$6*H176+E$6*I176+F$6*J176+G$6*K176+H$6*L176+I$6*M176)>(N176),1,0) -> 0
B177: 272 | C177: [D2-NL] Diele - Meeden 380 Black [DIR] [NL]_LTA_corner#05_#5 | D177: 10T-DE-NL-00001V | E177: [D2-NL] Diele - Meeden 380 White | F177: 10T-DE-NL-00002T | G177: 0 | H177: 0 | I177: 0.57966 | J177: 0.16009 | K177: 0.66698 | L177: 0.43989 | M177: 0 | N177: 1944 | O177: =IF((G177*ALBE+H177*ALDE+I177*AT+J177*BE+K177*DE+L177*FR+M177*NL)>(N177),1,0) -> 0 | Q177: =IF((C$6*G177+D$6*H177+E$6*I177+F$6*J177+G$6*K177+H$6*L177+I$6*M177)>(N177),1,0) -> 0
B178: 273 | C178: [BE-BE] PST_ZANDV_2 [N - S]_LTA_corner#09_#0 | D178: 22T20161020---56 | E178: [NL-BE] Rilland - Zandvliet 380 White/30 | F178: 10T-BE-NL-00004C | G178: 0 | H178: 0 | I178: -0.47134 | J178: -0.35353 | K178: -0.37925 | L178: -0.71346 | M178: 0 | N178: 1779 | O178: =IF((G178*ALBE+H178*ALDE+I178*AT+J178*BE+K178*DE+L178*FR+M178*NL)>(N178),1,0) -> 0 | Q178: =IF((C$6*G178+D$6*H178+E$6*I178+F$6*J178+G$6*K178+H$6*L178+I$6*M178)>(N178),1,0) -> 0
B179: 274 | C179: [AT-AT] Westtirol Transformer WTRHU41 [OPP]_LTA_corner#17_#1 | D179: 14T-38220-WT041O | E179: BASECASE | F179: N/A | G179: 0 | H179: 0 | I179: 0.98679 | J179: 0 | K179: 0.14602 | L179: -0.07022 | M179: 0 | N179: 4468 | O179: =IF((G179*ALBE+H179*ALDE+I179*AT+J179*BE+K179*DE+L179*FR+M179*NL)>(N179),1,0) -> 0 | Q179: =IF((C$6*G179+D$6*H179+E$6*I179+F$6*J179+G$6*K179+H$6*L179+I$6*M179)>(N179),1,0) -> 0
B180: 275 | C180: [D4-AT] Buers - Westtirol 421 weiss [OPP] [D4]_LTA_corner#20_#24 | D180: 10T-AT-DE-000061 | E180: [AT-AT] Westtirol Transformer WTRHU41 | F180: 14T-38220-WT041O | G180: 0 | H180: 0 | I180: 0.95816 | J180: -0.07845 | K180: 0.05162 | L180: -0.2704 | M180: 0 | N180: 4920 | O180: =IF((G180*ALBE+H180*ALDE+I180*AT+J180*BE+K180*DE+L180*FR+M180*NL)>(N180),1,0) -> 0 | Q180: =IF((C$6*G180+D$6*H180+E$6*I180+F$6*J180+G$6*K180+H$6*L180+I$6*M180)>(N180),1,0) -> 0
B181: 276 | C181: [AT-AT] Westtirol Transformer WTRHU41 [OPP]_LTA_corner#20_#4 | D181: 14T-38220-WT041O | E181: BASECASE | F181: N/A | G181: 0 | H181: 0 | I181: 0.99223 | J181: -0.02097 | K181: 0.12042 | L181: -0.02324 | M181: 0 | N181: 4492 | O181: =IF((G181*ALBE+H181*ALDE+I181*AT+J181*BE+K181*DE+L181*FR+M181*NL)>(N181),1,0) -> 0 | Q181: =IF((C$6*G181+D$6*H181+E$6*I181+F$6*J181+G$6*K181+H$6*L181+I$6*M181)>(N181),1,0) -> 0
B182: 277 | C182: [D2-NL] Diele - Meeden 380 Black [DIR] [NL]_LTA_corner#05_#26 | D182: 10T-DE-NL-00001V | E182: [D2-NL] Diele - Meeden 380 White | F182: 10T-DE-NL-00002T | G182: 0 | H182: 0 | I182: 0.58776 | J182: 0.03296 | K182: 0.73313 | L182: 0.34056 | M182: 0 | N182: 2429 | O182: =IF((G182*ALBE+H182*ALDE+I182*AT+J182*BE+K182*DE+L182*FR+M182*NL)>(N182),1,0) -> 0 | Q182: =IF((C$6*G182+D$6*H182+E$6*I182+F$6*J182+G$6*K182+H$6*L182+I$6*M182)>(N182),1,0) -> 0
B183: 278 | C183: [D4-AT] Buers - Westtirol 421 weiss [OPP] [D4]_LTA_corner#20_#28 | D183: 10T-AT-DE-000061 | E183: [AT-AT] Westtirol Transformer WTRHU41 | F183: 14T-38220-WT041O | G183: 0 | H183: 0 | I183: 0.9748 | J183: -0.05888 | K183: 0.13359 | L183: -0.16867 | M183: 0 | N183: 4611 | O183: =IF((G183*ALBE+H183*ALDE+I183*AT+J183*BE+K183*DE+L183*FR+M183*NL)>(N183),1,0) -> 0 | Q183: =IF((C$6*G183+D$6*H183+E$6*I183+F$6*J183+G$6*K183+H$6*L183+I$6*M183)>(N183),1,0) -> 0
B184: 279 | C184: [D4-AT] Buers - Westtirol 421 weiss [OPP] [D4]_LTA_corner#17_#5 | D184: 10T-AT-DE-000061 | E184: [AT-AT] Westtirol Transformer WTRHU41 | F184: 14T-38220-WT041O | G184: 0 | H184: 0 | I184: 0.99776 | J184: 0.00764 | K184: 0.06572 | L184: -0.00944 | M184: 0 | N184: 4653 | O184: =IF((G184*ALBE+H184*ALDE+I184*AT+J184*BE+K184*DE+L184*FR+M184*NL)>(N184),1,0) -> 0 | Q184: =IF((C$6*G184+D$6*H184+E$6*I184+F$6*J184+G$6*K184+H$6*L184+I$6*M184)>(N184),1,0) -> 0
B185: 280 | C185: [D4-AT] Buers - Westtirol 421 weiss [OPP] [D4]_LTA_corner#20_#9 | D185: 10T-AT-DE-000061 | E185: [AT-AT] Westtirol Transformer WTRHU41 | F185: 14T-38220-WT041O | G185: 0 | H185: 0 | I185: 0.9806 | J185: -0.02941 | K185: 0.17378 | L185: -0.08584 | M185: 0 | N185: 4391 | O185: =IF((G185*ALBE+H185*ALDE+I185*AT+J185*BE+K185*DE+L185*FR+M185*NL)>(N185),1,0) -> 0 | Q185: =IF((C$6*G185+D$6*H185+E$6*I185+F$6*J185+G$6*K185+H$6*L185+I$6*M185)>(N185),1,0) -> 0
B186: 281 | C186: [D2-NL] Diele - Meeden 380 Black [DIR] [NL]_LTA_corner#05_#20 | D186: 10T-DE-NL-00001V | E186: [D2-NL] Diele - Meeden 380 White | F186: 10T-DE-NL-00002T | G186: 0 | H186: 0 | I186: 0.52592 | J186: 0.41504 | K186: 0.58619 | L186: 0.45556 | M186: 0 | N186: 1381 | O186: =IF((G186*ALBE+H186*ALDE+I186*AT+J186*BE+K186*DE+L186*FR+M186*NL)>(N186),1,0) -> 0 | Q186: =IF((C$6*G186+D$6*H186+E$6*I186+F$6*J186+G$6*K186+H$6*L186+I$6*M186)>(N186),1,0) -> 0
B187: 282 | C187: [AT-AT] Westtirol Transformer WTRHU41 [OPP]_LTA_corner#17_#0 | D187: 14T-38220-WT041O | E187: BASECASE | F187: N/A | G187: 0 | H187: 0 | I187: 0.9898 | J187: 0.02996 | K187: 0.12012 | L187: -0.07043 | M187: 0 | N187: 4590 | O187: =IF((G187*ALBE+H187*ALDE+I187*AT+J187*BE+K187*DE+L187*FR+M187*NL)>(N187),1,0) -> 0 | Q187: =IF((C$6*G187+D$6*H187+E$6*I187+F$6*J187+G$6*K187+H$6*L187+I$6*M187)>(N187),1,0) -> 0
B188: 283 | C188: [D4-AT] Buers - Westtirol 421 weiss [OPP] [D4]_LTA_corner#17_#20 | D188: 10T-AT-DE-000061 | E188: [AT-AT] Westtirol Transformer WTRHU41 | F188: 14T-38220-WT041O | G188: 0 | H188: 0 | I188: 0.98531 | J188: 0 | K188: 0.1474 | L188: -0.08625 | M188: 0 | N188: 4483 | O188: =IF((G188*ALBE+H188*ALDE+I188*AT+J188*BE+K188*DE+L188*FR+M188*NL)>(N188),1,0) -> 0 | Q188: =IF((C$6*G188+D$6*H188+E$6*I188+F$6*J188+G$6*K188+H$6*L188+I$6*M188)>(N188),1,0) -> 0
B189: 284 | C189: [D4-AT] Buers - Westtirol 421 weiss [OPP] [D4]_LTA_corner#17_#11 | D189: 10T-AT-DE-000061 | E189: [AT-AT] Westtirol Transformer WTRHU41 | F189: 14T-38220-WT041O | G189: 0 | H189: 0 | I189: 0.99669 | J189: 0 | K189: 0.08113 | L189: -0.00572 | M189: 0 | N189: 4590 | O189: =IF((G189*ALBE+H189*ALDE+I189*AT+J189*BE+K189*DE+L189*FR+M189*NL)>(N189),1,0) -> 0 | Q189: =IF((C$6*G189+D$6*H189+E$6*I189+F$6*J189+G$6*K189+H$6*L189+I$6*M189)>(N189),1,0) -> 0
B190: 285 | C190: [D4-AT] Buers - Westtirol 421 weiss [OPP] [D4]_LTA_corner#20_#15 | D190: 10T-AT-DE-000061 | E190: [AT-AT] Westtirol Transformer WTRHU41 | F190: 14T-38220-WT041O | G190: 0 | H190: 0 | I190: 0.99099 | J190: -0.02972 | K190: 0.12578 | L190: -0.03511 | M190: 0 | N190: 4492 | O190: =IF((G190*ALBE+H190*ALDE+I190*AT+J190*BE+K190*DE+L190*FR+M190*NL)>(N190),1,0) -> 0 | Q190: =IF((C$6*G190+D$6*H190+E$6*I190+F$6*J190+G$6*K190+H$6*L190+I$6*M190)>(N190),1,0) -> 0
B191: 286 | C191: [BE-FR] Achene - Lonny 380.19 [DIR] [BE]_LTA_corner#02_#6 | D191: 10T-BE-FR-000015 | E191: [BE-BE] Avelgem - Horta 380.102 | F191: 22T20161020---1E | G191: 0 | H191: 0 | I191: -0.44416 | J191: 0.32489 | K191: -0.3211 | L191: -0.77076 | M191: 0 | N191: 2341 | O191: =IF((G191*ALBE+H191*ALDE+I191*AT+J191*BE+K191*DE+L191*FR+M191*NL)>(N191),1,0) -> 0 | Q191: =IF((C$6*G191+D$6*H191+E$6*I191+F$6*J191+G$6*K191+H$6*L191+I$6*M191)>(N191),1,0) -> 0
B192: 287 | C192: [BE-BE] PST_ZANDV_2 [N - S]_LTA_corner#13_#3 | D192: 22T20161020---56 | E192: [NL-BE] Rilland - Zandvliet 380 White/30 | F192: 10T-BE-NL-00004C | G192: 0 | H192: 0 | I192: -0.36889 | J192: -0.70665 | K192: -0.33759 | L192: -0.50059 | M192: 0 | N192: 1658 | O192: =IF((G192*ALBE+H192*ALDE+I192*AT+J192*BE+K192*DE+L192*FR+M192*NL)>(N192),1,0) -> 0 | Q192: =IF((C$6*G192+D$6*H192+E$6*I192+F$6*J192+G$6*K192+H$6*L192+I$6*M192)>(N192),1,0) -> 0
B193: 288 | C193: [AT-AT] Westtirol Transformer WTRHU41 [OPP]_LTA_corner#22_#1 | D193: 14T-38220-WT041O | E193: BASECASE | F193: N/A | G193: 0 | H193: 0 | I193: 0.98776 | J193: -0.07085 | K193: 0.11987 | L193: -0.07029 | M193: 0 | N193: 4556 | O193: =IF((G193*ALBE+H193*ALDE+I193*AT+J193*BE+K193*DE+L193*FR+M193*NL)>(N193),1,0) -> 0 | Q193: =IF((C$6*G193+D$6*H193+E$6*I193+F$6*J193+G$6*K193+H$6*L193+I$6*M193)>(N193),1,0) -> 0
B194: 289 | C194: [D4-AT] Buers - Westtirol 421 weiss [OPP] [D4]_LTA_corner#20_#2 | D194: 10T-AT-DE-000061 | E194: [AT-AT] Westtirol Transformer WTRHU41 | F194: 14T-38220-WT041O | G194: 0 | H194: 0 | I194: 0.94209 | J194: -0.08417 | K194: 0 | L194: -0.32463 | M194: 0 | N194: 5072 | O194: =IF((G194*ALBE+H194*ALDE+I194*AT+J194*BE+K194*DE+L194*FR+M194*NL)>(N194),1,0) -> 0 | Q194: =IF((C$6*G194+D$6*H194+E$6*I194+F$6*J194+G$6*K194+H$6*L194+I$6*M194)>(N194),1,0) -> 0
B195: 290 | C195: [D2-NL] Diele - Meeden 380 Black [DIR] [NL]_LTA_corner#01_#4 | D195: 10T-DE-NL-00001V | E195: [D2-NL] Diele - Meeden 380 White | F195: 10T-DE-NL-00002T | G195: 0 | H195: 0 | I195: 0.52499 | J195: 0.43211 | K195: 0.59241 | L195: 0.43211 | M195: 0 | N195: 1394 | O195: =IF((G195*ALBE+H195*ALDE+I195*AT+J195*BE+K195*DE+L195*FR+M195*NL)>(N195),1,0) -> 0 | Q195: =IF((C$6*G195+D$6*H195+E$6*I195+F$6*J195+G$6*K195+H$6*L195+I$6*M195)>(N195),1,0) -> 0
B196: 291 | C196: [D4-AT] Buers - Westtirol 421 weiss [OPP] [D4]_LTA_corner#17_#23 | D196: 10T-AT-DE-000061 | E196: [AT-AT] Westtirol Transformer WTRHU41 | F196: 14T-38220-WT041O | G196: 0 | H196: 0 | I196: 0.99749 | J196: 0 | K196: 0.06614 | L196: -0.02528 | M196: 0 | N196: 4666 | O196: =IF((G196*ALBE+H196*ALDE+I196*AT+J196*BE+K196*DE+L196*FR+M196*NL)>(N196),1,0) -> 0 | Q196: =IF((C$6*G196+D$6*H196+E$6*I196+F$6*J196+G$6*K196+H$6*L196+I$6*M196)>(N196),1,0) -> 0
B197: 292 | C197: [BE-BE] PST_ZANDV_2 [N - S]_LTA_corner#09_#8 | D197: 22T20161020---56 | E197: [NL-BE] Rilland - Zandvliet 380 White/30 | F197: 10T-BE-NL-00004C | G197: 0 | H197: 0 | I197: -0.4176 | J197: -0.59433 | K197: -0.34519 | L197: -0.59433 | M197: 0 | N197: 1518 | O197: =IF((G197*ALBE+H197*ALDE+I197*AT+J197*BE+K197*DE+L197*FR+M197*NL)>(N197),1,0) -> 0 | Q197: =IF((C$6*G197+D$6*H197+E$6*I197+F$6*J197+G$6*K197+H$6*L197+I$6*M197)>(N197),1,0) -> 0
B198: 293 | C198: [D2-NL] Diele - Meeden 380 Black [DIR] [D2]_LTA_corner#05_#1 | D198: 10T-DE-NL-00001V | E198: [D2-NL] Diele - Meeden 380 White | F198: 10T-DE-NL-00002T | G198: 0 | H198: 0 | I198: 0.60481 | J198: 0.29978 | K198: 0.60481 | L198: 0.42255 | M198: 0 | N198: 1231 | O198: =IF((G198*ALBE+H198*ALDE+I198*AT+J198*BE+K198*DE+L198*FR+M198*NL)>(N198),1,0) -> 0 | Q198: =IF((C$6*G198+D$6*H198+E$6*I198+F$6*J198+G$6*K198+H$6*L198+I$6*M198)>(N198),1,0) -> 0
B199: 294 | C199: [D7-FR] Ensdorf - Vigy 2S [OPP] [D7] | D199: 10T-DE-FR-000068 | E199: [D7-FR] Ensdorf - Vigy 1N | F199: 10T-DE-FR-00005A | G199: 0.06727 | H199: -0.05916 | I199: 0.01975 | J199: 0.08287 | K199: -0.01244 | L199: 0.1844 | M199: 0.01568 | N199: 773 | O199: =IF((G199*ALBE+H199*ALDE+I199*AT+J199*BE+K199*DE+L199*FR+M199*NL)>(N199),1,0) -> 0 | Q199: =IF((C$6*G199+D$6*H199+E$6*I199+F$6*J199+G$6*K199+H$6*L199+I$6*M199)>(N199),1,0) -> 0
B200: 295 | C200: [AT-AT] Westtirol Transformer WTRHU41 [OPP]_LTA_corner#20_#23 | D200: 14T-38220-WT041O | E200: BASECASE | F200: N/A | G200: 0 | H200: 0 | I200: 0.98775 | J200: -0.07057 | K200: 0.11994 | L200: -0.07057 | M200: 0 | N200: 4555 | O200: =IF((G200*ALBE+H200*ALDE+I200*AT+J200*BE+K200*DE+L200*FR+M200*NL)>(N200),1,0) -> 0 | Q200: =IF((C$6*G200+D$6*H200+E$6*I200+F$6*J200+G$6*K200+H$6*L200+I$6*M200)>(N200),1,0) -> 0
B201: 296 | C201: [BE-BE] PST_ZANDV_2 [N - S]_LTA_corner#09_#3 | D201: 22T20161020---56 | E201: [NL-BE] Rilland - Zandvliet 380 White/30 | F201: 10T-BE-NL-00004C | G201: 0 | H201: 0 | I201: -0.41302 | J201: -0.5965 | K201: -0.3432 | L201: -0.5965 | M201: 0 | N201: 1509 | O201: =IF((G201*ALBE+H201*ALDE+I201*AT+J201*BE+K201*DE+L201*FR+M201*NL)>(N201),1,0) -> 0 | Q201: =IF((C$6*G201+D$6*H201+E$6*I201+F$6*J201+G$6*K201+H$6*L201+I$6*M201)>(N201),1,0) -> 0
B202: 297 | C202: [BE-BE] PST_VANYK_2 [S - N] | D202: 22T-BE-PST--002U | E202: [NL-BE] Maasbracht - Van Eyck 380 Black/27 | F202: 10T-BE-NL-00002G | G202: 0.48593 | H202: -0.04908 | I202: 0.01233 | J202: 0.27166 | K202: -0.01656 | L202: 0.09558 | M202: -0.01368 | N202: 1033 | O202: =IF((G202*ALBE+H202*ALDE+I202*AT+J202*BE+K202*DE+L202*FR+M202*NL)>(N202),1,0) -> 0 | Q202: =IF((C$6*G202+D$6*H202+E$6*I202+F$6*J202+G$6*K202+H$6*L202+I$6*M202)>(N202),1,0) -> 0
B203: 298 | C203: [D2-NL] Diele - Meeden 380 Black [DIR] [D2]_LTA_corner#05_#13 | D203: 10T-DE-NL-00001V | E203: [D2-NL] Diele - Meeden 380 White | F203: 10T-DE-NL-00002T | G203: 0 | H203: 0 | I203: 0.60207 | J203: 0.30253 | K203: 0.60207 | L203: 0.42836 | M203: 0 | N203: 1226 | O203: =IF((G203*ALBE+H203*ALDE+I203*AT+J203*BE+K203*DE+L203*FR+M203*NL)>(N203),1,0) -> 0 | Q203: =IF((C$6*G203+D$6*H203+E$6*I203+F$6*J203+G$6*K203+H$6*L203+I$6*M203)>(N203),1,0) -> 0
... 3099 more rows

Sheet LTN
A2: Date: | B2: 2020-11-04 | D2: The data for 2020-11-04 has been retrieved successfully.
B4: LT Nominations (in MW)
A5: Hour | B5: AT-DE | C5: DE-AT | D5: BE-NL | E5: NL-BE | F5: DE-NL | G5: NL-DE | H5: BE-FR | I5: FR-BE | J5: FR-DE | K5: DE-FR | L5: BE-DE(DC) | M5: DE-BE(DC)
A6: 1 | B6: 0 | C6: 0 | D6: 0 | E6: 0 | F6: 0 | G6: 0 | H6: 0 | I6: 0 | J6: 0 | K6: 0 | L6: 0 | M6: 0
A7: 2 | B7: 0 | C7: 0 | D7: 0 | E7: 0 | F7: 0 | G7: 0 | H7: 0 | I7: 0 | J7: 0 | K7: 0 | L7: 0 | M7: 0
A8: 3 | B8: 0 | C8: 0 | D8: 0 | E8: 0 | F8: 0 | G8: 0 | H8: 0 | I8: 0 | J8: 0 | K8: 0 | L8: 0 | M8: 0
A9: 4 | B9: 0 | C9: 0 | D9: 0 | E9: 0 | F9: 0 | G9: 0 | H9: 0 | I9: 0 | J9: 0 | K9: 0 | L9: 0 | M9: 0
A10: 5 | B10: 0 | C10: 0 | D10: 0 | E10: 0 | F10: 0 | G10: 0 | H10: 0 | I10: 0 | J10: 0 | K10: 0 | L10: 0 | M10: 0
A11: 6 | B11: 0 | C11: 0 | D11: 0 | E11: 0 | F11: 0 | G11: 0 | H11: 0 | I11: 0 | J11: 0 | K11: 0 | L11: 0 | M11: 0
A12: 7 | B12: 0 | C12: 0 | D12: 0 | E12: 0 | F12: 0 | G12: 0 | H12: 0 | I12: 0 | J12: 0 | K12: 0 | L12: 0 | M12: 0
A13: 8 | B13: 0 | C13: 0 | D13: 0 | E13: 0 | F13: 0 | G13: 0 | H13: 0 | I13: 0 | J13: 0 | K13: 0 | L13: 0 | M13: 0
A14: 9 | B14: 0 | C14: 0 | D14: 0 | E14: 0 | F14: 0 | G14: 0 | H14: 0 | I14: 0 | J14: 0 | K14: 0 | L14: 0 | M14: 0
A15: 10 | B15: 0 | C15: 0 | D15: 0 | E15: 0 | F15: 0 | G15: 0 | H15: 0 | I15: 0 | J15: 0 | K15: 0 | L15: 0 | M15: 0
A16: 11 | B16: 0 | C16: 0 | D16: 0 | E16: 0 | F16: 0 | G16: 0 | H16: 0 | I16: 0 | J16: 0 | K16: 0 | L16: 0 | M16: 0
A17: 12 | B17: 0 | C17: 0 | D17: 0 | E17: 0 | F17: 0 | G17: 0 | H17: 0 | I17: 0 | J17: 0 | K17: 0 | L17: 0 | M17: 0
A18: 13 | B18: 0 | C18: 0 | D18: 0 | E18: 0 | F18: 0 | G18: 0 | H18: 0 | I18: 0 | J18: 0 | K18: 0 | L18: 0 | M18: 0
A19: 14 | B19: 0 | C19: 0 | D19: 0 | E19: 0 | F19: 0 | G19: 0 | H19: 0 | I19: 0 | J19: 0 | K19: 0 | L19: 0 | M19: 0
A20: 15 | B20: 0 | C20: 0 | D20: 0 | E20: 0 | F20: 0 | G20: 0 | H20: 0 | I20: 0 | J20: 0 | K20: 0 | L20: 0 | M20: 0
A21: 16 | B21: 0 | C21: 0 | D21: 0 | E21: 0 | F21: 0 | G21: 0 | H21: 0 | I21: 0 | J21: 0 | K21: 0 | L21: 0 | M21: 0
A22: 17 | B22: 0 | C22: 0 | D22: 0 | E22: 0 | F22: 0 | G22: 0 | H22: 0 | I22: 0 | J22: 0 | K22: 0 | L22: 0 | M22: 0
A23: 18 | B23: 0 | C23: 0 | D23: 0 | E23: 0 | F23: 0 | G23: 0 | H23: 0 | I23: 0 | J23: 0 | K23: 0 | L23: 0 | M23: 0
A24: 19 | B24: 0 | C24: 0 | D24: 0 | E24: 0 | F24: 0 | G24: 0 | H24: 0 | I24: 0 | J24: 0 | K24: 0 | L24: 0 | M24: 0
A25: 20 | B25: 0 | C25: 0 | D25: 0 | E25: 0 | F25: 0 | G25: 0 | H25: 0 | I25: 0 | J25: 0 | K25: 0 | L25: 0 | M25: 0
A26: 21 | B26: 0 | C26: 0 | D26: 0 | E26: 0 | F26: 0 | G26: 0 | H26: 0 | I26: 0 | J26: 0 | K26: 0 | L26: 0 | M26: 0
A27: 22 | B27: 0 | C27: 0 | D27: 0 | E27: 0 | F27: 0 | G27: 0 | H27: 0 | I27: 0 | J27: 0 | K27: 0 | L27: 0 | M27: 0
A28: 23 | B28: 0 | C28: 0 | D28: 0 | E28: 0 | F28: 0 | G28: 0 | H28: 0 | I28: 0 | J28: 0 | K28: 0 | L28: 0 | M28: 0
A29: 24 | B29: 0 | C29: 0 | D29: 0 | E29: 0 | F29: 0 | G29: 0 | H29: 0 | I29: 0 | J29: 0 | K29: 0 | L29: 0 | M29: 0

Sheet PTDFs
C1: ALBE-hub | D1: ALDE-hub | E1: AT-hub (MW) | F1: BE-hub (MW) | G1: DE-hub (MW) | H1: FR-hub (MW) | I1: NL-hub (MW) | J1: Sum
B2: Test Hub to Hub | C2: ='CWE Market view'!E13 -> 0 | D2: =-'CWE Market view'!E13 -> 0 | E2: =-'CWE Market view'!E12 -> 0 | F2: =-'CWE Market view'!E13-'CWE Market view'!E16+'CWE Market view'!E18 -> 0 | G2: ='CWE Market view'!E12+'CWE Market view'!E13+'CWE Market view'!E14+'CWE Market view'!E15 -> 0 | H2: =-'CWE Market view'!E15-'CWE Market view'!E17-'CWE Market view'!E18 -> 0 | I2: =-'CWE Market view'!E14+'CWE Market view'!E16+'CWE Market view'!E17 -> 0 | J2: =SUM(C2:I2) -> 0
B3: Test Hub Positions | C3: ='CWE Market view'!E21 -> 0 | D3: ='CWE Market view'!E22 -> 0 | E3: ='CWE Market view'!E23 -> 0 | F3: ='CWE Market view'!E25 -> 0 | G3: ='CWE Market view'!E24 -> 0 | H3: ='CWE Market view'!E26 -> 0 | I3: ='CWE Market view'!E27 -> 0 | J3: =SUM(C3:I3) -> 0
O5: Test Hub to Hub | P5: # of constraints violated | Q5: Test Hub positions
B6: ID | C6: Critical Branch name | D6: EIC code | E6: Critical Outage name | F6: EIC code | G6: ALBE-hub | H6: ALDE-hub | I6: AT-hub | J6: BE-hub | K6: DE-hub | L6: FR-hub | M6: NL-hub | N6: RAM (MW) | O6: =SUM(O7:O2000) -> 0 | Q6: =SUM(Q7:Q2000) -> 0

Sheet Virgin domain final computation
A2: Date: | B2: 2020-11-04 | D2: The data for 2020-11-04 was not loaded automatically, please reselect the date in this sheet to load the data.
A4: FileId | B4: DeliveryDate | C4: Period | D4: Row | E4: OutageName | F4: EIC_Code | G4: CriticalBranchName | H4: EIC_Code | I4: Presolved | J4: RemainingAvailableMargin | K4: Fmax | L4: Fref | M4: FRM | N4: FAV | O4: AMR | P4: MinRAMFactor | Q4: MinRAMFactorJustification | R4: BiddingArea_Shortname | S4: Factor | T4: BiddingArea_Shortname | U4: Factor | V4: BiddingArea_Shortname | W4: Factor | X4: BiddingArea_Shortname | Y4: Factor | Z4: BiddingArea_Shortname | AA4: Factor | AB4: BiddingArea_Shortname | AC4: Factor | AD4: BiddingArea_Shortname | AE4: Factor

Sheet ATCs
A2: Date: | B2: 2020-11-04 | D2: The data for 2020-11-04 has been retrieved successfully.
B4: ATC (in MW)
A5: Hour | B5: FR-ES | C5: ES-FR | D5: DK1-DE | E5: DE-DK1 | F5: FR-IT | G5: IT-FR | H5: AT-IT | I5: IT-AT | J5: SI-IT | K5: IT-SI | L5: SI-AT | M5: AT-SI | N5: SI-HR | O5: HR-SI | P5: BE-GB | Q5: GB-BE | R5: DE-D2 | S5: D2-DE | T5: DK-NL | U5: NL-DK | V5: NO-NL | W5: NL-NO | X5: BE-DE(DC) | Y5: DE-BE(DC)
A6: 1 | B6: N/A | C6: N/A | D6: N/A | E6: N/A | F6: 3039 | G6: 1259 | H6: 295 | I6: 145 | J6: N/A | K6: N/A | L6: 806 | M6: 494 | N6: N/A | O6: N/A | P6: N/A | Q6: N/A | R6: N/A | S6: N/A | T6: N/A | U6: N/A | V6: N/A | W6: N/A | X6: N/A | Y6: N/A
A7: 2 | B7: N/A | C7: N/A | D7: N/A | E7: N/A | F7: 3039 | G7: 1259 | H7: 295 | I7: 145 | J7: N/A | K7: N/A | L7: 806 | M7: 494 | N7: N/A | O7: N/A | P7: N/A | Q7: N/A | R7: N/A | S7: N/A | T7: N/A | U7: N/A | V7: N/A | W7: N/A | X7: N/A | Y7: N/A
A8: 3 | B8: N/A | C8: N/A | D8: N/A | E8: N/A | F8: 3039 | G8: 1259 | H8: 295 | I8: 145 | J8: N/A | K8: N/A | L8: 800 | M8: 500 | N8: N/A | O8: N/A | P8: N/A | Q8: N/A | R8: N/A | S8: N/A | T8: N/A | U8: N/A | V8: N/A | W8: N/A | X8: N/A | Y8: N/A
A9: 4 | B9: N/A | C9: N/A | D9: N/A | E9: N/A | F9: 3441 | G9: 1259 | H9: 295 | I9: 145 | J9: N/A | K9: N/A | L9: 804 | M9: 496 | N9: N/A | O9: N/A | P9: N/A | Q9: N/A | R9: N/A | S9: N/A | T9: N/A | U9: N/A | V9: N/A | W9: N/A | X9: N/A | Y9: N/A
A10: 5 | B10: N/A | C10: N/A | D10: N/A | E10: N/A | F10: 3441 | G10: 1259 | H10: 295 | I10: 145 | J10: N/A | K10: N/A | L10: 791 | M10: 509 | N10: N/A | O10: N/A | P10: N/A | Q10: N/A | R10: N/A | S10: N/A | T10: N/A | U10: N/A | V10: N/A | W10: N/A | X10: N/A | Y10: N/A
A11: 6 | B11: N/A | C11: N/A | D11: N/A | E11: N/A | F11: 3441 | G11: 1259 | H11: 295 | I11: 145 | J11: N/A | K11: N/A | L11: 823 | M11: 477 | N11: N/A | O11: N/A | P11: N/A | Q11: N/A | R11: N/A | S11: N/A | T11: N/A | U11: N/A | V11: N/A | W11: N/A | X11: N/A | Y11: N/A
A12: 7 | B12: N/A | C12: N/A | D12: N/A | E12: N/A | F12: 3441 | G12: 1259 | H12: 295 | I12: 145 | J12: N/A | K12: N/A | L12: 854 | M12: 446 | N12: N/A | O12: N/A | P12: N/A | Q12: N/A | R12: N/A | S12: N/A | T12: N/A | U12: N/A | V12: N/A | W12: N/A | X12: N/A | Y12: N/A
A13: 8 | B13: N/A | C13: N/A | D13: N/A | E13: N/A | F13: 3147 | G13: 1094 | H13: 315 | I13: 100 | J13: N/A | K13: N/A | L13: 854 | M13: 446 | N13: N/A | O13: N/A | P13: N/A | Q13: N/A | R13: N/A | S13: N/A | T13: N/A | U13: N/A | V13: N/A | W13: N/A | X13: N/A | Y13: N/A
A14: 9 | B14: N/A | C14: N/A | D14: N/A | E14: N/A | F14: 3147 | G14: 1094 | H14: 315 | I14: 100 | J14: N/A | K14: N/A | L14: 854 | M14: 446 | N14: N/A | O14: N/A | P14: N/A | Q14: N/A | R14: N/A | S14: N/A | T14: N/A | U14: N/A | V14: N/A | W14: N/A | X14: N/A | Y14: N/A
A15: 10 | B15: N/A | C15: N/A | D15: N/A | E15: N/A | F15: 2912 | G15: 1094 | H15: 305 | I15: 100 | J15: N/A | K15: N/A | L15: 854 | M15: 446 | N15: N/A | O15: N/A | P15: N/A | Q15: N/A | R15: N/A | S15: N/A | T15: N/A | U15: N/A | V15: N/A | W15: N/A | X15: N/A | Y15: N/A
A16: 11 | B16: N/A | C16: N/A | D16: N/A | E16: N/A | F16: 2912 | G16: 1094 | H16: 305 | I16: 100 | J16: N/A | K16: N/A | L16: 854 | M16: 446 | N16: N/A | O16: N/A | P16: N/A | Q16: N/A | R16: N/A | S16: N/A | T16: N/A | U16: N/A | V16: N/A | W16: N/A | X16: N/A | Y16: N/A
A17: 12 | B17: N/A | C17: N/A | D17: N/A | E17: N/A | F17: 2912 | G17: 1094 | H17: 305 | I17: 100 | J17: N/A | K17: N/A | L17: 854 | M17: 446 | N17: N/A | O17: N/A | P17: N/A | Q17: N/A | R17: N/A | S17: N/A | T17: N/A | U17: N/A | V17: N/A | W17: N/A | X17: N/A | Y17: N/A
A18: 13 | B18: N/A | C18: N/A | D18: N/A | E18: N/A | F18: 3073 | G18: 1094 | H18: 315 | I18: 100 | J18: N/A | K18: N/A | L18: 854 | M18: 446 | N18: N/A | O18: N/A | P18: N/A | Q18: N/A | R18: N/A | S18: N/A | T18: N/A | U18: N/A | V18: N/A | W18: N/A | X18: N/A | Y18: N/A
A19: 14 | B19: N/A | C19: N/A | D19: N/A | E19: N/A | F19: 3073 | G19: 1094 | H19: 315 | I19: 100 | J19: N/A | K19: N/A | L19: 854 | M19: 446 | N19: N/A | O19: N/A | P19: N/A | Q19: N/A | R19: N/A | S19: N/A | T19: N/A | U19: N/A | V19: N/A | W19: N/A | X19: N/A | Y19: N/A
A20: 15 | B20: N/A | C20: N/A | D20: N/A | E20: N/A | F20: 3073 | G20: 1094 | H20: 315 | I20: 100 | J20: N/A | K20: N/A | L20: 854 | M20: 446 | N20: N/A | O20: N/A | P20: N/A | Q20: N/A | R20: N/A | S20: N/A | T20: N/A | U20: N/A | V20: N/A | W20: N/A | X20: N/A | Y20: N/A
A21: 16 | B21: N/A | C21: N/A | D21: N/A | E21: N/A | F21: 3144 | G21: 1094 | H21: 315 | I21: 100 | J21: N/A | K21: N/A | L21: 854 | M21: 446 | N21: N/A | O21: N/A | P21: N/A | Q21: N/A | R21: N/A | S21: N/A | T21: N/A | U21: N/A | V21: N/A | W21: N/A | X21: N/A | Y21: N/A
A22: 17 | B22: N/A | C22: N/A | D22: N/A | E22: N/A | F22: 3144 | G22: 1094 | H22: 315 | I22: 100 | J22: N/A | K22: N/A | L22: 854 | M22: 446 | N22: N/A | O22: N/A | P22: N/A | Q22: N/A | R22: N/A | S22: N/A | T22: N/A | U22: N/A | V22: N/A | W22: N/A | X22: N/A | Y22: N/A
A23: 18 | B23: N/A | C23: N/A | D23: N/A | E23: N/A | F23: 3144 | G23: 1094 | H23: 315 | I23: 100 | J23: N/A | K23: N/A | L23: 854 | M23: 446 | N23: N/A | O23: N/A | P23: N/A | Q23: N/A | R23: N/A | S23: N/A | T23: N/A | U23: N/A | V23: N/A | W23: N/A | X23: N/A | Y23: N/A
A24: 19 | B24: N/A | C24: N/A | D24: N/A | E24: N/A | F24: 2800 | G24: 1094 | H24: 297 | I24: 100 | J24: N/A | K24: N/A | L24: 854 | M24: 446 | N24: N/A | O24: N/A | P24: N/A | Q24: N/A | R24: N/A | S24: N/A | T24: N/A | U24: N/A | V24: N/A | W24: N/A | X24: N/A | Y24: N/A
A25: 20 | B25: N/A | C25: N/A | D25: N/A | E25: N/A | F25: 2800 | G25: 1094 | H25: 297 | I25: 100 | J25: N/A | K25: N/A | L25: 854 | M25: 446 | N25: N/A | O25: N/A | P25: N/A | Q25: N/A | R25: N/A | S25: N/A | T25: N/A | U25: N/A | V25: N/A | W25: N/A | X25: N/A | Y25: N/A
A26: 21 | B26: N/A | C26: N/A | D26: N/A | E26: N/A | F26: 2800 | G26: 1094 | H26: 297 | I26: 100 | J26: N/A | K26: N/A | L26: 818 | M26: 482 | N26: N/A | O26: N/A | P26: N/A | Q26: N/A | R26: N/A | S26: N/A | T26: N/A | U26: N/A | V26: N/A | W26: N/A | X26: N/A | Y26: N/A
A27: 22 | B27: N/A | C27: N/A | D27: N/A | E27: N/A | F27: 2893 | G27: 1094 | H27: 303 | I27: 100 | J27: N/A | K27: N/A | L27: 805 | M27: 495 | N27: N/A | O27: N/A | P27: N/A | Q27: N/A | R27: N/A | S27: N/A | T27: N/A | U27: N/A | V27: N/A | W27: N/A | X27: N/A | Y27: N/A
A28: 23 | B28: N/A | C28: N/A | D28: N/A | E28: N/A | F28: 2893 | G28: 1094 | H28: 303 | I28: 100 | J28: N/A | K28: N/A | L28: 800 | M28: 500 | N28: N/A | O28: N/A | P28: N/A | Q28: N/A | R28: N/A | S28: N/A | T28: N/A | U28: N/A | V28: N/A | W28: N/A | X28: N/A | Y28: N/A
A29: 24 | B29: N/A | C29: N/A | D29: N/A | E29: N/A | F29: 2728 | G29: 1259 | H29: 283 | I29: 145 | J29: N/A | K29: N/A | L29: 801 | M29: 499 | N29: N/A | O29: N/A | P29: N/A | Q29: N/A | R29: N/A | S29: N/A | T29: N/A | U29: N/A | V29: N/A | W29: N/A | X29: N/A | Y29: N/A

Sheet Max net pos
B1: Prog | C1: ALBE | D1: ALDE | E1: AT | F1: BE | G1: DE | H1: FR | I1: NL | K1: hour | L1: Min ALBE | M1: Max ALBE | N1: Min ALDE | O1: Max ALDE | P1: Min AT | Q1: Max AT | R1: Min BE | S1: Max BE | T1: Min DE | U1: Max DE | V1: Min FR | W1: Max FR | X1: Min NL | Y1: Max NL
A2: hour 1 | B2: MinALBE | C2: =L2 -> 0 | K2: 1 | L2: 0 | M2: 0 | N2: 0 | O2: 0 | P2: -5508 | Q2: 5234 | R2: -4679 | S2: 3288 | T2: -11538 | U2: 9121 | V2: -6180 | W2: 6782 | X2: -3495 | Y2: 4831
B3: MaxALBE | C3: =M2 -> 0 | K3: 2 | L3: 0 | M3: 0 | N3: 0 | O3: 0 | P3: -5676 | Q3: 5186 | R3: -4737 | S3: 3667 | T3: -11325 | U3: 8981 | V3: -6190 | W3: 6755 | X3: -3959 | Y3: 3769
B4: MinALDE | D4: =N2 -> 0 | K4: 3 | L4: 0 | M4: 0 | N4: 0 | O4: 0 | P4: -5502 | Q4: 5346 | R4: -4752 | S4: 3630 | T4: -10946 | U4: 9282 | V4: -6508 | W4: 6396 | X4: -3878 | Y4: 3156
B5: MaxALDE | D5: =O2 -> 0 | K5: 4 | L5: 0 | M5: 0 | N5: 0 | O5: 0 | P5: -5148 | Q5: 5531 | R5: -4768 | S5: 3633 | T5: -11131 | U5: 9303 | V5: -6637 | W5: 6417 | X5: -3879 | Y5: 3137
B6: MinAT | E6: =P2 -> -5508 | K6: 5 | L6: 0 | M6: 0 | N6: 0 | O6: 0 | P6: -5323 | Q6: 5377 | R6: -4746 | S6: 3191 | T6: -11262 | U6: 9146 | V6: -6375 | W6: 6436 | X6: -3770 | Y6: 4459
B7: MaxAT | E7: =Q2 -> 5234 | K7: 6 | L7: 0 | M7: 0 | N7: 0 | O7: 0 | P7: -5602 | Q7: 5033 | R7: -4908 | S7: 3141 | T7: -10444 | U7: 10215 | V7: -7003 | W7: 6287 | X7: -3377 | Y7: 4396
B8: MinBE | F8: =R2 -> -4679 | K8: 7 | L8: 0 | M8: 0 | N8: 0 | O8: 0 | P8: -4943 | Q8: 5126 | R8: -5243 | S8: 3430 | T8: -10711 | U8: 10486 | V8: -7566 | W8: 6409 | X8: -5750 | Y8: 3245
B9: MaxBE | F9: =S2 -> 3288 | K9: 8 | L9: 0 | M9: 0 | N9: 0 | O9: 0 | P9: -4821 | Q9: 4942 | R9: -5256 | S9: 3142 | T9: -10506 | U9: 9159 | V9: -6441 | W9: 7035 | X9: -5418 | Y9: 3812
B10: MinDE | G10: =T2 -> -11538 | K10: 9 | L10: 0 | M10: 0 | N10: 0 | O10: 0 | P10: -4821 | Q10: 5054 | R10: -5094 | S10: 3129 | T10: -10097 | U10: 8992 | V10: -6146 | W10: 6693 | X10: -5548 | Y10: 3462
B11: MaxDE | G11: =U2 -> 9121 | K11: 10 | L11: 0 | M11: 0 | N11: 0 | O11: 0 | P11: -4821 | Q11: 5062 | R11: -5036 | S11: 3085 | T11: -10679 | U11: 9350 | V11: -6309 | W11: 6647 | X11: -4749 | Y11: 4007
B12: MinFR | H12: =V2 -> -6180 | K12: 11 | L12: 0 | M12: 0 | N12: 0 | O12: 0 | P12: -4821 | Q12: 5149 | R12: -5013 | S12: 3245 | T12: -11099 | U12: 9179 | V12: -6216 | W12: 6678 | X12: -4668 | Y12: 4038
B13: MaxFR | H13: =W2 -> 6782 | K13: 12 | L13: 0 | M13: 0 | N13: 0 | O13: 0 | P13: -4821 | Q13: 5513 | R13: -5112 | S13: 3569 | T13: -11152 | U13: 9075 | V13: -6474 | W13: 6738 | X13: -5373 | Y13: 3497
B14: MinNL | I14: =X2 -> -3495 | K14: 13 | L14: 0 | M14: 0 | N14: 0 | O14: 0 | P14: -4821 | Q14: 5448 | R14: -5078 | S14: 3540 | T14: -10915 | U14: 8744 | V14: -6298 | W14: 6644 | X14: -5216 | Y14: 3486
B15: MaxNL | I15: =Y2 -> 4831 | K15: 14 | L15: 0 | M15: 0 | N15: 0 | O15: 0 | P15: -4821 | Q15: 5712 | R15: -4983 | S15: 3573 | T15: -11116 | U15: 8655 | V15: -6299 | W15: 6561 | X15: -5117 | Y15: 3480
A16: hour 2 | B16: MinALBE | C16: =L3 -> 0 | K16: 15 | L16: 0 | M16: 0 | N16: 0 | O16: 0 | P16: -4821 | Q16: 5619 | R16: -4872 | S16: 3569 | T16: -10882 | U16: 8101 | V16: -6292 | W16: 6497 | X16: -5374 | Y16: 3471
B17: MaxALBE | C17: =M3 -> 0 | K17: 16 | L17: 0 | M17: 0 | N17: 0 | O17: 0 | P17: -4821 | Q17: 5222 | R17: -5091 | S17: 3662 | T17: -10440 | U17: 9506 | V17: -7012 | W17: 6322 | X17: -6209 | Y17: 3471
B18: MinALDE | D18: =N3 -> 0 | K18: 17 | L18: 0 | M18: 0 | N18: 0 | O18: 0 | P18: -4821 | Q18: 5421 | R18: -4914 | S18: 3257 | T18: -11095 | U18: 9554 | V18: -6782 | W18: 6334 | X18: -4984 | Y18: 4035
B19: MaxALDE | D19: =O3 -> 0 | K19: 18 | L19: 0 | M19: 0 | N19: 0 | O19: 0 | P19: -4821 | Q19: 5609 | R19: -5093 | S19: 3139 | T19: -11053 | U19: 9842 | V19: -6973 | W19: 5508 | X19: -5728 | Y19: 4082
B20: MinAT | E20: =P3 -> -5676 | K20: 19 | L20: 0 | M20: 0 | N20: 0 | O20: 0 | P20: -4821 | Q20: 5444 | R20: -6053 | S20: 2948 | T20: -10558 | U20: 10869 | V20: -7177 | W20: 6000 | X20: -6003 | Y20: 4011
B21: MaxAT | E21: =Q3 -> 5186 | K21: 20 | L21: 0 | M21: 0 | N21: 0 | O21: 0 | P21: -4821 | Q21: 6395 | R21: -6200 | S21: 3008 | T21: -12342 | U21: 10390 | V21: -7067 | W21: 6596 | X21: -5969 | Y21: 4091
B22: MinBE | F22: =R3 -> -4737 | K22: 21 | L22: 0 | M22: 0 | N22: 0 | O22: 0 | P22: -4821 | Q22: 5769 | R22: -6458 | S22: 3079 | T22: -13235 | U22: 10618 | V22: -6560 | W22: 7639 | X22: -5518 | Y22: 4472
B23: MaxBE | F23: =S3 -> 3667 | K23: 22 | L23: 0 | M23: 0 | N23: 0 | O23: 0 | P23: -4859 | Q23: 5478 | R23: -6586 | S23: 3277 | T23: -11520 | U23: 12251 | V23: -7499 | W23: 6817 | X23: -5887 | Y23: 3785
B24: MinDE | G24: =T3 -> -11325 | K24: 23 | L24: 0 | M24: 0 | N24: 0 | O24: 0 | P24: -5006 | Q24: 5221 | R24: -6615 | S24: 3268 | T24: -10682 | U24: 12906 | V24: -7643 | W24: 6483 | X24: -5698 | Y24: 4084
B25: MaxDE | G25: =U3 -> 8981 | K25: 24 | L25: 0 | M25: 0 | N25: 0 | O25: 0 | P25: -5662 | Q25: 5071 | R25: -6570 | S25: 3318 | T25: -10985 | U25: 12808 | V25: -7557 | W25: 6765 | X25: -5453 | Y25: 4844
B26: MinFR | H26: =V3 -> -6190
B27: MaxFR | H27: =W3 -> 6755
B28: MinNL | I28: =X3 -> -3959
B29: MaxNL | I29: =Y3 -> 3769
A30: hour 3 | B30: MinALBE | C30: =L4 -> 0
B31: MaxALBE | C31: =M4 -> 0
B32: MinALDE | D32: =N4 -> 0
B33: MaxALDE | D33: =O4 -> 0
B34: MinAT | E34: =P4 -> -5502
B35: MaxAT | E35: =Q4 -> 5346
B36: MinBE | F36: =R4 -> -4752
B37: MaxBE | F37: =S4 -> 3630
B38: MinDE | G38: =T4 -> -10946
B39: MaxDE | G39: =U4 -> 9282
B40: MinFR | H40: =V4 -> -6508
B41: MaxFR | H41: =W4 -> 6396
B42: MinNL | I42: =X4 -> -3878
B43: MaxNL | I43: =Y4 -> 3156
A44: hour 4 | B44: MinALBE | C44: =L5 -> 0
B45: MaxALBE | C45: =M5 -> 0
B46: MinALDE | D46: =N5 -> 0
B47: MaxALDE | D47: =O5 -> 0
B48: MinAT | E48: =P5 -> -5148
B49: MaxAT | E49: =Q5 -> 5531
B50: MinBE | F50: =R5 -> -4768
B51: MaxBE | F51: =S5 -> 3633
B52: MinDE | G52: =T5 -> -11131
B53: MaxDE | G53: =U5 -> 9303
B54: MinFR | H54: =V5 -> -6637
B55: MaxFR | H55: =W5 -> 6417
B56: MinNL | I56: =X5 -> -3879
B57: MaxNL | I57: =Y5 -> 3137
A58: hour 5 | B58: MinALBE | C58: =L6 -> 0
B59: MaxALBE | C59: =M6 -> 0
B60: MinALDE | D60: =N6 -> 0
B61: MaxALDE | D61: =O6 -> 0
B62: MinAT | E62: =P6 -> -5323
B63: MaxAT | E63: =Q6 -> 5377
B64: MinBE | F64: =R6 -> -4746
B65: MaxBE | F65: =S6 -> 3191
B66: MinDE | G66: =T6 -> -11262
B67: MaxDE | G67: =U6 -> 9146
B68: MinFR | H68: =V6 -> -6375
B69: MaxFR | H69: =W6 -> 6436
B70: MinNL | I70: =X6 -> -3770
B71: MaxNL | I71: =Y6 -> 4459
A72: hour 6 | B72: MinALBE | C72: =L7 -> 0
B73: MaxALBE | C73: =M7 -> 0
B74: MinALDE | D74: =N7 -> 0
B75: MaxALDE | D75: =O7 -> 0
B76: MinAT | E76: =P7 -> -5602
B77: MaxAT | E77: =Q7 -> 5033
B78: MinBE | F78: =R7 -> -4908
B79: MaxBE | F79: =S7 -> 3141
B80: MinDE | G80: =T7 -> -10444
B81: MaxDE | G81: =U7 -> 10215
B82: MinFR | H82: =V7 -> -7003
B83: MaxFR | H83: =W7 -> 6287
B84: MinNL | I84: =X7 -> -3377
B85: MaxNL | I85: =Y7 -> 4396
A86: hour 7 | B86: MinALBE | C86: =L8 -> 0
B87: MaxALBE | C87: =M8 -> 0
B88: MinALDE | D88: =N8 -> 0
B89: MaxALDE | D89: =O8 -> 0
B90: MinAT | E90: =P8 -> -4943
B91: MaxAT | E91: =Q8 -> 5126
B92: MinBE | F92: =R8 -> -5243
B93: MaxBE | F93: =S8 -> 3430
B94: MinDE | G94: =T8 -> -10711
B95: MaxDE | G95: =U8 -> 10486
B96: MinFR | H96: =V8 -> -7566
B97: MaxFR | H97: =W8 -> 6409
B98: MinNL | I98: =X8 -> -5750
B99: MaxNL | I99: =Y8 -> 3245
A100: hour 8 | B100: MinALBE | C100: =L9 -> 0
B101: MaxALBE | C101: =M9 -> 0
B102: MinALDE | D102: =N9 -> 0
B103: MaxALDE | D103: =O9 -> 0
B104: MinAT | E104: =P9 -> -4821
B105: MaxAT | E105: =Q9 -> 4942
B106: MinBE | F106: =R9 -> -5256
B107: MaxBE | F107: =S9 -> 3142
B108: MinDE | G108: =T9 -> -10506
B109: MaxDE | G109: =U9 -> 9159
B110: MinFR | H110: =V9 -> -6441
B111: MaxFR | H111: =W9 -> 7035
B112: MinNL | I112: =X9 -> -5418
B113: MaxNL | I113: =Y9 -> 3812
A114: hour 9 | B114: MinALBE | C114: =L10 -> 0
B115: MaxALBE | C115: =M10 -> 0
B116: MinALDE | D116: =N10 -> 0
B117: MaxALDE | D117: =O10 -> 0
B118: MinAT | E118: =P10 -> -4821
B119: MaxAT | E119: =Q10 -> 5054
B120: MinBE | F120: =R10 -> -5094
B121: MaxBE | F121: =S10 -> 3129
B122: MinDE | G122: =T10 -> -10097
B123: MaxDE | G123: =U10 -> 8992
B124: MinFR | H124: =V10 -> -6146
B125: MaxFR | H125: =W10 -> 6693
B126: MinNL | I126: =X10 -> -5548
B127: MaxNL | I127: =Y10 -> 3462
A128: hour 10 | B128: MinALBE | C128: =L11 -> 0
B129: MaxALBE | C129: =M11 -> 0
B130: MinALDE | D130: =N11 -> 0
B131: MaxALDE | D131: =O11 -> 0
B132: MinAT | E132: =P11 -> -4821
B133: MaxAT | E133: =Q11 -> 5062
B134: MinBE | F134: =R11 -> -5036
B135: MaxBE | F135: =S11 -> 3085
B136: MinDE | G136: =T11 -> -10679
B137: MaxDE | G137: =U11 -> 9350
B138: MinFR | H138: =V11 -> -6309
B139: MaxFR | H139: =W11 -> 6647
B140: MinNL | I140: =X11 -> -4749
B141: MaxNL | I141: =Y11 -> 4007
A142: hour 11 | B142: MinALBE | C142: =L12 -> 0
B143: MaxALBE | C143: =M12 -> 0
B144: MinALDE | D144: =N12 -> 0
B145: MaxALDE | D145: =O12 -> 0
B146: MinAT | E146: =P12 -> -4821
B147: MaxAT | E147: =Q12 -> 5149
B148: MinBE | F148: =R12 -> -5013
B149: MaxBE | F149: =S12 -> 3245
B150: MinDE | G150: =T12 -> -11099
B151: MaxDE | G151: =U12 -> 9179
B152: MinFR | H152: =V12 -> -6216
B153: MaxFR | H153: =W12 -> 6678
B154: MinNL | I154: =X12 -> -4668
B155: MaxNL | I155: =Y12 -> 4038
A156: hour 12 | B156: MinALBE | C156: =L13 -> 0
B157: MaxALBE | C157: =M13 -> 0
B158: MinALDE | D158: =N13 -> 0
B159: MaxALDE | D159: =O13 -> 0
B160: MinAT | E160: =P13 -> -4821
B161: MaxAT | E161: =Q13 -> 5513
B162: MinBE | F162: =R13 -> -5112
B163: MaxBE | F163: =S13 -> 3569
B164: MinDE | G164: =T13 -> -11152
B165: MaxDE | G165: =U13 -> 9075
B166: MinFR | H166: =V13 -> -6474
B167: MaxFR | H167: =W13 -> 6738
B168: MinNL | I168: =X13 -> -5373
B169: MaxNL | I169: =Y13 -> 3497
A170: hour 13 | B170: MinALBE | C170: =L14 -> 0
B171: MaxALBE | C171: =M14 -> 0
B172: MinALDE | D172: =N14 -> 0
B173: MaxALDE | D173: =O14 -> 0
B174: MinAT | E174: =P14 -> -4821
B175: MaxAT | E175: =Q14 -> 5448
B176: MinBE | F176: =R14 -> -5078
B177: MaxBE | F177: =S14 -> 3540
B178: MinDE | G178: =T14 -> -10915
B179: MaxDE | G179: =U14 -> 8744
B180: MinFR | H180: =V14 -> -6298
B181: MaxFR | H181: =W14 -> 6644
B182: MinNL | I182: =X14 -> -5216
B183: MaxNL | I183: =Y14 -> 3486
A184: hour 14 | B184: MinALBE | C184: =L15 -> 0
B185: MaxALBE | C185: =M15 -> 0
B186: MinALDE | D186: =N15 -> 0
B187: MaxALDE | D187: =O15 -> 0
B188: MinAT | E188: =P15 -> -4821
B189: MaxAT | E189: =Q15 -> 5712
B190: MinBE | F190: =R15 -> -4983
B191: MaxBE | F191: =S15 -> 3573
B192: MinDE | G192: =T15 -> -11116
B193: MaxDE | G193: =U15 -> 8655
B194: MinFR | H194: =V15 -> -6299
B195: MaxFR | H195: =W15 -> 6561
B196: MinNL | I196: =X15 -> -5117
B197: MaxNL | I197: =Y15 -> 3480
A198: hour 15 | B198: MinALBE | C198: =L16 -> 0
B199: MaxALBE | C199: =M16 -> 0
B200: MinALDE | D200: =N16 -> 0
... 137 more rows

Sheet Max exchanges (Maxbex)
B1: Direction | C1: Exchange | E1: hour | F1: Max AT=>BE | G1: Max AT=>DE | H1: Max AT=>FR | I1: Max AT=>NL | J1: Max BE=>AT | K1: Max BE=>DE | L1: Max BE=>FR | M1: Max BE=>NL | N1: Max DE=>AT | O1: Max DE=>BE | P1: Max DE=>FR | Q1: Max DE=>NL | R1: Max FR=>AT | S1: Max FR=>BE | T1: Max FR=>DE | U1: Max FR=>NL | V1: Max NL=>AT | W1: Max NL=>BE | X1: Max NL=>DE | Y1: Max NL=>FR
A2: hour 1 | B2: Max AT=>BE | C2: =F2 -> 3800 | E2: 1 | F2: 3800 | G2: 5008 | H2: 4003 | I2: 1982 | J2: 2746 | K2: 2904 | L2: 2022 | M2: 2781 | N2: 5068 | O2: 3519 | P2: 4946 | Q2: 1982 | R2: 4709 | S2: 4333 | T2: 3939 | U2: 2669 | V2: 3936 | W2: 2393 | X2: 4305 | Y2: 2589
B3: Max AT=>DE | C3: =G2 -> 5008 | E3: 2 | F3: 3982 | G3: 4992 | H3: 4003 | I3: 2023 | J3: 2794 | K3: 3133 | L3: 2054 | M3: 3159 | N3: 5235 | O3: 3469 | P3: 5016 | Q3: 2023 | R3: 4695 | S3: 4310 | T3: 3927 | U3: 2862 | V3: 3437 | W3: 2337 | X3: 3643 | Y3: 2489
B4: Max AT=>FR | C4: =H2 -> 4003 | E4: 3 | F4: 4054 | G4: 5039 | H4: 4050 | I4: 2019 | J4: 2943 | K4: 3041 | L4: 2104 | M4: 3249 | N4: 5136 | O4: 3704 | P4: 5272 | Q4: 2019 | R4: 4310 | S4: 4171 | T4: 3607 | U4: 2838 | V4: 2997 | W4: 2349 | X4: 3021 | Y4: 2506
B5: Max AT=>NL | C5: =I2 -> 1982 | E5: 4 | F5: 4072 | G5: 5155 | H5: 4198 | I5: 2022 | J5: 2838 | K5: 3001 | L5: 2107 | M5: 3261 | N5: 4956 | O5: 3736 | P5: 5295 | Q5: 2022 | R5: 4454 | S5: 4171 | T5: 3724 | U5: 2842 | V5: 2981 | W5: 2352 | X5: 3005 | Y5: 2511
B6: Max BE=>AT | C6: =J2 -> 2746 | E6: 5 | F6: 3949 | G6: 5129 | H6: 4173 | I6: 2023 | J6: 2747 | K6: 2675 | L6: 2048 | M6: 2836 | N6: 5053 | O6: 3648 | P6: 5071 | Q6: 2023 | R6: 4321 | S6: 4288 | T6: 3612 | U6: 2851 | V6: 3079 | W6: 2367 | X6: 3278 | Y6: 2530
B7: Max BE=>DE | C7: =K2 -> 2904 | E7: 6 | F7: 4111 | G7: 4955 | H7: 4134 | I7: 1967 | J7: 2779 | K7: 2675 | L7: 2117 | M7: 2778 | N7: 5369 | O7: 3726 | P7: 5337 | Q7: 1967 | R7: 4028 | S7: 4153 | T7: 3377 | U7: 2586 | V7: 4002 | W7: 2446 | X7: 3796 | Y7: 3063
B8: Max BE=>FR | C8: =L2 -> 2022 | E8: 7 | F8: 4348 | G8: 4982 | H8: 4187 | I8: 4204 | J8: 2586 | K8: 2480 | L8: 2132 | M8: 2685 | N8: 4849 | O8: 4010 | P8: 5252 | Q8: 3509 | R8: 4399 | S8: 4166 | T8: 3632 | U8: 4352 | V8: 3019 | W8: 2418 | X8: 3052 | Y8: 2801
B9: Max BE=>NL | C9: =M2 -> 2781 | E9: 8 | F9: 4143 | G9: 4879 | H9: 4187 | I9: 3142 | J9: 2226 | K9: 2451 | L9: 1853 | M9: 2739 | N9: 4821 | O9: 3750 | P9: 4573 | Q9: 2726 | R9: 4556 | S9: 4815 | T9: 3932 | U9: 4308 | V9: 3244 | W9: 2391 | X9: 3435 | Y9: 2496
B10: Max DE=>AT | C10: =N2 -> 5068 | E10: 9 | F10: 3961 | G10: 4964 | H10: 4003 | I10: 3329 | J10: 2067 | K10: 2242 | L10: 1782 | M10: 2791 | N10: 4821 | O10: 3642 | P10: 4413 | Q10: 2822 | R10: 4366 | S10: 4751 | T10: 3538 | U10: 4079 | V10: 3226 | W10: 2373 | X10: 3293 | Y10: 2467
B11: Max DE=>BE | C11: =O2 -> 3519 | E11: 10 | F11: 3939 | G11: 4980 | H11: 4029 | I11: 2935 | J11: 2177 | K11: 2396 | L11: 1833 | M11: 2805 | N11: 4821 | O11: 3602 | P11: 4434 | Q11: 2584 | R11: 4389 | S11: 4666 | T11: 3541 | U11: 3694 | V11: 3475 | W11: 2412 | X11: 3724 | Y11: 2532
B12: Max DE=>FR | C12: =P2 -> 4946 | E12: 11 | F12: 3994 | G12: 4995 | H12: 3922 | I12: 2823 | J12: 2302 | K12: 2570 | L12: 1892 | M12: 2968 | N12: 4821 | O12: 3630 | P12: 4483 | Q12: 2522 | R12: 4547 | S12: 4527 | T12: 3635 | U12: 3613 | V12: 3693 | W12: 2428 | X12: 3821 | Y12: 2559
B13: Max DE=>NL | C13: =Q2 -> 1982 | E13: 12 | F13: 4140 | G13: 5061 | H13: 3983 | I13: 3645 | J13: 2407 | K13: 2714 | L13: 1945 | M13: 3131 | N13: 4821 | O13: 3740 | P13: 4603 | Q13: 3022 | R13: 4616 | S13: 4414 | T13: 3814 | U13: 4537 | V13: 3244 | W13: 2420 | X13: 3294 | Y13: 2552
B14: Max FR=>AT | C14: =R2 -> 4709 | E14: 13 | F14: 4077 | G14: 5041 | H14: 3994 | I14: 3261 | J14: 2343 | K14: 2621 | L14: 1915 | M14: 3180 | N14: 4821 | O14: 3686 | P14: 4537 | Q14: 2787 | R14: 4527 | S14: 4532 | T14: 3629 | U14: 4318 | V14: 3223 | W14: 2407 | X14: 3293 | Y14: 2527
B15: Max FR=>BE | C15: =S2 -> 4333 | E15: 14 | F15: 4060 | G15: 5082 | H15: 4081 | I15: 3036 | J15: 2404 | K15: 2707 | L15: 1942 | M15: 3229 | N15: 4821 | O15: 3679 | P15: 4578 | Q15: 2669 | R15: 4479 | S15: 4453 | T15: 3590 | U15: 4212 | V15: 3119 | W15: 2407 | X15: 3293 | Y15: 2539
B16: Max FR=>DE | C16: =T2 -> 3939 | E16: 15 | F16: 3959 | G16: 5075 | H16: 4132 | I16: 2979 | J16: 2412 | K16: 2719 | L16: 1946 | M16: 3229 | N16: 4821 | O16: 3613 | P16: 4577 | Q16: 2638 | R16: 4401 | S16: 4443 | T16: 3553 | U16: 4161 | V16: 3084 | W16: 2391 | X16: 3288 | Y16: 2536
B17: Max FR=>NL | C17: =U2 -> 2669 | E17: 16 | F17: 4030 | G17: 5052 | H17: 4259 | I17: 4084 | J17: 2403 | K17: 2694 | L17: 1931 | M17: 3180 | N17: 4821 | O17: 3690 | P17: 4629 | Q17: 3437 | R17: 4168 | S17: 4430 | T17: 3453 | U17: 3921 | V17: 3245 | W17: 2381 | X17: 3291 | Y17: 2502
B18: Max NL=>AT | C18: =V2 -> 3936 | E18: 17 | F18: 3846 | G18: 5156 | H18: 4264 | I18: 3225 | J18: 2308 | K18: 2564 | L18: 1881 | M18: 2910 | N18: 4821 | O18: 3563 | P18: 4526 | Q18: 2818 | R18: 4169 | S18: 4501 | T18: 3445 | U18: 3852 | V18: 3487 | W18: 2379 | X18: 3714 | Y18: 2503
B19: Max NL=>BE | C19: =W2 -> 2393 | E19: 18 | F19: 3768 | G19: 5064 | H19: 4272 | I19: 4361 | J19: 2465 | K19: 2376 | L19: 1924 | M19: 2556 | N19: 4821 | O19: 3503 | P19: 4384 | Q19: 3794 | R19: 3383 | S19: 4497 | T19: 3070 | U19: 3031 | V19: 3718 | W19: 2366 | X19: 3812 | Y19: 2536
B20: Max NL=>DE | C20: =X2 -> 4305 | E20: 19 | F20: 4168 | G20: 5007 | H20: 4239 | I20: 4560 | J20: 2082 | K20: 2242 | L20: 1757 | M20: 2412 | N20: 4821 | O20: 3787 | P20: 4275 | Q20: 4105 | R20: 3515 | S20: 5292 | T20: 3139 | U20: 3138 | V20: 3750 | W20: 2414 | X20: 3814 | Y20: 2489
B21: Max NL=>FR | C21: =Y2 -> 2589 | E21: 20 | F21: 4099 | G21: 5658 | H21: 4681 | I21: 4628 | J21: 1932 | K21: 2061 | L21: 1686 | M21: 2604 | N21: 4821 | O21: 3715 | P21: 4123 | Q21: 4047 | R21: 3948 | S21: 5350 | T21: 3352 | U21: 3440 | V21: 3735 | W21: 2393 | X21: 3814 | Y21: 2422
A22: hour 2 | B22: Max AT=>BE | C22: =F3 -> 3982 | E22: 21 | F22: 4100 | G22: 5037 | H22: 4208 | I22: 4347 | J22: 1916 | K22: 2039 | L22: 1673 | M22: 2586 | N22: 4821 | O22: 3664 | P22: 4006 | Q22: 3839 | R22: 4690 | S22: 5484 | T22: 4121 | U22: 4393 | V22: 3796 | W22: 2396 | X22: 4137 | Y22: 2388
B23: Max AT=>DE | C23: =G3 -> 4992 | E23: 22 | F23: 4415 | G23: 5136 | H23: 4243 | I23: 4554 | J23: 2191 | K23: 2395 | L23: 1807 | M23: 2930 | N23: 4830 | O23: 3958 | P23: 4310 | Q23: 5172 | R23: 4063 | S23: 5733 | T23: 3408 | U23: 3626 | V23: 3459 | W23: 2429 | X23: 3511 | Y23: 2462
B24: Max AT=>FR | C24: =H3 -> 4003 | E24: 23 | F24: 4428 | G24: 5086 | H24: 4248 | I24: 4555 | J24: 2198 | K24: 2397 | L24: 1805 | M24: 2895 | N24: 4864 | O24: 4037 | P24: 4359 | Q24: 5034 | R24: 3678 | S24: 5426 | T24: 3225 | U24: 3327 | V24: 3860 | W24: 2422 | X24: 3912 | Y24: 2439
B25: Max AT=>NL | C25: =I3 -> 2023 | E25: 24 | F25: 4367 | G25: 4954 | H25: 4211 | I25: 4517 | J25: 2245 | K25: 2460 | L25: 1825 | M25: 3092 | N25: 5391 | O25: 4083 | P25: 4362 | Q25: 5075 | R25: 3890 | S25: 5675 | T25: 3328 | U25: 3479 | V25: 3943 | W25: 2432 | X25: 4637 | Y25: 2443
B26: Max BE=>AT | C26: =J3 -> 2794
B27: Max BE=>DE | C27: =K3 -> 3133
B28: Max BE=>FR | C28: =L3 -> 2054
B29: Max BE=>NL | C29: =M3 -> 3159
B30: Max DE=>AT | C30: =N3 -> 5235
B31: Max DE=>BE | C31: =O3 -> 3469
B32: Max DE=>FR | C32: =P3 -> 5016
B33: Max DE=>NL | C33: =Q3 -> 2023
B34: Max FR=>AT | C34: =R3 -> 4695
B35: Max FR=>BE | C35: =S3 -> 4310
B36: Max FR=>DE | C36: =T3 -> 3927
B37: Max FR=>NL | C37: =U3 -> 2862
B38: Max NL=>AT | C38: =V3 -> 3437
B39: Max NL=>BE | C39: =W3 -> 2337
B40: Max NL=>DE | C40: =X3 -> 3643
B41: Max NL=>FR | C41: =Y3 -> 2489
A42: hour 3 | B42: Max AT=>BE | C42: =F4 -> 4054
B43: Max AT=>DE | C43: =G4 -> 5039
B44: Max AT=>FR | C44: =H4 -> 4050
B45: Max AT=>NL | C45: =I4 -> 2019
B46: Max BE=>AT | C46: =J4 -> 2943
B47: Max BE=>DE | C47: =K4 -> 3041
B48: Max BE=>FR | C48: =L4 -> 2104
B49: Max BE=>NL | C49: =M4 -> 3249
B50: Max DE=>AT | C50: =N4 -> 5136
B51: Max DE=>BE | C51: =O4 -> 3704
B52: Max DE=>FR | C52: =P4 -> 5272
B53: Max DE=>NL | C53: =Q4 -> 2019
B54: Max FR=>AT | C54: =R4 -> 4310
B55: Max FR=>BE | C55: =S4 -> 4171
B56: Max FR=>DE | C56: =T4 -> 3607
B57: Max FR=>NL | C57: =U4 -> 2838
B58: Max NL=>AT | C58: =V4 -> 2997
B59: Max NL=>BE | C59: =W4 -> 2349
B60: Max NL=>DE | C60: =X4 -> 3021
B61: Max NL=>FR | C61: =Y4 -> 2506
A62: hour 4 | B62: Max AT=>BE | C62: =F5 -> 4072
B63: Max AT=>DE | C63: =G5 -> 5155
B64: Max AT=>FR | C64: =H5 -> 4198
B65: Max AT=>NL | C65: =I5 -> 2022
B66: Max BE=>AT | C66: =J5 -> 2838
B67: Max BE=>DE | C67: =K5 -> 3001
B68: Max BE=>FR | C68: =L5 -> 2107
B69: Max BE=>NL | C69: =M5 -> 3261
B70: Max DE=>AT | C70: =N5 -> 4956
B71: Max DE=>BE | C71: =O5 -> 3736
B72: Max DE=>FR | C72: =P5 -> 5295
B73: Max DE=>NL | C73: =Q5 -> 2022
B74: Max FR=>AT | C74: =R5 -> 4454
B75: Max FR=>BE | C75: =S5 -> 4171
B76: Max FR=>DE | C76: =T5 -> 3724
B77: Max FR=>NL | C77: =U5 -> 2842
B78: Max NL=>AT | C78: =V5 -> 2981
B79: Max NL=>BE | C79: =W5 -> 2352
B80: Max NL=>DE | C80: =X5 -> 3005
B81: Max NL=>FR | C81: =Y5 -> 2511
A82: hour 5 | B82: Max AT=>BE | C82: =F6 -> 3949
B83: Max AT=>DE | C83: =G6 -> 5129
B84: Max AT=>FR | C84: =H6 -> 4173
B85: Max AT=>NL | C85: =I6 -> 2023
B86: Max BE=>AT | C86: =J6 -> 2747
B87: Max BE=>DE | C87: =K6 -> 2675
B88: Max BE=>FR | C88: =L6 -> 2048
B89: Max BE=>NL | C89: =M6 -> 2836
B90: Max DE=>AT | C90: =N6 -> 5053
B91: Max DE=>BE | C91: =O6 -> 3648
B92: Max DE=>FR | C92: =P6 -> 5071
B93: Max DE=>NL | C93: =Q6 -> 2023
B94: Max FR=>AT | C94: =R6 -> 4321
B95: Max FR=>BE | C95: =S6 -> 4288
B96: Max FR=>DE | C96: =T6 -> 3612
B97: Max FR=>NL | C97: =U6 -> 2851
B98: Max NL=>AT | C98: =V6 -> 3079
B99: Max NL=>BE | C99: =W6 -> 2367
B100: Max NL=>DE | C100: =X6 -> 3278
B101: Max NL=>FR | C101: =Y6 -> 2530
A102: hour 6 | B102: Max AT=>BE | C102: =F7 -> 4111
B103: Max AT=>DE | C103: =G7 -> 4955
B104: Max AT=>FR | C104: =H7 -> 4134
B105: Max AT=>NL | C105: =I7 -> 1967
B106: Max BE=>AT | C106: =J7 -> 2779
B107: Max BE=>DE | C107: =K7 -> 2675
B108: Max BE=>FR | C108: =L7 -> 2117
B109: Max BE=>NL | C109: =M7 -> 2778
B110: Max DE=>AT | C110: =N7 -> 5369
B111: Max DE=>BE | C111: =O7 -> 3726
B112: Max DE=>FR | C112: =P7 -> 5337
B113: Max DE=>NL | C113: =Q7 -> 1967
B114: Max FR=>AT | C114: =R7 -> 4028
B115: Max FR=>BE | C115: =S7 -> 4153
B116: Max FR=>DE | C116: =T7 -> 3377
B117: Max FR=>NL | C117: =U7 -> 2586
B118: Max NL=>AT | C118: =V7 -> 4002
B119: Max NL=>BE | C119: =W7 -> 2446
B120: Max NL=>DE | C120: =X7 -> 3796
B121: Max NL=>FR | C121: =Y7 -> 3063
A122: hour 7 | B122: Max AT=>BE | C122: =F8 -> 4348
B123: Max AT=>DE | C123: =G8 -> 4982
B124: Max AT=>FR | C124: =H8 -> 4187
B125: Max AT=>NL | C125: =I8 -> 4204
B126: Max BE=>AT | C126: =J8 -> 2586
B127: Max BE=>DE | C127: =K8 -> 2480
B128: Max BE=>FR | C128: =L8 -> 2132
B129: Max BE=>NL | C129: =M8 -> 2685
B130: Max DE=>AT | C130: =N8 -> 4849
B131: Max DE=>BE | C131: =O8 -> 4010
B132: Max DE=>FR | C132: =P8 -> 5252
B133: Max DE=>NL | C133: =Q8 -> 3509
B134: Max FR=>AT | C134: =R8 -> 4399
B135: Max FR=>BE | C135: =S8 -> 4166
B136: Max FR=>DE | C136: =T8 -> 3632
B137: Max FR=>NL | C137: =U8 -> 4352
B138: Max NL=>AT | C138: =V8 -> 3019
B139: Max NL=>BE | C139: =W8 -> 2418
B140: Max NL=>DE | C140: =X8 -> 3052
B141: Max NL=>FR | C141: =Y8 -> 2801
A142: hour 8 | B142: Max AT=>BE | C142: =F9 -> 4143
B143: Max AT=>DE | C143: =G9 -> 4879
B144: Max AT=>FR | C144: =H9 -> 4187
B145: Max AT=>NL | C145: =I9 -> 3142
B146: Max BE=>AT | C146: =J9 -> 2226
B147: Max BE=>DE | C147: =K9 -> 2451
B148: Max BE=>FR | C148: =L9 -> 1853
B149: Max BE=>NL | C149: =M9 -> 2739
B150: Max DE=>AT | C150: =N9 -> 4821
B151: Max DE=>BE | C151: =O9 -> 3750
B152: Max DE=>FR | C152: =P9 -> 4573
B153: Max DE=>NL | C153: =Q9 -> 2726
B154: Max FR=>AT | C154: =R9 -> 4556
B155: Max FR=>BE | C155: =S9 -> 4815
B156: Max FR=>DE | C156: =T9 -> 3932
B157: Max FR=>NL | C157: =U9 -> 4308
B158: Max NL=>AT | C158: =V9 -> 3244
B159: Max NL=>BE | C159: =W9 -> 2391
B160: Max NL=>DE | C160: =X9 -> 3435
B161: Max NL=>FR | C161: =Y9 -> 2496
A162: hour 9 | B162: Max AT=>BE | C162: =F10 -> 3961
B163: Max AT=>DE | C163: =G10 -> 4964
B164: Max AT=>FR | C164: =H10 -> 4003
B165: Max AT=>NL | C165: =I10 -> 3329
B166: Max BE=>AT | C166: =J10 -> 2067
B167: Max BE=>DE | C167: =K10 -> 2242
B168: Max BE=>FR | C168: =L10 -> 1782
B169: Max BE=>NL | C169: =M10 -> 2791
B170: Max DE=>AT | C170: =N10 -> 4821
B171: Max DE=>BE | C171: =O10 -> 3642
B172: Max DE=>FR | C172: =P10 -> 4413
B173: Max DE=>NL | C173: =Q10 -> 2822
B174: Max FR=>AT | C174: =R10 -> 4366
B175: Max FR=>BE | C175: =S10 -> 4751
B176: Max FR=>DE | C176: =T10 -> 3538
B177: Max FR=>NL | C177: =U10 -> 4079
B178: Max NL=>AT | C178: =V10 -> 3226
B179: Max NL=>BE | C179: =W10 -> 2373
B180: Max NL=>DE | C180: =X10 -> 3293
B181: Max NL=>FR | C181: =Y10 -> 2467
A182: hour 10 | B182: Max AT=>BE | C182: =F11 -> 3939
B183: Max AT=>DE | C183: =G11 -> 4980
B184: Max AT=>FR | C184: =H11 -> 4029
B185: Max AT=>NL | C185: =I11 -> 2935
B186: Max BE=>AT | C186: =J11 -> 2177
B187: Max BE=>DE | C187: =K11 -> 2396
B188: Max BE=>FR | C188: =L11 -> 1833
B189: Max BE=>NL | C189: =M11 -> 2805
B190: Max DE=>AT | C190: =N11 -> 4821
B191: Max DE=>BE | C191: =O11 -> 3602
B192: Max DE=>FR | C192: =P11 -> 4434
B193: Max DE=>NL | C193: =Q11 -> 2584
B194: Max FR=>AT | C194: =R11 -> 4389
B195: Max FR=>BE | C195: =S11 -> 4666
B196: Max FR=>DE | C196: =T11 -> 3541
B197: Max FR=>NL | C197: =U11 -> 3694
B198: Max NL=>AT | C198: =V11 -> 3475
B199: Max NL=>BE | C199: =W11 -> 2412
B200: Max NL=>DE | C200: =X11 -> 3724
... 281 more rows

Sheet Shadow Auction ATC
A2: Date: | B2: 2020-11-04 | D2: Please note that the data for 2020-11-04 is not available.
B4: Shadow Auction ATC (in MW)
A5: Hour | B5: AT-DE | C5: DE-AT | D5: BE-NL | E5: NL-BE | F5: DE-NL | G5: NL-DE | H5: BE-FR | I5: FR-BE | J5: FR-DE | K5: DE-FR | L5: BE-DE(DC) | M5: DE-BE(DC)

Sheet Net Position
A2: Date: | B2: 2020-11-04 | D2: Please note that the data for 2020-11-04 is not available.
B4: Internal CWE Net Position (in MW) | I4: Import (-) Export (+)
A5: Hour | B5: ALBE | C5: ALDE | D5: AT | E5: BE | F5: DE | G5: FR | H5: NL

Sheet Allocated Capacities
A2: Date: | B2: 2020-11-04 | D2: Please note that the data for 2020-11-04 is not available.
B4: Bilateral Exchanges (in MW)
A5: Hour | B5: AT-DE | C5: DE-AT | D5: BE-DE(DC) | E5: DE-BE(DC) | F5: FR-ES | G5: ES-FR | H5: DK1-DE | I5: DE-DK1 | J5: BE-NL | K5: NL-BE | L5: DE-NL | M5: NL-DE | N5: BE-FR | O5: FR-BE | P5: FR-DE | Q5: DE-FR | R5: FR-IT | S5: IT-FR | T5: AT-IT | U5: IT-AT | V5: SI-IT | W5: IT-SI | X5: SI-AT | Y5: AT-SI | Z5: SI-HR | AA5: HR-SI

Sheet Price Spread
A2: Date: | B2: 2020-11-04 | D2: Please note that the data for 2020-11-04 is not available.
B4: Price Spread (in €/MWh) | AB4: Loss-Adjusted Market Spread (in €/MWh)
A5: Hour | B5: AT-DE | C5: DE-AT | D5: BE-DE(DC) | E5: DE-BE(DC) | F5: FR-ES | G5: ES-FR | H5: DK1-DE | I5: DE-DK1 | J5: BE-NL | K5: NL-BE | L5: DE-NL | M5: NL-DE | N5: BE-FR | O5: FR-BE | P5: FR-DE | Q5: DE-FR | R5: FR-IT | S5: IT-FR | T5: AT-IT | U5: IT-AT | V5: SI-IT | W5: IT-SI | X5: SI-AT | Y5: AT-SI | Z5: SI-HR | AA5: HR-SI | AB5: GB-IE | AC5: IE-GB | AD5: GB-NI | AE5: NI-GB

Sheet Intraday ATC
A2: Date: | B2: 2020-11-04 | D2: Please note that the data for 2020-11-04 is not available.
C3: Please note that the capacity values published here are the result of an automatic process using the day ahead flow based domain and the day ahead market clearing point. These values do not necessarily represent the capacities being made available for intraday trading as they are published at a time when TSOs have not yet performed their grid analysis and capacity calculation processes based on the day ahead market results as day ahead left-overs and are therefore without commitment. As soon as those processes are completed the TSOs will publish the final capacities available for intraday trading on the ENTSOE transparency platform.
B4: Intraday ATC (in MW)
A5: Hour | B5: Initial | C5: Increase/Decrease | D5: Initial | E5: Increase/Decrease | F5: Initial | G5: Increase/Decrease | H5: Initial | I5: Increase/Decrease | J5: Initial | K5: Increase/Decrease | L5: Initial | M5: Increase/Decrease | N5: Initial | O5: Increase/Decrease | P5: Initial | Q5: Increase/Decrease | R5: Initial | S5: Increase/Decrease | T5: Initial | U5: Increase/Decrease | V5: Initial | W5: Increase/Decrease | X5: Initial | Y5: Increase/Decrease
B6: AT-DE | D6: DE-AT | F6: BE-NL | H6: NL-BE | J6: DE-NL | L6: NL-DE | N6: BE-FR | P6: FR-BE | R6: FR-DE | T6: DE-FR | V6: BE-DE(DC) | X6: DE-BE(DC)

Sheet Congestion Income
A2: Date: | B2: 2020-11-04 | D2: Please note that the data for 2020-11-04 is not available.
B4: Congestion Income (in €)
B5: Net Congestion Income Per Hub | G5: Net Congestion Income per TSO | N5: Gross Congestion Income per Border
A6: Hour | B6: AT | C6: BE | D6: DE | E6: FR | F6: NL | G6: Amprion | H6: APG | I6: Elia | J6: RTE | K6: Tennet BV | L6: TenneT Gmbh | M6: TransnetBW | N6: DE-DK1 | O6: DK1-DE | P6: FR-ES | Q6: ES-FR | R6: FR-IT | S6: IT-FR | T6: AT-IT | U6: IT-AT | V6: SI-IT | W6: IT-SI | X6: SI-AT | Y6: AT-SI | Z6: SI-HR | AA6: HR-SI

Sheet D2CF
A2: Date: | B2: 2020-11-04 | D2: Please note that the data for 2020-11-04 is not available.
B4: D2CF per Hub (in MW) | Q4: D2CF per TSO (in MW)
B5: Vertical load | G5: Generation | L5: Best Forecast Net Positions | Q5: VertLoad | R5: Gen | S5: BFNP | T5: VertLoad | U5: Gen | V5: BFNP | W5: VertLoad | X5: Gen | Y5: BFNP | Z5: VertLoad | AA5: Gen | AB5: BFNP | AC5: VertLoad | AD5: Gen | AE5: BFNP | AF5: VertLoad | AG5: Gen | AH5: BFNP | AI5: VertLoad | AJ5: Gen | AK5: BFNP | AL5: VertLoad | AM5: Gen | AN5: BFNP | AO5: VertLoad | AP5: Gen | AQ5: BFNP
A6: TimeStamps | B6: AT | C6: BE | D6: DE | E6: FR | F6: NL | G6: AT | H6: BE | I6: DE | J6: FR | K6: NL | L6: AT | M6: BE | N6: DE | O6: FR | P6: NL | Q6: APG | T6: TenneT GmbH | W6: TransnetBW | Z6: Amprion | AC6: 50Hertz | AF6: Elia | AI6: RTE | AL6: TenneT BV | AO6: Creos

Sheet Refprog
A2: Date: | B2: 2020-11-04 | D2: Please note that the data for 2020-11-04 is not available.
B4: Refprog Bilateral Exchanges (in MW)
A5: Hour | B5: BE-NL | C5: DE-NL | D5: BE-DE(DC) | E5: FR-BE | F5: FR-DE | G5: FR-ES | H5: FR-IT | I5: CH-DE | J5: CH-FR | K5: DE-CZ | L5: DE-PL | M5: APG-CZ | N5: q
P6: Notes for extra borders:
P8: WPS: part of Ukraine
P9: Zone ES+ includes ES and MA
P10: Zone DE+ includes DE, DKw and Luxemburg
P11: Zone SHB includes SI, HR and BA
P12: Zone SMM includes ME, RS and MK

Sheet Final Flowbased domain
A2: Date: | B2: 2020-11-04 | D2: The data for 2020-11-04 was not loaded automatically, please reselect the date in this sheet to load the data.
A4: FileId | B4: DeliveryDate | C4: Period | D4: Row | E4: OutageName | F4: EIC_Code | G4: CriticalBranchName | H4: EIC_Code | I4: Presolved | J4: RemainingAvailableMargin (MW) | K4: Fmax | L4: Fref | M4: FRM | N4: FAV | O4: AMR | P4: MinRAMFactor | Q4: MinRAMFactorJustification | R4: BiddingArea_Shortname | S4: Factor | T4: BiddingArea_Shortname | U4: Factor | V4: BiddingArea_Shortname | W4: Factor | X4: BiddingArea_Shortname | Y4: Factor | Z4: BiddingArea_Shortname | AA4: Factor | AB4: BiddingArea_Shortname | AC4: Factor | AD4: BiddingArea_Shortname | AE4: Factor

Sheet Intraday Implicit Allocation
A2: Date: | B2: 2020-11-04 | D2: Please note that the data for 2020-11-04 is not available.
B4: Bilateral Exchanges (in MW) | F4: Price Spread (in €/MWh) | J4: Gross Congestion Income (in €)
B5: Intraday 1 | D5: Intraday 2 | F5: Intraday 1 | H5: Intraday 2 | J5: Intraday 1 | L5: Intraday 2
A6: Hour | B6: CH-IT | C6: IT-CH | D6: CH-IT | E6: IT-CH | F6: CH-IT | G6: IT-CH | H6: CH-IT | I6: IT-CH | J6: CH-IT | K6: IT-CH | L6: CH-IT | M6: IT-CH
